Workbook

Sheet Remarques & guide (FR)
A1: Les titres des colonnes de cette feuille de calcul se trouvent à la 2e ligne. Ils s’étendent à la cellule B2 inclusivement. Les cellules suivantes ont des commentaires : aucune. Les données s’étendent des cellules C5 à D42. Chaque cellule des colonnes C et D contient de l’information. Si vous n’utilisez pas de lecteur d’écran, vous pouvez appuyer sur Alt + R, T pour le ruban révision, modifier le commentaire pour vous déplacer et ouvrir un commentaire une fois que vous êtes dans une cellule avec un commentaire. Une fois le commentaire lu, appuyez sur Échap pour fermer le commentaire et retourner à la feuille de calcul. Si vous utilisez le lecteur d’écran JAWS, appuyez sur Ctrl + Shift + apostrophe pour générer une liste des commentaires et les coordonnées de leurs cellules dans la feuille de calcul. Appuyer sur Retour sur le commentaire que vous souhaitez consulter ou sur Échap une fois que vous avez lu le commentaire d’une cellule. Vous retournerez au classeur. Remarque : il n’y a pas de commande clavier pour relire ou lire des commentaires avec JAWS une fois que vous êtes dans une cellule. Vous devez générer la liste des commentaires afin de les lire si vous utilisez le lecteur d’écran JAWS.
B2: REMARQUES IMPORTANTES ET GUIDE D'UTILISATION
C5: L’Outil d’évaluation pour la Réutilisation Bénéfique
C6: (Version 0.9 - Ébauche pour consultation publique)
... 6 more rows

Sheet BRAT Input
A1: The column titles for this worksheet are in row 3. They span cells C3 through O3 inclusive. The following cells have Comments: none. The data spans cells C4 through K121. There is information in every cell for columns C through K. If you are not using a screen reader, you can press Alt + R, T for the Review Ribbon, Edit Comment to move to and open a Comment once you are on a cell with a Comment. When you are finished reading the Comment, press Escape to close the comment and return to the worksheet. If you are using the JAWS screen reader, press Ctrl + Shift + Apostrophe to get a list of Comments and their cell coordinates in the worksheet. Press Enter on the Comment you want to go to or Escape once you’ve read the Comment for a cell. You are returned to the workbook. Note that there is no keyboard command with JAWS to reread Comments or read Comments once you are on them in a cell. You must use the ability to list Comments in order to read them if you are using the JAWS screen reader. | AB1: CONTROL | AI1: Land Use | AL1: Soil Texture | AU1: Number of frozen ground days per year
AC2: Please confirm the following | AD2: Select Y/N | AE2: Select Y/N | AF2: Select Y/N | AG2: Select Y/N | AH2: Select applicable volume | AI2: Select proposed land use | AL2: Select soil texture | AM2: Slec the check | AN2: Select potability | AO2: Select full depth/stratified | AP2: Select distance to a water body | AS2: Select overburden soil thickness | AU2: Select number of frozen ground days
C3: BENEFICIAL REUSE ASSESSMENT TOOL | O3: Prepared by: Ontario Ministry of the Environment, Conservation and Parks | AC3: I am a Qualified Person, as defined under Reg. XXX | AD3: No | AE3: No | AF3: No | AG3: No | AH3: Small Volume (up to 350 m3) | AI3: Agricultural or Other | AL3: Coarse | AM3: ѵ | AN3: Potable | AO3: Full Depth | AP3: Within 30 m of surface water | AS3: More than 2 m | AU3: 50
C4: (Version 0.9_Draft for Public Consultation) | O4: Technical Assessment and Standards Development Branch | AC4: I am not a Qualified Person | AD4: Yes | AE4: Yes | AF4: Yes | AG4: Yes | AH4: Volume Independent | AI4: Residential/Parkland/Institutional | AL4: Medium/Fine | AN4: Non-potable | AO4: Stratified | AP4: More than 30 m to surface water | AS4: Less than 2 m | AU4: 70
O5: Toronto, Ontario, Canada | AH5: Site Specific | AI5: Industrial/Commercial/Community | AU5: 90
AH6: Medium Volume (up to 5000 m3) | AU6: 100
AU7: 110
... 6 more rows

Sheet BRAT Input_Leachate
A1: The column titles for this worksheet are in row 3. They span cell C3 inclusive. The following cells have Comments: none. The data spans cells C4 through H151. There is information in every cell for columns C through H. If you are not using a screen reader, you can press Alt + R, T for the Review Ribbon, Edit Comment to move to and open a Comment once you are on a cell with a Comment. When you are finished reading the Comment, press Escape to close the comment and return to the worksheet. If you are using the JAWS screen reader, press Ctrl + Shift + Apostrophe to get a list of Comments and their cell coordinates in the worksheet. Press Enter on the Comment you want to go to or Escape once you’ve read the Comment for a cell. You are returned to the workbook. Note that there is no keyboard command with JAWS to reread Comments or read Comments once you are on them in a cell. You must use the ability to list Comments in order to read them if you are using the JAWS screen reader.
C3: LEACHATE ANALYSIS (Pathway Modifier) | K3: Back to "BRAT Input"
C4: ='BRAT Input'!C4 -> (Version 0.9_Draft for Public Consultation)
C6: =IF('BRAT Input'!AD18="STOP","All statements presented in Rows 16, 18, and 20 of the 'BRAT Input' worksheet need to be confirmed before the BRAT can be used ",IF(AND('BRAT Input'!AD18="",OR('BRAT Input'!K91="no",'BRAT Input'!K91="Select Y/n")),"To enable the selection of chemicals for leachate analysis, please return to the 'BRAT Input' worksheet and select 'Yes' to the question “Leachate Screening Levels Are Met” in Row 91","Please select chemicals for which leachate analysis is (will be) performed as part of 'Leachate Screening Levels Are Met' Pathway Modifier")) -> All statements presented in Rows 16, 18, and 20 of the 'BRAT Input' worksheet need to be confirmed before the BRAT can be used
... 7 more rows

Sheet BRAT Output
A1: The column titles for this worksheet are in row 3. They span cells C3 inclusive. The following cells have Comments: none. The data spans cells C4 through W202. There is information in every cell for columns C through W. If you are not using a screen reader, you can press Alt + R, T for the Review Ribbon, Edit Comment to move to and open a Comment once you are on a cell with a Comment. When you are finished reading the Comment, press Escape to close the comment and return to the worksheet. If you are using the JAWS screen reader, press Ctrl + Shift + Apostrophe to get a list of Comments and their cell coordinates in the worksheet. Press Enter on the Comment you want to go to or Escape once you’ve read the Comment for a cell. You are returned to the workbook. Note that there is no keyboard command with JAWS to reread Comments or read Comments once you are on them in a cell. You must use the ability to list Comments in order to read them if you are using the JAWS screen reader. | X1: Back to "BRAT Input"
C3: EXCESS SOIL STANDARDS
D4: [Using the MECP Beneficial Reuse Assessment Tool (BRAT)]
C5: ='BRAT Input'!C4 -> (Version 0.9_Draft for Public Consultation)
C6: =#REF! ->  | G6: =IF('BRAT Input'!AD18="STOP","All statements presented in Rows 16, 18 and 20 of the 'BRAT Input' worksheet need to be addressed before the BRAT can be used","") -> All statements presented in Rows 16, 18 and 20 of the 'BRAT Input' worksheet need to be addressed before the BRAT can be used
C7: Business Contact Information (Qualified Person Using the BRAT)
... 8 more rows

Sheet BRAT Declarations
A1: The column titles for this worksheet are in row 3. They span cells C3 inclusive. The following cells have Comments: none. The data spans cells C4 through J45. There is information in every cell for columns C through J. If you are not using a screen reader, you can press Alt + R, T for the Review Ribbon, Edit Comment to move to and open a Comment once you are on a cell with a Comment. When you are finished reading the Comment, press Escape to close the comment and return to the worksheet. If you are using the JAWS screen reader, press Ctrl + Shift + Apostrophe to get a list of Comments and their cell coordinates in the worksheet. Press Enter on the Comment you want to go to or Escape once you’ve read the Comment for a cell. You are returned to the workbook. Note that there is no keyboard command with JAWS to reread Comments or read Comments once you are on them in a cell. You must use the ability to list Comments in order to read them if you are using the JAWS screen reader. | M1: Back to "BRAT Input"
C3: MANDATORY DECLARATIONS (Draft)
D4: [For Using the MECP Beneficial Reuse Assessment Tool (BRAT)]
C5: ='BRAT Input'!C4 -> (Version 0.9_Draft for Public Consultation)
... 6 more rows

Sheet BRAT Table of Drivers - Soil (hidden)
A1: Soil Components for Table 2/2.1 - Full Depth, Potable Water Scenario | T1: Soil Components for Table 2/2.1 - Full Depth, Potable Water Scenario | AM1: Soil Components for Table 2/2.1 - Full Depth, Potable Water Scenario | BH1: Soil Components for Table 2/2.1 - Full Depth, Potable Water Scenario | CA1: Soil Components for Table 2/2.1 - Full Depth, Potable Water Scenario | CT1: Soil Components for Table 2/2.1 - Full Depth, Potable Water Scenario | DO1: Soil Components for Table 3/3.1 - Full Depth, Non-potable Water Scenario | EF1: Soil Components for Table 3/3.1 - Full Depth, Non-potable Water Scenario | EY1: Soil Components for Table 3/3.1 - Full Depth, Non-potable Water Scenario | FP1: Soil Components for Table 3/3.1 - Full Depth, Non-potable Water Scenario | GI1: Soil Components for Table 4/4.1 - Sub-surface, Potable Water Scenario | GY1: Soil Components for Table 4/4.1 - Sub-surface, Potable Water Scenario | HP1: Soil Components for Table 4/4.1 - Sub-surface, Potable Water Scenario | IF1: Soil Components for Table 4/4.1 - Sub-surface, Potable Water Scenario | IW1: Soil Components for Table 5/5.1 - Sub-surface, Non-potable Water Scenario | JK1: Soil Components for Table 5/5.1 - Sub-surface, Non-potable Water Scenario | JZ1: Soil Components for Table 5/5.1 - Sub-surface, Non-potable Water Scenario | KN1: Soil Components for Table 5/5.1 - Sub-surface, Non-potable Water Scenario | LD1: Soil Components for Table 6/6.1 - Full Depth, Shallow Soils, Potable Water Scenario | LW1: Soil Components for Table 6/6.1 - Full Depth, Shallow Soils, Potable Water Scenario | MP1: Soil Components for Table 6/6.1 - Full Depth, Shallow Soils, Potable Water Scenario | NK1: Soil Components for Table 6/6.1 - Full Depth, Shallow Soils, Potable Water Scenario | OD1: Soil Components for Table 6/6.1 - Full Depth, Shallow Soils, Potable Water Scenario | OW1: Soil Components for Table 6/6.1 - Full Depth, Shallow Soils, Potable Water Scenario | PR1: Soil Components for Table 7/7.1 - Full Depth, Shallow Soils, Non-potable Water Scenario | QI1: Soil Components for Table 7/7.1 - Full Depth, Shallow Soils, Non-potable Water Scenario | RB1: Soil Components for Table 7/7.1- Full Depth, Shallow Soils, Non-potable Water Scenario | RS1: Soil Components for Table 7/7.1 - Full Depth, Shallow Soils, Non-potable Water Scenario | SM1: Soil Components for Table 8/8.1 - Within 30 M of a Water Body and Potable Water Scenario | TG1: Soil Components for Table 8/8.1 - Within 30 M of a Water Body and Potable Water Scenario | UA1: Soil Components for Table 8/8.1 - Within 30 M of a Water Body and Potable Water Scenario | UW1: Soil Components for Table 8/8.1 - Within 30 M of a Water Body and Potable Water Scenario | VQ1: Soil Components for Table 8/8.1 - Within 30 M of a Water Body and Potable Water Scenario | WK1: Soil Components for Table 8/8.1 - Within 30 M of a Water Body and Potable Water Scenario | XG1: Soil Components for Table 9/9.1 - Within 30 M of a Water Body and Non-potable Water Scenario | XY1: Soil Components for Table 9/9.1 - Within 30 M of a Water Body and Non-potable Water Scenario | YS1: Soil Components for Table 9/9.1 - Within 30 M of a Water Body and Non-potable Water Scenario | ZK1: Soil Components for Table 9/9.1 - Within 30 M of a Water Body and Non-potable Water Scenario | AAF1: Soil Components for Full Depth, Potable Water Scenario | AAU1: Soil Components for Full Depth, Potable Water Scenario
A2: Coarse Textured Soil | C2: Agricultural Land Use (ug/g) | T2: Coarse Textured Soil | V2: Residential /Parkland Land Use (ug/g) | AM2: Coarse Textured Soil | AO2: Industrial/Commercial Land Use (ug/g) | BH2: Fine - Medium Textured Soil | BJ2: Agricultural Land Use (ug/g) | CA2: Fine - Medium Textured Soil | CC2: Residential /Parkland Land Use (ug/g) | CT2: Fine - Medium Textured Soil | CV2: Industrial/Commercial Land Use (ug/g) | DO2: Coarse Textured Soil | DQ2: Residential /Parkland Land Use (ug/g) | EF2: Coarse Textured Soil | EH2: Industrial/Commercial Land Use (ug/g) | EY2: Fine - Medium Textured Soil | FA2: Residential /Parkland Land Use (ug/g) | FP2: Fine - Medium Textured Soil | FR2: Industrial/Commercial Land Use (ug/g) | GI2: Coarse Textured Soil | GK2: Residential /Parkland Land Use (ug/g) | GY2: Coarse Textured Soil | HA2: Industrial/Commercial Land Use (ug/g) | HP2: Medium - Fine Textured Soil | HR2: Residential /Parkland Land Use (ug/g) | IF2: Medium - Fine Textured Soil | IH2: Industrial/Commercial Land Use (ug/g) | IW2: Coarse Textured Soil | IY2: Residential /Parkland Land Use (ug/g) | JK2: Coarse Textured Soil | JM2: Industrial/Commercial Land Use (ug/g) | JZ2: Medium - Fine Textured Soil | KB2: Residential /Parkland Land Use (ug/g) | KN2: Medium - Fine Textured Soil | KP2: Industrial/Commercial Land Use (ug/g) | LD2: Coarse Textured Soil | LF2: Agricultural Land Use (ug/g) | LW2: Coarse Textured Soil | LY2: Residential /Parkland Land Use (ug/g) | MP2: Coarse Textured Soil | MR2: Industrial/Commercial Land Use (ug/g) | NK2: Fine - Medium Textured Soil | NM2: Agricultural Land Use (ug/g) | OD2: Fine - Medium Textured Soil | OF2: Residential /Parkland Land Use (ug/g) | OW2: Fine - Medium Textured Soil | OY2: Industrial/Commercial Land Use (ug/g) | PR2: Coarse Textured Soil | PT2: Residential /Parkland Land Use (ug/g) | QI2: Coarse Textured Soil | QK2: Industrial/Commercial Land Use (ug/g) | RB2: Fine - Medium Textured Soil | RD2: Residential /Parkland Land Use (ug/g) | RS2: Fine - Medium Textured Soil | RU2: Industrial/Commercial Land Use (ug/g) | SM2: Coarse Textured Soil | SO2: Agricultural and Other Land Use (ug/g) | TG2: Coarse Textured Soil | TH2: Res/Park/Inst Land Uses (ug/g) | UA2: Coarse Textured Soil | UB2: Com/Ind/Comm Land Uses (ug/g) | UW2: F/M Textured Soil | UY2: Agricultural and Other Land Use (ug/g) | VQ2: F/M Textured Soil | VR2: Res/Park/Inst Land Uses (ug/g) | WK2: F/M Textured Soil | WL2: Com/Ind/Comm Land Uses (ug/g) | XG2: Coarse Textured Soil | XH2: Res/Park/Inst Land Uses (ug/g) | XY2: Coarse Textured Soil | XZ2: Com/Ind/Comm Land Uses (ug/g) | YS2: F/M Textured Soil | YT2: Res/Park/Inst Land Uses (ug/g) | ZK2: F/M Textured Soil | ZL2: Com/Ind/Comm Land Uses (ug/g) | AAF2: Lowest | AAG2: Agricultural Land Use (ug/g) | AAU2: Lowest | AAV2: RPI and ICC Land Use (ug/g)
A3: =IF('BRAT Output'!G25="","(Before using any table in this tab, please activate the use of BRAT by selecting 'Yes' in Cells 16, 18 and 20 of 'BRAT Input' Tab)", 'BRAT Output'!G25&" - Component values are derived based on site info listed in the summary table of 'BRAT Ouput' tab") -> (Before using any table in this tab, please activate the use of BRAT by selecting 'Yes' in Cells 16, 18 and 20 of 'BRAT Input' Tab)
A4: Rounded to | B4: 2 | C4: significant digits | F4: Leachate Multiplier: | H4: 1000
B5: MOE | C5: Mass. | D5: Ont. Soil | E5: Plants & | F5: Mammals | G5: Soil Contact | H5: Soil Leaching | M5: Indoor Air | N5: Indoor Air | O5: Outdoor | P5: Free Phase | Q5: Soil Odour | R5: Leaching | U5: MOE | V5: Mass. | W5: Ont. Soil | X5: Plants & | Y5: Mammals | Z5: Soil Contact | AA5: Soil Leaching | AF5: Indoor Air | AG5: Indoor Air | AH5: Outdoor | AI5: Free Phase | AJ5: Soil Odour | AK5: Leaching | AN5: MOE | AO5: Mass. | AP5: Ont. Soil | AQ5: Plants & | AR5: Mammals | AS5: Soil Contact | AT5: Soil Contact | AU5: Soil Leaching | BB5: Indoor Air | BC5: Indoor Air | BD5: Outdoor | BE5: Free Phase | BF5: Leaching | BI5: MOE | BJ5: Mass. | BK5: Ont. Soil | BL5: Plants & | BM5: Mammals | BN5: Soil Contact | BO5: Soil Leaching | BT5: Indoor Air | BU5: Indoor Air | BV5: Outdoor | BW5: Free Phase | BX5: Soil Odour | BY5: Leaching | CB5: MOE | CC5: Mass. | CD5: Ont. Soil | CE5: Plants & | CF5: Mammals | CG5: Soil Contact | CH5: Soil Leaching | CM5: Indoor Air | CN5: Indoor Air | CO5: Outdoor | CP5: Free Phase | CQ5: Soil Odour | CR5: Leaching | CU5: MOE | CV5: Mass. | CW5: Ont. Soil | CX5: Plants & | CY5: Mammals | CZ5: Soil Contact | DA5: Soil Contact | DB5: Soil Leaching | DI5: Indoor Air | DJ5: Indoor Air | DK5: Outdoor | DL5: Free Phase | DM5: Leaching | DP5: MOE | DQ5: Mass. | DR5: Ont. Soil | DS5: Plants & | DT5: Mammals | DU5: Soil Contact | DV5: Soil Leaching | DY5: Indoor Air | DZ5: Indoor Air | EA5: Outdoor | EB5: Free Phase | EC5: Soil Odour | ED5: Leaching | EG5: MOE | EH5: Mass. | EI5: Ont. Soil | EJ5: Plants & | EK5: Mammals | EL5: Soil Contact | EM5: Soil Contact | EN5: Soil Leaching | ES5: Indoor Air | ET5: Indoor Air | EU5: Outdoor | EV5: Free Phase | EW5: Leaching | EZ5: MOE | FA5: Mass. | FB5: Ont. Soil | FC5: Plants & | FD5: Mammals | FE5: Soil Contact | FF5: Soil Leaching | FI5: Indoor Air | FJ5: Indoor Air | FK5: Outdoor | FL5: Free Phase | FM5: Soil Odour | FN5: Leaching | FQ5: MOE | FR5: Mass. | FS5: Ont. Soil | FT5: Plants & | FU5: Mammals | FV5: Soil Contact | FW5: Soil Contact | FX5: Soil Leaching | GC5: Indoor Air | GD5: Indoor Air | GE5: Outdoor | GF5: Free Phase | GG5: Leaching | GJ5: MOE | GK5: Mass. | GL5: Ont. Soil | GM5: Soil Contact | GN5: Soil Contact | GO5: Soil Leaching | GT5: Indoor Air | GU5: Free Phase | GV5: Indoor Air | GW5: Leaching | GZ5: MOE | HA5: Mass. | HB5: Ont. Soil | HC5: Soil Contact | HD5: Soil Leaching | HK5: Indoor Air | HL5: Free Phase | HM5: Indoor Air | HN5: Leaching | HQ5: MOE | HR5: Mass. | HS5: Ont. Soil | HT5: Soil Contact | HU5: Soil Contact | HV5: Soil Leaching | IA5: Indoor Air | IB5: Free Phase | IC5: Indoor Air | ID5: Leaching | IG5: MOE | IH5: Mass. | II5: Ont. Soil | IJ5: Soil Contact | IK5: Soil Leaching | IR5: Indoor Air | IS5: Free Phase | IT5: Indoor Air | IU5: Leaching | IX5: MOE | IY5: Mass. | IZ5: Ont. Soil | JA5: Soil Contact | JB5: Soil Contact | JC5: Soil Leaching | JF5: Indoor Air | JG5: Free Phase | JH5: Indoor Air | JI5: Leaching | JL5: MOE | JM5: Mass. | JN5: Ont. Soil | JO5: Soil Contact | JP5: Soil Leaching | JU5: Indoor Air | JV5: Free Phase | JW5: Indoor Air | JX5: Leaching | KA5: MOE | KB5: Mass. | KC5: Ont. Soil | KD5: Soil Contact | KE5: Soil Contact | KF5: Soil Leaching | KI5: Indoor Air | KJ5: Free Phase | KK5: Indoor Air | KL5: Leaching | KO5: MOE | KP5: Mass. | KQ5: Ont. Soil | KR5: Soil Contact | KS5: Soil Leaching | KX5: Indoor Air | KY5: Free Phase | KZ5: Indoor Air | LA5: Leaching | LE5: MOE | LF5: Mass. | LG5: Ont. Soil | LH5: Plants & | LI5: Mammals | LJ5: Soil Contact | LK5: Soil Leaching | LP5: Indoor Air | LQ5: Indoor Air | LR5: Outdoor | LS5: Free Phase | LT5: Soil Odour | LU5: Leaching | LX5: MOE | LY5: Mass. | LZ5: Ont. Soil | MA5: Plants & | MB5: Mammals | MC5: Soil Contact | MD5: Soil Leaching | MI5: Indoor Air | MJ5: Indoor Air | MK5: Outdoor | ML5: Free Phase | MM5: Soil Odour | MN5: Leaching | MQ5: MOE | MR5: Mass. | MS5: Ont. Soil | MT5: Plants & | MU5: Mammals | MV5: Soil Contact | MW5: Soil Contact | MX5: Soil Leaching | NE5: Indoor Air | NF5: Indoor Air | NG5: Outdoor | NH5: Free Phase | NI5: Leaching | NL5: MOE | NM5: Mass. | NN5: Ont. Soil | NO5: Plants & | NP5: Mammals | NQ5: Soil Contact | NR5: Soil Leaching | NW5: Indoor Air | NX5: Indoor Air | NY5: Outdoor | NZ5: Free Phase | OA5: Soil Odour | OB5: Leaching | OE5: MOE | OF5: Mass. | OG5: Ont. Soil | OH5: Plants & | OI5: Mammals | OJ5: Soil Contact | OK5: Soil Leaching | OP5: Indoor Air | OQ5: Indoor Air | OR5: Outdoor | OS5: Free Phase | OT5: Soil Odour | OU5: Leaching | OX5: MOE | OY5: Mass. | OZ5: Ont. Soil | PA5: Plants & | PB5: Mammals | PC5: Soil Contact | PD5: Soil Contact | PE5: Soil Leaching | PL5: Indoor Air | PM5: Indoor Air | PN5: Outdoor | PO5: Free Phase | PP5: Leaching | PS5: MOE | PT5: Mass. | PU5: Ont. Soil | PV5: Plants & | PW5: Mammals | PX5: Soil Contact | PY5: Soil Leaching | QB5: Indoor Air | QC5: Indoor Air | QD5: Outdoor | QE5: Free Phase | QF5: Soil Odour | QG5: Leaching | QJ5: MOE | QK5: Mass. | QL5: Ont. Soil | QM5: Plants & | QN5: Mammals | QO5: Soil Contact | QP5: Soil Contact | QQ5: Soil Leaching | QV5: Indoor Air | QW5: Indoor Air | QX5: Outdoor | QY5: Free Phase | QZ5: Leaching | RC5: MOE | RD5: Mass. | RE5: Ont. Soil | RF5: Plants & | RG5: Mammals | RH5: Soil Contact | RI5: Soil Leaching | RL5: Indoor Air | RM5: Indoor Air | RN5: Outdoor | RO5: Free Phase | RP5: Soil Odour | RQ5: Leaching | RT5: MOE | RU5: Mass. | RV5: Ont. Soil | RW5: Plants & | RX5: Mammals | RY5: Soil Contact | RZ5: Soil Contact | SA5: Soil Leaching | SF5: Indoor Air | SG5: Indoor Air | SH5: Outdoor | SI5: Free Phase | SJ5: Leaching | SN5: MOE | SO5: Mass. | SP5: Ont. Soil | SQ5: Sediment | SR5: Plants & | SS5: Mammals | ST5: Soil Contact | SU5: Soil Leaching | SZ5: Indoor Air | TA5: Indoor Air | TB5: Outdoor | TC5: Free Phase | TD5: Soil Odour | TE5: Leaching | TH5: MOE | TI5: Mass. | TJ5: Ont. Soil | TK5: Sediment | TL5: Plants & | TM5: Mammals | TN5: Soil Contact | TO5: Soil Leaching | TT5: Indoor Air | TU5: Indoor Air | TV5: Outdoor | TW5: Free Phase | TX5: Soil Odour | TY5: Leaching | UB5: MOE | UC5: Mass. | UD5: Ont. Soil | UE5: Sediment | UF5: Plants & | UG5: Mammals | UH5: Soil Contact | UI5: Soil Contact | UJ5: Soil Leaching | UQ5: Indoor Air | UR5: Indoor Air | US5: Outdoor | UT5: Free Phase | UU5: Leaching | UX5: MOE | UY5: Mass. | UZ5: Ont. Soil | VA5: Sediment | VB5: Plants & | VC5: Mammals | VD5: Soil Contact | VE5: Soil Leaching | VJ5: Indoor Air | VK5: Indoor Air | VL5: Outdoor | VM5: Free Phase | VN5: Soil Odour | VO5: Leaching | VR5: MOE | VS5: Mass. | VT5: Ont. Soil | VU5: Sediment | VV5: Plants & | VW5: Mammals | VX5: Soil Contact | VY5: Soil Leaching | WD5: Indoor Air | WE5: Indoor Air | WF5: Outdoor | WG5: Free Phase | WH5: Soil Odour | WI5: Leaching | WL5: MOE | WM5: Mass. | WN5: Ont. Soil | WO5: Sediment | WP5: Plants & | WQ5: Mammals | WR5: Soil Contact | WS5: Soil Contact | WT5: Soil Leaching | XA5: Indoor Air | XB5: Indoor Air | XC5: Outdoor | XD5: Free Phase | XE5: Leaching | XH5: MOE | XI5: Mass. | XJ5: Ont. Soil | XK5: Sediment | XL5: Plants & | XM5: Mammals | XN5: Soil Contact | XO5: Soil Leaching | XR5: Indoor Air | XS5: Indoor Air | XT5: Outdoor | XU5: Free Phase | XV5: Soil Odour | XW5: Leaching | XZ5: MOE | YA5: Mass. | YB5: Ont. Soil | YC5: Sediment | YD5: Plants & | YE5: Mammals | YF5: Soil Contact | YG5: Soil Contact | YH5: Soil Leaching | YM5: Indoor Air | YN5: Indoor Air | YO5: Outdoor | YP5: Free Phase | YQ5: Leaching | YT5: MOE | YU5: Mass. | YV5: Ont. Soil | YW5: Sediment | YX5: Plants & | YY5: Mammals | YZ5: Soil Contact | ZA5: Soil Leaching | ZD5: Indoor Air | ZE5: Indoor Air | ZF5: Outdoor | ZG5: Free Phase | ZH5: Soil Odour | ZI5: Leaching | ZL5: MOE | ZM5: Mass. | ZN5: Ont. Soil | ZO5: Sediment | ZP5: Plants & | ZQ5: Mammals | ZR5: Soil Contact | ZS5: Soil Contact | ZT5: Soil Leaching | ZY5: Indoor Air | ZZ5: Indoor Air | AAA5: Outdoor | AAB5: Free Phase | AAC5: Leaching | AAG5: Plants & | AAH5: Mammals | AAI5: Soil Contact | AAJ5: Soil Leaching | AAO5: Indoor Air | AAP5: Indoor Air | AAQ5: Outdoor | AAR5: Free Phase | AAS5: Soil Odour | AAV5: Plants & | AAW5: Mammals | AAX5: Soil Contact | AAY5: Soil Contact | AAZ5: Soil Contact | ABA5: Soil Leaching | ABF5: Indoor Air | ABG5: Indoor Air | ABH5: Outdoor Air | ABI5: Free Phase | ABJ5: Soil Odour
A6: Chemical Parameter | B6: Soil RL | C6: PQL | D6: Bkgrd | E6: Soil Org. | F6: & Birds | G6: S1 Risk | H6: S-GW1 | I6: S-GW1 (Odour)# | J6: S-GW2 | K6: S-GW2 (Odour) | L6: S-GW3 | M6: S-IA | N6: Odour | O6: Air | P6: Threshold | Q6: S-Nose | R6: Required | T6: Chemical Parameter | U6: Soil RL | V6: PQL | W6: Bkgrd | X6: Soil Org. | Y6: & Birds | Z6: S1 Risk | AA6: S-GW1 | AB6: S-GW1 (Odour)# | AC6: S-GW2 | AD6: S-GW2 (Odour) | AE6: S-GW3 | AF6: S-IA | AG6: Odour | AH6: Air | AI6: Threshold | AJ6: S-Nose | AK6: Required | AM6: Chemical Parameter | AN6: Soil RL | AO6: PQL | AP6: Bkgrd | AQ6: Soil Org. | AR6: & Birds | AS6: S2 Risk | AT6: S3 Risk | AU6: S-GW1 | AV6: S-GW1 (Odour)# | AW6: S-GW2-RPI | AX6: S-GW2 (RPI Odour) | AY6: S-GW2-ICC | AZ6: S-GW2 (ICC Odour) | BA6: S-GW3 | BB6: S-IA | BC6: Odour | BD6: Air | BE6: Threshold | BF6: Required | BH6: Chemical Parameter | BI6: Soil RL | BJ6: PQL | BK6: Bkgrd | BL6: Soil Org. | BM6: & Birds | BN6: S1 Risk | BO6: S-GW1 | BP6: S-GW1 (Odour)# | BQ6: S-GW2 | BR6: S-GW2 (Odour) | BS6: S-GW3 | BT6: S-IA | BU6: Odour | BV6: Air | BW6: Threshold | BX6: S-Nose | BY6: Required | CA6: Chemical Parameter | CB6: Soil RL | CC6: PQL | CD6: Bkgrd | CE6: Soil Org. | CF6: & Birds | CG6: S1 Risk | CH6: S-GW1 | CI6: S-GW1 (Odour)# | CJ6: S-GW2 | CK6: S-GW2 (Odour) | CL6: S-GW3 | CM6: S-IA | CN6: Odour | CO6: Air | CP6: Threshold | CQ6: S-Nose | CR6: Required | CT6: Chemical Parameter | CU6: Soil RL | CV6: PQL | CW6: Bkgrd | CX6: Soil Org. | CY6: & Birds | CZ6: S2 Risk | DA6: S3 Risk | DB6: S-GW1 | DC6: S-GW1 (Odour)# | DD6: S-GW2-RPI | DE6: S-GW2 (RPI Odour) | DF6: S-GW2-ICC | DG6: S-GW1 (ICC Odour) | DH6: S-GW3 | DI6: S-IA | DJ6: Odour | DK6: Air | DL6: Threshold | DM6: Required | DO6: Chemical Parameter | DP6: Soil RL | DQ6: PQL | DR6: Bkgrd | DS6: Soil Org. | DT6: & Birds | DU6: S1 Risk | DV6: S-GW2 | DW6: S-GW2 (Odour) | DX6: S-GW3 | DY6: S-IA | DZ6: Odour | EA6: Air | EB6: Threshold | EC6: S-Nose | ED6: Required | EF6: Chemical Parameter | EG6: Soil RL | EH6: PQL | EI6: Bkgrd | EJ6: Soil Org. | EK6: & Birds | EL6: S2 Risk | EM6: S3 Risk | EN6: S-GW2-RPI | EO6: S-GW2 (RPI Odour) | EP6: S-GW2-ICC | EQ6: S-GW2 (ICC Odour) | ER6: S-GW3 | ES6: S-IA | ET6: Odour | EU6: Air | EV6: Threshold | EW6: Required | EY6: Chemical Parameter | EZ6: Soil RL | FA6: PQL | FB6: Bkgrd | FC6: Soil Org. | FD6: & Birds | FE6: S1 Risk | FF6: S-GW2 | FG6: S-GW2 (Odour) | FH6: S-GW3 | FI6: S-IA | FJ6: Odour | FK6: Air | FL6: Threshold | FM6: S-Nose | FN6: Required | FP6: Chemical Parameter | FQ6: Soil RL | FR6: PQL | FS6: Bkgrd | FT6: Soil Org. | FU6: & Birds | FV6: S2 Risk | FW6: S3 Risk | FX6: S-GW2-RPI | FY6: S-GW2 (RPI Odour) | FZ6: S-GW2-ICC | GA6: S-GW2 (ICC Odour) | GB6: S-GW3 | GC6: S-IA | GD6: Odour | GE6: Air | GF6: Threshold | GG6: Required | GI6: Chemical Parameter | GJ6: Soil RL | GK6: PQL | GL6: Bkgrd | GM6: S2 Risk | GN6: S3 Risk | GO6: S-GW1 | GP6: S-GW1 (Odour)# | GQ6: S-GW2 | GR6: S-GW2 (Odour) | GS6: S-GW3 | GT6: S-IA | GU6: Threshold | GV6: Odour | GW6: Required | GY6: Chemical Parameter | GZ6: Soil RL | HA6: PQL | HB6: Bkgrd | HC6: S3 Risk | HD6: S-GW1 | HE6: S-GW1 (Odour)# | HF6: S-GW2-RPI | HG6: S-GW1 (RPI Odour) | HH6: S-GW2-ICC | HI6: S-GW1 (ICC Odour) | HJ6: S-GW3 | HK6: S-IA | HL6: Threshold | HM6: Odour | HN6: Required | HP6: Chemical Parameter | HQ6: Soil RL | HR6: PQL | HS6: Bkgrd | HT6: S2 Risk | HU6: S3 Risk | HV6: S-GW1 | HW6: S-GW1 (Odour)# | HX6: S-GW2 | HY6: S-GW2 (Odour) | HZ6: S-GW3 | IA6: S-IA | IB6: Threshold | IC6: Odour | ID6: Required | IF6: Chemical Parameter | IG6: Soil RL | IH6: PQL | II6: Bkgrd | IJ6: S3 Risk | IK6: S-GW1 | IL6: S-GW1 (Odour)# | IM6: S-GW2-RPI | IN6: S-GW2 (RPI Odour) | IO6: S-GW2-ICC | IP6: S-GW2 (ICC Odour) | IQ6: S-GW3 | IR6: S-IA | IS6: Threshold | IT6: Odour | IU6: Required | IW6: Chemical Parameter | IX6: Soil RL | IY6: PQL | IZ6: Bkgrd | JA6: S2 Risk | JB6: S3 Risk | JC6: S-GW2 | JD6: S-GW2 (Odour) | JE6: S-GW3 | JF6: S-IA | JG6: Threshold | JH6: Odour | JI6: Required | JK6: Chemical Parameter | JL6: Soil RL | JM6: PQL | JN6: Bkgrd | JO6: S3 Risk | JP6: S-GW2-RPI | JQ6: S-GW2 (RPI Odour) | JR6: S-GW2-ICC | JS6: S-GW2 (ICC Odour) | JT6: S-GW3 | JU6: S-IA | JV6: Threshold | JW6: Odour | JX6: Required | JZ6: Chemical Parameter | KA6: Soil RL | KB6: PQL | KC6: Bkgrd | KD6: S2 Risk | KE6: S3 Risk | KF6: S-GW2 | KG6: S-GW2 (Odour) | KH6: S-GW3 | KI6: S-IA | KJ6: Threshold | KK6: Odour | KL6: Required | KN6: Chemical Parameter | KO6: Soil RL | KP6: PQL | KQ6: Bkgrd | KR6: S3 Risk | KS6: S-GW2-ICC | KT6: S-GW2 (ICC Odour) | KU6: S-GW2-RPI | KV6: S-GW2 (RPI Odour) | KW6: S-GW3 | KX6: S-IA | KY6: Threshold | KZ6: Odour | LA6: Required | LD6: Chemical Parameter | LE6: Soil RL | LF6: PQL | LG6: Bkgrd | LH6: Soil Org. | LI6: & Birds | LJ6: S1 Risk | LK6: S-GW1 | LL6: S-GW1 (Odour)# | LM6: S-GW2 | LN6: S-GW2 (Odour) | LO6: S-GW3 | LP6: S-IA | LQ6: Odour | LR6: Air | LS6: Threshold | LT6: S-Nose | LU6: Required | LW6: Chemical Parameter | LX6: Soil RL | LY6: PQL | LZ6: Bkgrd | MA6: Soil Org. | MB6: & Birds | MC6: S1 Risk | MD6: S-GW1 | ME6: S-GW1 (Odour)# | MF6: S-GW2 | MG6: S-GW2 (Odour) | MH6: S-GW3 | MI6: S-IA | MJ6: Odour | MK6: Air | ML6: Threshold | MM6: S-Nose | MN6: Required | MP6: Chemical Parameter | MQ6: Soil RL | MR6: PQL | MS6: Bkgrd | MT6: Soil Org. | MU6: & Birds | MV6: S2 Risk | MW6: S3 Risk | MX6: S-GW1 | MY6: S-GW1 (Odour)# | MZ6: S-GW2-RPI | NA6: S-GW2 (RPI Odour) | NB6: S-GW2-ICC | NC6: S-GW2 (ICC Odour) | ND6: S-GW3 | NE6: S-IA | NF6: Odour | NG6: Air | NH6: Threshold | NI6: Required | NK6: Chemical Parameter | NL6: Soil RL | NM6: PQL | NN6: Bkgrd | NO6: Soil Org. | NP6: & Birds | NQ6: S1 Risk | NR6: S-GW1 | NS6: S-GW1 (Odour)# | NT6: S-GW2 | NU6: S-GW2 (Odour) | NV6: S-GW3 | NW6: S-IA | NX6: Odour | NY6: Air | NZ6: Threshold | OA6: S-Nose | OB6: Required | OD6: Chemical Parameter | OE6: Soil RL | OF6: PQL | OG6: Bkgrd | OH6: Soil Org. | OI6: & Birds | OJ6: S1 Risk | OK6: S-GW1 | OL6: S-GW1 (Odour)# | OM6: S-GW2 | ON6: S-GW2 (Odour) | OO6: S-GW3 | OP6: S-IA | OQ6: Odour | OR6: Air | OS6: Threshold | OT6: S-Nose | OU6: Required | OW6: Chemical Parameter | OX6: Soil RL | OY6: PQL | OZ6: Bkgrd | PA6: Soil Org. | PB6: & Birds | PC6: S2 Risk | PD6: S3 Risk | PE6: S-GW1 | PF6: S-GW1 (Odour)# | PG6: S-GW2-RPI | PH6: S-GW2 (RPI Odour) | PI6: S-GW2-ICC | PJ6: S-GW2 (ICC Odour) | PK6: S-GW3 | PL6: S-IA | PM6: Odour | PN6: Air | PO6: Threshold | PP6: Required | PR6: Chemical Parameter | PS6: Soil RL | PT6: PQL | PU6: Bkgrd | PV6: Soil Org. | PW6: & Birds | PX6: S1 Risk | PY6: S-GW2 | PZ6: S-GW2 (Odour) | QA6: S-GW3 | QB6: S-IA | QC6: Odour | QD6: Air | QE6: Threshold | QF6: S-Nose | QG6: Required | QI6: Chemical Parameter | QJ6: Soil RL | QK6: PQL | QL6: Bkgrd | QM6: Soil Org. | QN6: & Birds | QO6: S2 Risk | QP6: S3 Risk | QQ6: S-GW2-RPI | QR6: S-GW2 (RPI Odour) | QS6: S-GW2-ICC | QT6: S-GW2 (ICC Odour) | QU6: S-GW3 | QV6: S-IA | QW6: Odour | QX6: Air | QY6: Threshold | QZ6: Required | RB6: Chemical Parameter | RC6: Soil RL | RD6: PQL | RE6: Bkgrd | RF6: Soil Org. | RG6: & Birds | RH6: S1 Risk | RI6: S-GW2 | RJ6: S-GW2 (Odour) | RK6: S-GW3 | RL6: S-IA | RM6: Odour | RN6: Air | RO6: Threshold | RP6: S-Nose | RQ6: Required | RS6: Chemical Parameter | RT6: Soil RL | RU6: PQL | RV6: Bkgrd | RW6: Soil Org. | RX6: & Birds | RY6: S2 Risk | RZ6: S3 Risk | SA6: S-GW2-RPI | SB6: S-GW2 (RPI Odour) | SC6: S-GW2-ICC | SD6: S-GW2 (ICC Odour) | SE6: S-GW3 | SF6: S-IA | SG6: Odour | SH6: Air | SI6: Threshold | SJ6: Required | SM6: Chemical Parameter | SN6: Soil RL | SO6: PQL | SP6: Bkgrd | SQ6: Quality | SR6: Soil Org. | SS6: & Birds | ST6: S1 Risk | SU6: S-GW1 | SV6: S-GW1 (Odour)# | SW6: S-GW2 | SX6: S-GW2 (Odour) | SY6: S-GW3 | SZ6: S-IA | TA6: Odour | TB6: Air | TC6: Threshold | TD6: S-Nose | TE6: Required | TG6: Chemical Parameter | TH6: Soil RL | TI6: PQL | TJ6: Bkgrd | TK6: Quality | TL6: Soil Org. | TM6: & Birds | TN6: S1 Risk | TO6: S-GW1 | TP6: S-GW1 (Odour)# | TQ6: S-GW2 | TR6: S-GW2 (Odour) | TS6: S-GW3 | TT6: S-IA | TU6: Odour | TV6: Air | TW6: Threshold | TX6: S-Nose | TY6: Required | UA6: Chemical Parameter | UB6: Soil RL | UC6: PQL | UD6: Bkgrd | UE6: Quality | UF6: Soil Org. | UG6: & Birds | UH6: S2 Risk | UI6: S3 Risk | UJ6: S-GW1 | UK6: S-GW1 (Odour)# | UL6: S-GW2-RPI | UM6: S-GW2 (RPI Odour) | UN6: S-GW2-ICC | UO6: S-GW2 (ICC Odour) | UP6: S-GW3 | UQ6: S-IA | UR6: Odour | US6: Air | UT6: Threshold | UU6: Required | UW6: Chemical Parameter | UX6: Soil RL | UY6: PQL | UZ6: Bkgrd | VA6: Quality | VB6: Soil Org. | VC6: & Birds | VD6: S1 Risk | VE6: S-GW1 | VF6: S-GW1 (Odour)# | VG6: S-GW2 | VH6: S-GW2 (Odour) | VI6: S-GW3 | VJ6: S-IA | VK6: Odour | VL6: Air | VM6: Threshold | VN6: S-Nose | VO6: Required | VQ6: Chemical Parameter | VR6: Soil RL | VS6: PQL | VT6: Bkgrd | VU6: Quality | VV6: Soil Org. | VW6: & Birds | VX6: S1 Risk | VY6: S-GW1 | VZ6: S-GW1 (Odour)# | WA6: S-GW2 | WB6: S-GW2 (Odour) | WC6: S-GW3 | WD6: S-IA | WE6: Odour | WF6: Air | WG6: Threshold | WH6: S-Nose | WI6: Required | WK6: Chemical Parameter | WL6: Soil RL | WM6: PQL | WN6: Bkgrd | WO6: Quality | WP6: Soil Org. | WQ6: & Birds | WR6: S2 Risk | WS6: S3 Risk | WT6: S-GW1 | WU6: S-GW1 (Odour)# | WV6: S-GW2-RPI | WW6: S-GW2 (RPI Odour) | WX6: S-GW2-ICC | WY6: S-GW2 (ICC Odour) | WZ6: S-GW3 | XA6: S-IA | XB6: Odour | XC6: Air | XD6: Threshold | XE6: Required | XG6: Chemical Parameter | XH6: Soil RL | XI6: PQL | XJ6: Bkgrd | XK6: Quality | XL6: Soil Org. | XM6: & Birds | XN6: S1 Risk | XO6: S-GW2 | XP6: S-GW2 (Odour) | XQ6: S-GW3 | XR6: S-IA | XS6: Odour | XT6: Air | XU6: Threshold | XV6: S-Nose | XW6: Required | XY6: Chemical Parameter | XZ6: Soil RL | YA6: PQL | YB6: Bkgrd | YC6: Quality | YD6: Soil Org. | YE6: & Birds | YF6: S2 Risk | YG6: S3 Risk | YH6: S-GW2-RPI | YI6: S-GW2 (RPI Odour) | YJ6: S-GW2-ICC | YK6: S-GW2 (ICC Odour) | YL6: S-GW3 | YM6: S-IA | YN6: Odour | YO6: Air | YP6: Threshold | YQ6: Required | YS6: Chemical Parameter | YT6: Soil RL | YU6: PQL | YV6: Bkgrd | YW6: Quality | YX6: Soil Org. | YY6: & Birds | YZ6: S1 Risk | ZA6: S-GW2 | ZB6: S-GW2 (Odour) | ZC6: S-GW3 | ZD6: S-IA | ZE6: Odour | ZF6: Air | ZG6: Threshold | ZH6: S-Nose | ZI6: Required | ZK6: Chemical Parameter | ZL6: Soil RL | ZM6: PQL | ZN6: Bkgrd | ZO6: Quality | ZP6: Soil Org. | ZQ6: & Birds | ZR6: S2 Risk | ZS6: S3 Risk | ZT6: S-GW2-RPI | ZU6: S-GW2 (RPI Odour) | ZV6: S-GW2-ICC | ZW6: S-GW2 (ICC Odour) | ZX6: S-GW3 | ZY6: S-IA | ZZ6: Odour | AAA6: Air | AAB6: Threshold | AAC6: Required | AAF6: Chemical Parameter | AAG6: Soil Org. | AAH6: & Birds | AAI6: S1 Risk | AAJ6: S-GW1 | AAK6: S-GW1 (Odour)# | AAL6: S-GW2 | AAM6: S-GW2 (Odour) | AAN6: S-GW3 | AAO6: S-IA | AAP6: Odour | AAQ6: Air | AAR6: Threshold | AAS6: S-Nose | AAU6: Chemical Parameter | AAV6: Soil Org. | AAW6: & Birds | AAX6: S1 Risk | AAY6: S2 Risk | AAZ6: S3 Risk | ABA6: S-GW1 | ABB6: S-GW1 (Odour)# | ABC6: S-GW2 | ABD6: S-GW2 (Odour) | ABE6: S-GW3 | ABF6: S-IA | ABG6: Odour | ABI6: Threshold | ABJ6: S-Nose
... 8 more rows

Sheet Tier 2 Input (hidden)
A1: MGRA (Tier 2) Input Site Descriptors (determines correct Table) | B1: IMPORTANT - Ensure that "Analysis Tool Pak" and "Solver Add-in" are activated (Tools/Add-Ins...) | F1: Approved Model, November 1st, 2016 © Queen's Printer for Ontario, 2016 PIBS 7381e01 | S1: Land Use | V1: Soil Texture | X1: Potable | Y1: Full Depth | Z1: Within 30 m of surface water | AC1: More than 2 m | AE1: Number of frozen ground days per year
S2: =IF(OR(B30="Y",B31="Y",B35="Y"),"","Agricultural or Other") -> Agricultural or Other | V2: Coarse | X2: Non-potable | Y2: Stratified | Z2: More than 30 m to surface water | AC2: Less than 2 m | AE2: 50
A3: Proposed Land Use | B3: ='BRAT Input'!AC31 -> Agricultural or Other | F3: =IF(AND(OR(B35="Y",B36="Y"),J3="N",OR(B3=S3,B3=S2)),"ERROR, CANNOT USE with SVIMS unless Property Management Oversight","") ->  | G3: Does Property Have Property Management Oversight | J3: N | S3: =IF(OR(B31="Y",B35="Y"),"","Residential/Parkland/Institutional") -> Residential/Parkland/Institutional | V3: Medium/Fine | AE3: 70
A4: Site Soil Texture | B4: ='BRAT Input'!AC33 -> Coarse | S4: Industrial/Commercial/Community | AE4: 90
A5: Is the ground water potable or non-potable? | B5: ='BRAT Input'!AC35 -> Potable | AE5: 100
A6: Is this a stratified clean-up? | B6: ='BRAT Input'!AC37 -> Full Depth | AE6: 110
A7: Is site within 30 m of surface water? | B7: ='BRAT Input'!AC39 -> Within 30 m of surface water | G7: ="You Are Using " &#REF! ->  | AE7: 130
... 6 more rows

Sheet Site Values - data input (hidden)
A1: Site Values: Data Inputs | B1: IMPORTANT - Ensure that "Analysis Tool Pak" and "Solver Add-in" are activated (Tools/Add-Ins...)
A2: This data input sheet for site variables populates the "Site Values used by Models" sheet. Input for GW3 model time is on latter sheet. | G2: For Alternative Source Size Calculations
A3: INPUT PARAMETERS | B3: Adjustable Parameters (from Tier 2 Input) in light blue | C3: For BRAT | E3: Default Values | G3: =IF($C$3="For MGRA",IF(OR(B17<>13,B18<>13,B19<>2,H17<>13,H18<>13,H19<>2),"Warning, Source Size Parameters Not at Default",""),"") -> 
A4: BUILDING PROPERTIES (based on USEPA J&E definitions)
B5: Residential | C5: Commercial &
C6: Industrial
A7: depth below grade to underside of basement slab (SIA&GW2) | B7: 158 | C7: 11.25 | D7: cm
... 7 more rows

Sheet Site Values used by Models (hidden)
A1: Site Values Used by Model
A3: SOIL TO INDOOR AIR PARAMETERS
B4: UNITS | C4: SYMBOL | D4: DEFAULT VALUE | E4: DEFAULT MED/FINE
A5: Average soil temperature SystemTemperature | B5: C | C5: Tss | D5: ='Site Values - data input'!$B$21 -> 15 | H5: =D5+273.15 -> 288.15
A6: Depth below grade to top of contamination (Residential) | B6: cm | C6: Lt | D6: ='Site Values - data input'!B39+'Site Values - data input'!B42+'Site Values - data input'!B50 -> 188.1
A7: Depth below grade to top of contamination (Commercial/Industrial) | B7: cm | C7: Lt(ind) | D7: ='Site Values - data input'!B40+'Site Values - data input'!B42+'Site Values - data input'!B50 -> 41.35
... 7 more rows

Sheet TRVs (hidden)
A1: Human Health Toxicity Reference Values
A2: CHEMICAL NAME | B2: CAS RN (Chemical Abstracts Service Registry Number) | C2: Oral Chronic TRV (mg/kg-day) | D2: Ref. | E2: Is the oral chronic non-cancer TRV based on reproductive or developmental effects? | F2: Oral Sub-chronic TRV (mg/kg-day) | G2: Ref. | H2: Inhalation Chronic TRV (mg/m3) | I2: Ref. | J2: Is the inhalation chronic non-cancer TRV based on reproductive or developmental effects? | K2: Inhalation Chronic RfD (mg/kg-day) | L2: Ref. | M2: Oral Slope Factor (mg/kg-day)-1 | N2: Ref. | O2: Oral Unit Risk (mg/L)-1 | P2: Ref. | Q2: Inhalation Slope Factor (mg/kg-day)-1 | R2: Ref. | S2: Inhalation Unit Risk (mg/m3)-1 | T2: Ref. | AB2: CAS RN (Chemical Abstracts Service Registry Number) | AC2: Oral Chronic TRV (mg/kg-day) | AD2: Ref. | AE2: Is the oral chronic non-cancer TRV based on reproductive or developmental effects? | AF2: Oral Sub-chronic TRV (mg/kg-day) | AG2: Ref. | AH2: Inhalation Chronic TRV (mg/m3) | AI2: Ref. | AJ2: Is the inhalation chronic non-cancer TRV based on reproductive or developmental effects? | AK2: Inhalation Chronic RfD (mg/kg-day) | AL2: Ref. | AM2: Oral Slope Factor (mg/kg-day)-1 | AN2: Ref. | AO2: Oral Unit Risk (mg/L)-1 | AP2: Ref. | AQ2: Inhalation Slope Factor (mg/kg-day)-1 | AR2: Ref. | AS2: Inhalation Unit Risk (mg/m3)-1 | AT2: Ref.
U5: subchronic inhal TRV (mg/m3) | AU5: subchronic inhal TRV (mg/m3)
V6: Ref. | AV6: basis
... 8 more rows

Sheet TRVs_Acute (hidden)
A1: Human Health Toxicity Reference Values Input Page for Acute Exposure | Q1: 5
A2: CHEMICAL NAME | B2: CAS RN (Chemical Abstracts Service Registry Number) | C2: Oral Acute TRV (mg/kg-day) | E2: Ref. | F2: Inhalation TRV (ppm) | G2: Inhalation TRV (mg/m3) | I2: Ref. | K2: Final Oral (Acute) TRV (mg/kg-day) | M2: Ref. | N2: Final Inhalation (Acute) TRV (ppm) | O2: Final Inhalation (Acute) TRV (mg/m3) | Q2: Ref.
D4: Is oral Acute TRV based on reproductive or developmental effects? | H4: Is inhalation Acute TRV based on reproductive or developmental effects? | L4: Is oral Acute TRV based on reproductive or developmental effects? | P4: Is inhalation Acute TRV based on reproductive or developmental effects?
... 8 more rows

Sheet Phys_Chem & Tox (hidden)
A1: Physical -Chemical Properties and Toxicity Values
A2: CHEMICAL NAME | B2: CAS RN (Chemical Abstracts Service Registry Number) | C2: Oral Chronic TRV (mg/kg-day) | D2: Ref. | E2: Is the oral chronic non-cancer TRV based on reproductive or developmental effects? | F2: Oral Sub-chronic TRV (mg/kg-day) | G2: Ref. | H2: Inhalation Chronic TRV (mg/m3) | I2: Ref. | J2: Is the inhalation chronic non-cancer TRV based on reproductive or developmental effects? | K2: Inhalation Chronic RfD (mg/kg-day) | L2: Ref. | M2: Oral Slope Factor (mg/kg-day)-1 | N2: Ref. | O2: Oral Unit Risk (mg/L)-1 | P2: Ref. | Q2: Inhalation Slope Factor (mg/kg-day)-1 | R2: Ref. | S2: Inhalation Unit Risk (mg/m3)-1 | T2: Ref. | X2: SOIL | Z2: WATER | AB2: Ref. | AC2: EPA Class | AD2: Date Withdrawn | AE2: Last Update | AG2: Soil to Outdoor Air Values (mg/kg) NOT USED | AH2: Soil MOE-LSB Reporting Limit (RL) (mg/kg) | AI2: Soil MASS. PQL (mg/kg) | AL2: Water MOE-LSB Reporting Limit (RL) (ug/L) | AM2: Water MASS PDL (ug/L) | AN2: Water MOE Reg 153/04 RL (ug/L) | AO2: Ontario Drinking Water Standard or Substitute (mg/L) | AP2: Ref. | AQ2: Ref. | AR2: Odour Threshold in Air (mg/m3) | AS2: Basis | AT2: Soil-to-Plant Dry Uptake (units) | AU2: Soil-to-Plant Wet Uptake (units) | AV2: Soil-Water Partition Coef.(cm3/g) | AW2: Permeability Constant (cm/hr) | AX2: Log of Octanol-Water Partition Coef. | AY2: Molecular Weight (g/mol) | AZ2: Vapour Pressure (mm Hg) | BA2: Organic | BB2: Adjusted Koc (Koc*2) | BE2: Pure | BF2: Maximum | BG2: Chemical half-life Vertical Transport, unsaturated, (days) | BH2: Chemical half-life Lateral Transport, saturated (days) | BK2: Henry's | BL2: Henry's | BO2: Enthalpy of
AJ3: OTR98 Value | AK3: OTR98 Value | BA3: carbon | BE3: component | BF3: Solubility | BI3: Empirical Correction Factor for Soil Vapour Degradation aka Bioattenuation Factor (BAF) | BK3: law constant | BL3: law constant | BM3: Normal | BO3: vaporization at | BP3: Lower Explosive/flammable Limit | BQ3: 50% of Lower Explosive/flammable Limit | BR3: Density | BT3: Is Drinking | BU3: Is Chemical
X4: GI Absorption Factor | Y4: Dermal Absorption Factor | Z4: GI Absorption Factor | AA4: Dermal Absorption Factor | AF4: Soil Allocation Factor | AJ4: Rural | AK4: Urban | BA4: partition | BC4: Diffusivity | BD4: Diffusivity | BE4: water | BF4: in typical | BJ4: Henry's | BK4: at reference | BL4: reference | BM4: boiling | BN4: Critical | BO4: the normal | BS4: Soil Allocation Factor for Inhalation | BT4: Water | BU4: classified
U5: subchronic inhal TRV (mg/m3) | W5: Minimum of Max indoor air and developmental indoor air | AJ5: mg/kg | AK5: mg/kg | BA5: coefficient, | BC5: in air, | BD5: in water, | BE5: solubility, | BF5: mixture | BJ5: law constant | BK5: temperature, | BL5: temperature, | BM5: point, | BN5: temperature, | BO5: boiling point, | BT5: Standard | BU5: as
V6: basis | BA6: Koc | BB6: Koc | BC6: Da | BD6: Dw | BE6: S | BF6: (Raoult's law) | BJ6: H' | BK6: H | BL6: TR | BM6: TB | BN6: TC | BO6: DHv,b | BP6: %V/V | BQ6: ug/m3 | BR6: g/cm3 | BT6: (Column AO) Based on Aesthic Objective? | BU6: biomagnifying?
BA7: (cm3/g) | BB7: (cm3/g) | BC7: (cm2/s) | BD7: (cm2/s) | BE7: (mg/L) | BF7: (ug/L) | BJ7: (unitless) | BK7: (atm-m3/mol) | BL7: (oC) | BM7: (oK) | BN7: (oK) | BO7: (cal/mol)
... 8 more rows

Sheet Exposure Calculations (hidden)
A1: Brownfield Receptor Parameters Selected and Receptor Exposure Rates Calculated | H1: Table 4.2 | M1: Table 5.2
A3: RECEPTORS & PATHWAYS CONSIDERED IN ALL EXPOSURE CALCULATIONS | H3: Property Use* | I3: Receptor** | J3: Pathway | M3: Valued Ecosystem Components Included in the Risk Assessment**
A4: RECEPTOR | B4: DESCRIPTION | H4: Residential/Parkland/Institutional | I4: Toddler (0.5 – 4 years) Composite receptor (exposed from infancy through to and including adulthood) | J4: Soil Ingestion Dermal Contact Dermal adsorption following contact Inhalation of soil particles Inhalation of indoor and outdoor air contaminated by subsurface vapour intrusion** Ingestion of groundwater as drinking water source | M4: Property Use* | N4: Receptors
A5: infant resident | B5: age 0 to 5 months | M5: Residential/Parkland/ Institutional Land Use | N5: Plants and soil-dwelling organisms‡ Aquatic biota (contaminant specific) Mammals and birds: · American woodcock (Scolopax minor) · Meadow vole (Microtus Pennsylvanicus) – also called field mouse · Red-tailed hawk (Buteo jamaicensis) · Red-winged blackbird (Agelarius phoeniceus) · Red fox (Vulpes vulpes) · Short tailed shrew (Blarina brevicauda)
A6: toddler resident | B6: age 6 months to 4 years | H6: Industrial/Commercial/Community | I6: Adult (20 or more years) Adult indoor worker (long term) Adult outdoor worker (long-term) Adult subsurface worker (short-term) | J6: Soil Ingestion Dermal Contact Dermal adsorption following contact Inhalation of soil particles Inhalation of indoor and outdoor air contaminated by subsurface vapour intrusion** Ingestion of groundwater as drinking water source Inhalation of indoor and outdoor air contaminated by subsurface vapour intrusion** Ingestion of groundwater as drinking water source Soil Ingestion Dermal Contact Ingestion of groundwater as drinking water source Soil Ingestion Dermal adsorption following Contact Inhalation of soil particles Ingestion of groundwater as drinking water source
A7: child resident | B7: age 5 to 11 years
... 8 more rows

Sheet Exposure Calculations_Acute (hidden)
A1: Receptor Parameters Selected and Receptor (Acute) Exposure Rates Calculated | G1: Table 4.2 | L1: Table 5.2
A3: RECEPTORS & PATHWAYS CONSIDERED IN ALL EXPOSURE CALCULATIONS | G3: Property Use* | H3: Receptor** | I3: Pathway | L3: Valued Ecosystem Components Included in the Risk Assessment**
A4: RECEPTOR | B4: DESCRIPTION | G4: Residential/Parkland/Institutional | H4: Toddler (0.5 – 4 years) Composite receptor (exposed from infancy through to and including adulthood) | I4: Soil Ingestion Dermal Contact Dermal adsorption following contact Inhalation of soil particles Inhalation of indoor and outdoor air contaminated by subsurface vapour intrusion** Ingestion of groundwater as drinking water source | L4: Property Use* | M4: Receptors
A5: infant resident | B5: age 0 to 5 months | L5: Residential/Parkland/ Institutional Land Use | M5: Plants and soil-dwelling organisms‡ Aquatic biota (contaminant specific) Mammals and birds: · American woodcock (Scolopax minor) · Meadow vole (Microtus Pennsylvanicus) – also called field mouse · Red-tailed hawk (Buteo jamaicensis) · Red-winged blackbird (Agelarius phoeniceus) · Red fox (Vulpes vulpes) · Short tailed shrew (Blarina brevicauda)
A6: toddler resident | B6: age 6 months to 4 years | G6: Industrial/Commercial/Community | H6: Adult (20 or more years) Adult indoor worker (long term) Adult outdoor worker (long-term) Adult subsurface worker (short-term) | I6: Soil Ingestion Dermal Contact Dermal adsorption following contact Inhalation of soil particles Inhalation of indoor and outdoor air contaminated by subsurface vapour intrusion** Ingestion of groundwater as drinking water source Inhalation of indoor and outdoor air contaminated by subsurface vapour intrusion** Ingestion of groundwater as drinking water source Soil Ingestion Dermal Contact Ingestion of groundwater as drinking water source Soil Ingestion Dermal adsorption following Contact Inhalation of soil particles Ingestion of groundwater as drinking water source
A7: child resident | B7: age 5 to 11 years
... 8 more rows

Sheet Human Health (hidden)
A2: Human Health - Calculations | B2: CASRN | C2: DIRECT CONTACT COMPONENT CRITERIA (mg/kg) | S2: Health Based Indoor Air Criteria - Residential (ug/m3) | Y2: Health Based Indoor Air Criteria - Industrial (ug/m3) | AE2: GW-1 Direct Ingestion Component Criteria (ug/L) | AT2: GW-1 Heath Based Water Value (ug/L) | BB2: UPPER LEVELS | BC2: DIRECT CONTACT COMPONENT CRITERIA (mg/kg) | BV2: Health Based Indoor Air Criteria - Residential (ug/m3) | CC2: Health Based Indoor Air Criteria - Industrial (ug/m3) | CJ2: GW-1 Direct Ingestion Component Criteria (ug/L) | CO2: ACUTE LEVELS | CP2: DIRECT CONTACT COMPONENT CRITERIA (mg/kg) | DI2: Health Based Indoor Air Criteria - Residential (ug/m3) | DP2: Health Based Indoor Air Criteria - Industrial (ug/m3) | DW2: GW-1 Direct Ingestion Component Criteria (ug/L)
A3: CHEMICAL NAME
C4: S1 | F4: S2 | J4: S3 | AI4: INTERMEDIATE CALCULATIONS FOR DERMAL EXPOSURE VIA SHOWERING | BC4: S1 | BG4: S2 | BL4: S3 | CP4: S1 | CT4: S2 | CY4: S3
C5: Non Cancer Risk | D5: Cancer Risk | E5: S1 - Lowest Health-Based Concentration mg/kg | F5: Non Cancer Risk | G5: Developmental Non Cancer Risk | H5: Cancer Risk | I5: S2 - Lowest Health-Based Concentration mg/kg | J5: Non Cancer Risk | O5: Cancer Risk | R5: S3 - Lowest Health-Based Concentration mg/kg | S5: Non Cancer Risk | T5: Developmental Non Cancer Risk | U5: Cancer Risk | V5: Lowest Risk Level | W5: Maximum Short Term | X5: Lowest of Maximum short-term Indoor air and developmental | Y5: Non Cancer Risk | Z5: Developmental Non Cancer Risk | AA5: Cancer Risk | AB5: Lowest Risk Level | AC5: Maximum Short Term | AD5: Lowest of Maximum short-term Indoor air and developmental | AE5: Ontario Drinking Water Standard | AF5: Risk (Non Cancer) | AG5: Risk (Cancer) | AH5: Lowest Risk-based Value or ODWS | AI5: Log Kp | AJ5: Kp | AK5: B | AL5: c | AM5: b | AN5: Dsc | AO5: Tevent | AP5: t* (time to steady-state) | AQ5: Daevent | AR5: NC EXPOSURE FACTOR | AS5: C EXPOSURE FACTOR | AT5: Dermal Contact | AW5: Inhalation of Vapours | AZ5: Combined | BC5: Non Cancer Risk | BD5: Cancer Risk | BF5: S1 - Lowest Health-Based Concentration mg/kg | BG5: Non Cancer Risk | BH5: Developmental Non Cancer Risk | BI5: Cancer Risk | BK5: S2 - Lowest Health-Based Concentration mg/kg | BL5: Non Cancer Risk | BQ5: Cancer Risk | BU5: S3 - Lowest Health-Based Concentration mg/kg | BV5: Non Cancer Risk | BW5: Developmental Non Cancer Risk | BX5: Cancer Risk | BZ5: Lowest Risk Level | CA5: Maximum Short Term | CB5: Lowest of Maximum short-term Indoor air and developmental | CC5: Non Cancer Risk | CD5: Developmental Non Cancer Risk | CE5: Cancer Risk | CG5: Lowest Risk Level | CH5: Maximum Short Term | CI5: Lowest of Maximum short-term Indoor air and developmental | CJ5: Ontario Drinking Water Standard | CL5: Risk (Non Cancer) | CM5: Risk (Cancer) | CN5: Lowest Risk-based Value or ODWS | CP5: Non Cancer Risk | CQ5: Cancer Risk | CS5: S1 - Lowest Health-Based Concentration mg/kg | CT5: Non Cancer Risk | CU5: Developmental Non Cancer Risk | CV5: Cancer Risk | CX5: S2 - Lowest Health-Based Concentration mg/kg | CY5: Non Cancer Risk | DD5: Cancer Risk | DH5: S3 - Lowest Health-Based Concentration mg/kg | DI5: Non Cancer Risk | DJ5: Developmental Non Cancer Risk | DK5: Cancer Risk | DM5: Lowest Risk Level | DN5: Maximum Short Term | DO5: Lowest of Maximum short-term Indoor air and developmental | DP5: Non Cancer Risk | DQ5: Developmental Non Cancer Risk | DR5: Cancer Risk | DT5: Lowest Risk Level | DU5: Maximum Short Term | DV5: Lowest of Maximum short-term Indoor air and developmental | DW5: Ontario Drinking Water Standard | DY5: Risk (Non Cancer) | DZ5: Risk (Cancer) | EA5: Lowest Risk-based Value or ODWS
J6: Ingestion/Dermal | K6: Developmental Ingestion/Dermal | L6: Inhalation | M6: Inhalation - Developmental | N6: Lowest non-cancer | O6: Ingestion/Dermal | P6: Inhalation | Q6: Lowest cancer | AT6: Non Cancer | AU6: Cancer | AV6: Lowet Risk-based Value | AW6: Non Cancer | AX6: Cancer | AY6: Lowet Risk-based Value | BL6: Ingestion/Dermal | BM6: Developmental Ingestion/Dermal | BN6: Inhalation | BO6: Inhalation - Developmental | BP6: Lowest non-cancer | BQ6: Ingestion/Dermal | BR6: Inhalation | BS6: Lowest cancer | CY6: Ingestion/Dermal | CZ6: Developmental Ingestion/Dermal | DA6: Inhalation | DB6: Inhalation - Developmental | DC6: Lowest non-cancer | DD6: Ingestion/Dermal | DE6: Inhalation | DF6: Lowest cancer
AI7: cm/hr | AJ7: cm/hr | AK7: unitless | AL7: unitless | AM7: unitless | AN7: cm2/hr | AO7: hr/event | AP7: hr | AR7: (ug/m^3)/(ug/L) | AS7: (ug/m^3)/(ug/L) | BC7: 2 | BD7: 1e-05 | BE7: Note | BJ7: Note | BT7: Note | BV7: 1 | BX7: 0.0001 | BY7: Note | CF7: Note | CK7: Aesthetic based value? | DL7: Note | DS7: Note | DX7: Note
... 8 more rows

Sheet Ecological (hidden)
A1: Ecological Calculations | AK1: British Columbia Criteria for Managing Contaminated Soils
A2: CHEMICAL NAME | B2: CASRN | C2: Plant and Soil Invertebrates | E2: Plant and Soil Invertebrates | G2: American Woodcock | H2: Garter Snake | I2: Meadow Vole | J2: Sheep | K2: Red Winged Black Bird | L2: Red Fox | M2: Red Tailed Hawk | N2: Short-tailed Shrew | O2: Spring Peeper | P2: Terrestrial Protection Value for Animal Life | S2: Aquatic Receptor Protection Value (ug/L) | T2: Basis | U2: Sediment Quality Guidelines | AA2: Information Used in Determination of Final Direct Contact Ecological Soil Criteria | AE2: CCME Soil Quality Guidelines | AN2: Dutch ecotoxicological soil values (mg/kg in a standard soil 10% organic matter and 25% clay) | AT2: 2008 Terrestrial Ecological Protection values - before comparison to 1996 values | BB2: 2008 Terrestrial Ecological Protection values - final - after comparison to 1996
AE3: Toxicity to soil invertebrates and plants | AK3: Agricultural | AL3: Residential | AM3: Industrial/Commercial | AX3: 1996 Terrestrial Ecological Protection values
AA4: Ontario MOE Developed (2008) Soil Remediation Criteria | AE4: Agricultural | AG4: Residential | AI4: Industrial/Commercial | AK4: Toxicity to soil invertebrates and plants | AL4: Toxicity to soil invertebrates and plants | AM4: Toxicity to soil invertebrates and plants | AN4: Target Soil Screening Benchmark | AO4: Maximum Permissible Concentration | AP4: SRCECO Soil Screening Benchmark | AQ4: Revised SRCECO Soil Screening Benchmark | AR4: Current SRCECO Soil Screening Benchmark | AS4: SRCeco recalculated to 2% OM | AT4: Toxicity to soil invertebrates and plants | AX4: Toxicity to soil invertebrates and plants | BB4: Toxicity to soil invertebrates and plants
C5: Agricultural/Residential | E5: Commercial/Industrial | P5: Agricultural | Q5: Residential/ Parkland | R5: Commercial/ Industrial | AA5: Toxicity to soil invertebrates and plants | AE5: Coarse | AF5: Medium/fine | AG5: Coarse | AH5: Medium/fine | AI5: Coarse | AJ5: Medium/fine | AK5: mg/kg | AL5: mg/kg | AM5: mg/kg | AN5: mg/kg | AO5: mg/kg | AP5: mg/kg | AQ5: mg/kg | AR5: mg/kg | AS5: mg/kg | AT5: Residential Coarse | AU5: Residential Medium/fine | AV5: Industrial/ Commercial Coarse | AW5: Industrial/ Commercial Medium/Fine | AX5: Residential Coarse | AY5: Residential Medium/fine | AZ5: Industrial/ Commercial Coarse | BA5: Industrial/ Commercial Medium/Fine | BB5: Residential Coarse | BC5: Residential Medium/fine | BD5: Industrial/ Commercial Coarse | BE5: Industrial/ Commercial Medium/Fine
C6: coarse | D6: med./fine | E6: coarse | F6: med./fine | G6: ug/g | H6: ug/g | I6: ug/g | J6: ug/g | K6: ug/g | L6: ug/g | M6: ug/g | N6: ug/g | O6: ug/g | P6: ug/g | Q6: ug/g | R6: ug/g | U6: µg/g | AA6: Residential Coarse | AB6: Residential Medium/fine | AC6: Industrial/Commercial Coarse | AD6: Industrial/Commercial Medium/Fine | AE6: mg/kg | AF6: mg/kg | AG6: mg/kg | AH6: mg/kg | AI6: mg/kg | AJ6: mg/kg | AN6: Swartjes, 1999; VROM, 1999; VROM, 2000; Sneller et al., 2000 | AO6: Crommentuijn et al., 1997a; Crommentuijn et al., 1997b; Sneller et al., 2000 | AP6: Swartjes, 1999 | AQ6: Lizjen et al., 2001 | AS6: Q*0.2 for organics | AT6: mg/kg | AU6: mg/kg | AV6: mg/kg | AW6: mg/kg | AX6: mg/kg | AY6: mg/kg | AZ6: mg/kg | BA6: mg/kg | BB6: mg/kg | BC6: mg/kg | BD6: mg/kg | BE6: mg/kg
AA7: mg/kg | AB7: mg/kg | AC7: mg/kg | AD7: mg/kg
... 8 more rows

Sheet SoilVapour_Tier 2 (hidden)
A1: Soil Vapour: Calculations (Tier 2) | X1: SOIL to IA RESIDENTIAL ATTENUATION CALCULATIONS Coarse Grain | AE1: SOIL to IA INDUSTRIAL ATTENUATION CALCULATIONS Coarse Grain | AQ1: SOIL to IA RESIDENTIAL ATTENUATION CALCULATIONS Med/Fine Grain | AX1: SOIL to IA INDUSTRIAL ATTENUATION CALCULATIONS Med/Fine Grain | BG1: All Source Depletion calcs are not used since this is soil vapour. | CC1: Table of Soil Vapour Criteria | CH1: P. C. Johnson's Input Ratio Controls | CK1: These ratio columns (CH to DU) are FYI. They are stand alone and are not linked to any standard calculations. These columns determine the various ratios and verify the approach used in the standards. These columns can be enhanced to link into the standards calcs in future versions of this spreadsheet.
A2: CHEMICAL NAME | B2: CASRN | E2: TB/TC = Ratio of boiling point to critical T (K). Used to calc enthalpy of vaporization | F2: Tier 2 Bioattenuation Factors 1 = nondegrade. If 10 then multiplier is 1, 10 or 10^2 depending on whether source separation distance is <1 m, or >1 m or >3m. | G2: Enthalpy of vaporization at average groundwater temperature DHv,TS (cal/mol) | H2: Henry's law constant at average groundwater temperature, HTS (atm-m3/mol) | I2: Henry's law constant at average groundwater temperature HITS (unitless) | J2: Enthalpy of vaporization at average soil temperature DHv,TS (cal/mol) | K2: Henry's law constant at average soil temperature, HTS (atm-m3/mol) | L2: Henry's law constant at average soil temperature HITS (unitless) | M2: Stratum A effective diffusion coefficient, DeffA (cm2/s) | N2: Stratum B effective diffusion coefficient, DeffA (cm2/s) | O2: Stratum C effective diffusion coefficient, DeffA (cm2/s) | P2: Total overall effective diffusion coefficient DeffT (cm2/s) | Q2: Inverse of portion of the gas-form of eqbm partitioning eqtn. Used to calc soil conc from gas conc. | R2: Average effective diffusion coefficient Dcrack (cm2/sec) | S2: Exponent of source foundation Peclet number exp(Pef) (unitless) | T2: (DeffTxAb)/(QbuildxLsTier2) | U2: (DeffTxAb)/(QsoilxLsTier2) | V2: Tier 2 Soil/IA RESIDENTIAL Attenuation ratio coarse grain (unitless) | Y2: Total overall effective diffusion coefficient DeffT Industrial (cm2/s) | Z2: Exponent of source foundation Peclet number exp(Pef) (unitless) | AA2: (DeffT*Ab)/(Qbuild*indLs) | AB2: (DeffTxAb)/(Qsoil*indLs) | AC2: Soil/IA INDUSTRIAL Attenuation ratio coarse grain (unitless) | AE2: Tier 2 Acceptable soil gas concentration at top of Source with Bioattenuation Factors = BAF*indoor air/alpha. No SDM for soil gas (ug/m3) | AF2: Stratum A effective diffusion coefficient, DeffA (cm2/s) | AG2: Stratum B effective diffusion coefficient, Deffb (cm2/s) | AH2: Stratum C effective diffusion coefficient, Deffc (cm2/s) | AI2: Total overall effective diffusion coefficient DeffT (cm2/s) | AJ2: Source vapor concentration Csource (ug/m^3) | AK2: Average effective diffusion coefficient Dcrack (cm2/sec) | AL2: Exponent of source foundation Peclet number exp(Pef) (unitless) | AM2: (DeffTxAb)/(QbuildxLsTier2) | AN2: (DeffTxAb)/(QsoilxLsTier2) | AO2: Soil/IA RESIDENTIAL Attenuation ratio med./fine (unitless) | AQ2: Tier 2 Acceptable soil gas concentration at top of Source with Bioattenuation Factors = BAF*indoor air/alpha. No SDM for soil gas. (ug/m3)) | AR2: Total overall effective diffusion coefficient DeffT Industrial (cm2/s) | AS2: Exponent of source foundation Peclet number exp(Pef) (unitless) | AT2: (DeffTxAb)/(Qbuildx indLs) | AU2: (DeffTxAb)/(Qsoilx indLs) | AV2: Soil/IA INDUSTRIAL Attenuation ratio med./fine (unitless) | AX2: Tier 2 Acceptable soil gas concentration at top of Source with Bioattenuation Factors = BAF*indoor air/ alpha. No SDM for soil gas. (ug/m3) | AY2: Soil-to-Indoor Residential Air (Health Based) (ug/g) | BA2: Soil-to-Indoor Industrial Air (Health Based) (ug/g) | BC2: Soil-to-Indoor Residential Air (Odour Based) (ug/g) | BE2: Soil-to-Indoor Industrial Air (Odour Based) (ug/g) | BG2: source depletion | BM2: source depletion | BR2: source depletion | BW2: source depletion | CC2: CHEMICAL NAME | CH2: Residential Coarse | CI2: ref: Ground Water Monitoring & Remediation 25, Winter 2005. | CP2: Revised Qsoil, determined by Johnson's | CR2: Resdiential M/F | CZ2: Revised Qsoil, determined by Johnson's | DB2: Comm/Ind Coarse | DJ2: Revised Qsoil, determined by Johnson's | DL2: Comm/Ind M/F | DT2: Revised Qsoil, determined by Johnson's
X3: Coarse Residential | AD3: soil gas conc. at top of tier 2 source | AP3: med/fine residential | AW3: med/fine Industrial | BG3: half life (years) | BM3: half life (years) | BR3: half life (years) | BW3: half life (years) | CP3: empirical limits for the Qsoil/Qbuilding ratio. | CZ3: empirical limits for the Qsoil/Qbuilding ratio. | DJ3: empirical limits for the Qsoil/Qbuilding ratio. | DT3: empirical limits for the Qsoil/Qbuilding ratio.
AD4: Coarse-grained, Comm/Industrial | AP4: Soil gas conc. at top of Tier 2 Source | AW4: soil gas conc. at top of Tier 2 source | BG4: Residential Coarse via | BM4: Residential MedFine via | BR4: Industrial Coarse via | BW4: Industrial MedFine via | CP4: If both previous 2 columns are TRUE | CQ4: New ratio- | CZ4: If both previous 2 columns are TRUE | DA4: New ratio- | DJ4: If both previous 2 columns are TRUE | DK4: New ratio- | DT4: If both previous 2 columns are TRUE | DU4: New ratio-
W5: acceptable soil gas concentration at depth of top of Tier 2 source - NO BIOATTENUATION FACTORS | X5: acceptable soil gas concentration at depth of top of Tier 2 source - INCLUDES BIOATTENUATION FACTORS | AD5: no Bioattenuation | AP5: indoor air/alpha | BG5: SIA degassing | BM5: SIA degassing | BR5: SIA degassing | BW5: SIA degassing | CD5: Residential Coarse | CE5: Industrial Coarse | CF5: Residential MedFine | CG5: Industrial Med/Fine | CP5: then use Qsoil in this column | CQ5: controlled Qsoil > | CZ5: then use Qsoil in this column | DA5: controlled Qsoil | DJ5: then use Qsoil in this column | DK5: controlled Qsoil | DT5: then use Qsoil in this column | DU5: controlled Qsoil
W6: indoor air standard/alpha | X6: Bioattenuation Factor*indoor air standard/alpha. No SDM for soil gas. | AD6: indoor air/alpha | AW6: indoor air /alpha | AY6: Coarse Grain | AZ6: Med/Fine Grain | BA6: Coarse Grain | BB6: Med/Fine Grain | BC6: Coarse Grain | BD6: Med/Fine Grain | BE6: Coarse Grain | BF6: Med/Fine Grain | BG6: Source volume for SIA (minimum 100m3) | BH6: initial mass in source volume | BI6: mass removed | BJ6: mass remaining | BK6: source depletion | BL6: IF statement to determine | BM6: initial mass | BN6: mass removed | BO6: mass remaining | BP6: source depletion | BQ6: IF statement to determine | BR6: initial mass | BS6: mass removed | BT6: mass remaining | BU6: source depletion | BV6: IF statement to determine | BW6: initial mass | BX6: mass removed | BY6: mass remaining | BZ6: source depletion | CA6: IF statement to determine | CD6: ug/m3 | CE6: ug/m3 | CF6: ug/m3 | CG6: ug/m3 | CH6: A | CI6: B | CJ6: C | CK6: AB/C | CL6: A/C | CM6: B>3? | CN6: A/C>0.1? | CO6: original J&E Qsoil | CP6: if this Qsoil is larger than the original Qsoil via J&E | CQ6: J&E Qsoil? | CR6: A | CS6: B | CT6: C | CU6: AB/C | CV6: A/C | CW6: B>3? | CX6: A/C>0.1? | CY6: original J&E Qsoil | CZ6: if this Qsoil is larger than the original Qsoil via J&E | DA6: should be used. | DB6: A | DC6: B | DD6: C | DE6: AB/C | DF6: A/C | DG6: B>3? | DH6: A/C>0.1? | DI6: original J&E Qsoil | DJ6: if this Qsoil is larger than the original Qsoil via J&E. | DK6: should be used. | DL6: A | DM6: B | DN6: C | DO6: AB/C | DP6: A/C | DQ6: B>3? | DR6: A/C>0.1? | DS6: original J&E Qsoil | DT6: if this Qsoil is larger than the original Qsoil via J&E. | DU6: should be used.
W7: (ug/m3) | X7: (ug/m3) | AD7: (ug/m3) | AP7: (ug/m3) | AW7: (ug/m3) | BI7: in first week to house | BJ7: after one week | BK7: half life (years) | BL7: C0 Multiplier | BM7: in source zone from SIA pathway | BN7: in first week to house | BO7: after one week | BP7: half life (years) | BQ7: C0 Multiplier | BR7: in source zone from SIA pathway | BS7: in first week to building | BT7: after one week | BU7: half life (years) | BV7: C0 Multiplier | BW7: in source zone from SIA pathway | BX7: in first week to house | BY7: after one week | BZ7: half life (years) | CA7: C0 Multiplier | CO7: cm3/sec | CP7: and larger than 5 Lpm. | CQ7: True or False? | CY7: cm3/sec | CZ7: and larger than 1 LPM (16.7 cm3/sec)? | DA7: True or False? | DI7: cm3/sec | DK7: True or False? | DS7: cm3/sec | DU7: True or False?
... 8 more rows

Sheet Physical Transport (hidden)
A1: Physical Transport: Calculations | B1: Note: Equations for many parameters in the S-IA and GW2 pathways are based on USEPA's User's Guide for J&E, Feb 2004 | E1: determine H' for subsurface Temp using Clausius-Clapeyron relationship | I1: calcs based on Millington and Quirk (1961) model | P1: J&E components | S1: GW2 RESIDENTIAL ATTENUATION CALCULATIONS Coarse Grain | T1: J&E components | X1: GW2 INDUSTRIAL ATTENUATION CALCULATIONS Coarse Grain | AI1: GW2 RESIDENTIAL ATTENUATION CALCULATIONS Med/Fine Grain | AN1: GW2 INDUSTRIAL ATTENUATION CALCULATIONS Med/Fine Grain | BA1: SOIL to IA RESIDENTIAL ATTENUATION CALCULATIONS Coarse Grain | BF1: SOIL to IA INDUSTRIAL ATTENUATION CALCULATIONS Coarse Grain | BP1: SOIL to IA RESIDENTIAL ATTENUATION CALCULATIONS Med/Fine Grain | BU1: SOIL to IA INDUSTRIAL ATTENUATION CALCULATIONS Med/Fine Grain | CD1: GW-1 VERTICAL LEACHATE TRANSPORT COARSE GRAIN | CM1: GW-1 VERTICAL LEACHATE TRANSPORT MED/FINE GRAIN | CW1: GW-2 VERTICAL LEACHATE TRANSPORT COARSE GRAIN | DH1: GW-2 VERTICAL LEACHATE TRANSPORT MED/FINE GRAIN | DW1: GW-3 TRANSPORT COARSE GRAIN | EK1: GW-3 TRANSPORT MED/FINE GRAIN | EQ1: GW-1 Vapour Emission Rate (Showering) | ER1: INDIRECT COMPONENT CRITERIA | GO1: Stratified Commercial/Industrial COARSE | GT1: Stratified Commercial /Industrial (Medium/Fine) | HJ1: done. MF not included as 10 times is used for all. | HU1: IF statement to reinsert source depletion if needed | HW1: SDM FOR S-GW2 | HX1: RESiDENTIAL COARSE | IJ1: SDM FOR S-GW2 | IK1: Industrial COARSE | IW1: SDM FOR S-GW2 | IX1: Residential Fine-Med | JJ1: SDM FOR S-GW2 | JK1: ICC Fine-Med | JY1: Shallow Soil | KA1: GW-2 VERTICAL LEACHATE TRANSPORT COARSE GRAIN | KE1: GW-2 VERTICAL LEACHATE TRANSPORT MED/FINE GRAIN | KN1: SDM FOR S-GW2 (SHALLOW) | KO1: RESiDENTIAL COARSE | LA1: SDM FOR S-GW2 (SHALLOW) | LB1: Industrial COARSE | LN1: SDM FOR S-GW2 (SHALLOW) | LO1: Residential Fine-Med | MA1: SDM FOR S-GW2 (SHALLOW) | MB1: ICC Fine-Med
A2: CHEMICAL NAME | B2: CASRN | E2: TB/TC = Ratio of boiling point to critical T (K). Used to calc enthalpy of vaporization | F2: Enthalpy of vaporization at average groundwater temperature DHv,TS (cal/mol) | G2: Henry's law constant at average groundwater temperature, HTS (atm-m3/mol) | H2: Henry's law constant at average groundwater and soil temperature HITS (unitless) | I2: Stratum A effective diffusion coefficient, DeffA (cm2/s) | J2: Stratum B effective diffusion coefficient, DeffB (cm2/s) | K2: Stratum C effective diffusion coefficient, DeffC (cm2/s) | L2: Capillary zone effective diffusion coefficient, Deffcz (cm2/s) | M2: Total overall effective diffusion coefficient DeffT (cm2/s) | N2: H'*1000. This value is used later to divide into the Source vapour concentration, Csource (ug/m^3), to yield the Source GW2 conc. (ug/L) | O2: Average effective diffusion coefficient Dcrack (cm2/sec) | P2: Exponent of equivalent Peclet number for transport thru bldg foundation= e^(x) (unitless) | Q2: (DeffTxAb)/ (QbuildxL) | R2: (DeffTxAb)/ (QsoilxL) | S2: GW2 - Residential Attenuation ratio coarse grain (unitless) | T2: Exponent of equivalent Peclet number for transport thru bldg foundation= e^(x) (unitless) | U2: Total overall effective diffusion coefficient DeffT INDUSTRIAL (cm2/s) | V2: (DTxAb)/ (QbuildxL) | W2: (DTxAb)/ (QsoilxL) | X2: GW2 - Industrial Attenuation ratio coarse grain (unitless) | Y2: Stratum A effective diffusion coefficient, DeffA (cm2/s) | Z2: Stratum B effective diffusion coefficient, DeffA (cm2/s) | AA2: Stratum C effective diffusion coefficient, DeffA (cm2/s) | AB2: Capillary zone effective diffusion coefficient, Deffcz (cm2/s) | AC2: Total overall effective diffusion coefficient DeffT (cm2/s) | AD2: H'*1000. This value is used later to divide into the Source vapour concentration, Csource (ug/m^3), to yield the Source GW2 conc. (ug/L) | AE2: Average effective diffusion coefficient Dcrack (cm2/sec) | AF2: Exponent of equivalent Peclet number for transport thru bldg foundation= e^(x) (unitless) | AG2: (DeffTxAb)/(QbuildxL) | AH2: (DeffTxAb)/(QsoilxL) | AI2: GW2 - Residential Attenuation ratio med/fine (unitless) | AJ2: Exponent of equivalent Peclet number for transport thru bldg foundation= e^(x) (unitless) | AK2: Total overall effective diffusion coefficient DeffT INDUSTRIAL (cm2/s) | AL2: (DeffTxAb)/(QbuildxL) | AM2: (DeffTxAb)/(QsoilxL) | AN2: GW2 - Industrial Attenuation ratio med/fine (unitless) | AO2: Enthalpy of vaporization at average soil temerpature DHv,TS (cal/mol) | AP2: Henry's law constant at average soil temperature, HTS (atm-m3/mol) | AQ2: Henry's law constant at average soil temperature HITS (unitless) | AR2: Stratum A effective diffusion coefficient, DeffA (cm2/s) | AS2: Stratum B effective diffusion coefficient, DeffA (cm2/s) | AT2: Stratum C effective diffusion coefficient, DeffA (cm2/s) | AU2: Total overall effective diffusion coefficient DeffT (cm2/s) | AV2: Inverse of portion of the gas-form of eqbm partitioning eqtn. Used to calc soil conc from gas conc. | AW2: Average effective diffusion coefficient Dcrack (cm2/sec) | AX2: Exponent of equivalent Peclet number for transport thru bldg foundation= e^(x) (unitless) | AY2: (DeffTxAb)/(QbuildxLs) | AZ2: (DeffTxAb)/(QsoilxLs) | BA2: Soil/IA RESIDENTIAL Attenuation ratio coarse grain (unitless) | BB2: Total overall effective diffusion coefficient DeffT Industrial (cm2/s) | BC2: Exponent of equivalent Peclet number for transport thru bldg foundation= e^(x) (unitless) | BD2: (DeffTxAb)/(QbuildxL) | BE2: (DeffTxAb)/(QsoilxL) | BF2: Soil/IA INDUSTRIAL Attenuation ratio coarse grain (unitless) | BG2: Stratum A effective diffusion coefficient, DeffA (cm2/s) | BH2: Stratum B effective diffusion coefficient, Deffb (cm2/s) | BI2: Stratum C effective diffusion coefficient, Deffc (cm2/s) | BJ2: Total overall effective diffusion coefficient DeffT (cm2/s) | BK2: Inverse of portion of the gas-form of eqbm partitioning eqtn. Used to calc soil conc from gas conc. | BL2: Average effective diffusion coefficient Dcrack (cm2/sec) | BM2: Exponent of equivalent Peclet number for transport thru bldg foundation= e^(x) (unitless) | BN2: (DeffTxAb)/(QbuildxL) | BO2: (DeffTxAb)/(QsoilxL) | BP2: Soil/IA RESIDENTIAL Attenuation ratio med./fine (unitless) | BQ2: Total overall effective diffusion coefficient DeffT Industrial (cm2/s) | BR2: Exponent of equivalent Peclet number for transport thru bldg foundation= e^(x) (unitless) | BS2: (DeffTxAb)/(QbuildxL) | BT2: (DeffTxAb)/(QsoilxL) | BU2: Soil/IA INDUSTRIAL Attenuation ratio med./fine (unitless) | BV2: GW-1 COARSE GRAIN LEACHING CACULATIONS. For T1 and T2 the travel distance, d, = 0, therefore no attenuation, therefore BZ=CH, with CH used as the pore water conc in FF. | CE2: GW-1 MED/FINE GRAIN LEACHING CACULATIONS. For T1 and T2 the travel distance, d, = 0, therefore no attenuation, therefore CI=CQ, with CQ used as the pore water conc in FG. | CN2: GW-2 LEACHING COARSE GRAIN CACULATIONS | CY2: GW-2 LEACHING MED/FINE GRAIN CACULATIONS | DJ2: GW3 COARSE GRAIN LATERAL TRANSPORT CALCULATIONS | DS2: COARSE GRAIN VERTICAL TRANSPORT CALCULATIONS | DX2: GW3 MED/FINE GRAIN LATERAL TRANSPORT CALCULATIONS | EG2: MED/FINE GRAIN VERTICAL TRANSPORT CALCULATIONS | EL2: INTERNAL GW1 INHALATION CALCULATIONS | ER2: GW-2 Groundwater to Residential Indoor air (Health Based) (ug/L) | ET2: GW-2 Groundwater to Industrial Indoor air (Health Based) (ug/L) | EV2: GW-2 Groundwater to Residential Indoor air (Odour Based) (ug/L) | EX2: GW-2 Groundwater to Industrial Indoor air (Odour Based) (ug/L) | EZ2: GW-3 Groundwater Protective of Aquatic Life (ug/L) | FB2: Soil Protective of SGW-1 via leaching (ug/g) - SDM yet to be applied | FD2: Soil Protective of SGW-2 via leaching Residential (ug/g) | FF2: Soil Protective of SGW-2 via leaching Industrial (ug/g) | FH2: Soil Protective of SGW-3 (ug/g) | FJ2: S-IA Residential (Health Based) (ug/g) | FL2: S-IA Industrial (Health Based) (ug/g) | FN2: S-IA Residential (Odour Based) (ug/g) | FP2: S-IA Industrial (Odour Based) (ug/g) | FR2: Soil Odour Value (Soil to Nose Pathway) with Sniff Dilution Factor; no SDM. (ug/g) | FT2: Source Depletion calcs | FZ2: source depletion | GE2: source depletion | GJ2: source depletion | GO2: calc of Source Depletion half life (years) that includes effect of increased subsoil mass. Industrial Coarse via SIA degassing. | GT2: calc of Source Depletion half life (years) that includes effect of increased subsoil mass. Industrial M/F via SIA degassing. | GY2: GW1 source depletion | HD2: GW1 source depletion M/F Leaching | HJ2: GW3 source depletion | HL2: Mass removed by volatilzation | HU2: =IF(HT8="",1,IF(HT8<=0.4515,100,IF(HT8<0.905,1/EXP(-LN(2)/HT8*3),IF(HT8<1.505,10,1/EXP(-LN(2)/HT8*5))))) -> 1.010651804 | HW2: S-GW2 source depletion | HY2: Mass removed by volatilzation | IJ2: S-GW2 source depletion | IL2: Mass removed by volatilzation | IW2: S-GW2 source depletion | IY2: Mass removed by volatilzation | JJ2: S-GW2 source depletion | JL2: Mass removed by volatilzation | JY2: GW-2 LEACHING COARSE GRAIN CACULATIONS | KC2: GW-2 LEACHING MED/FINE GRAIN CACULATIONS | KG2: Soil Protective of SGW-2 via leaching Residential (Shlallow) (ug/g) | KI2: Soil Protective of SGW-2 via leaching Industrial (Shallow) (ug/g) | KK2: Soil Protective of SGW-3 (Shallow) (ug/g) (Does not condifer Vertical Transport in Vadose Zone) | KN2: S-GW2 source depletion | KP2: Mass removed by volatilzation | LC2: Mass removed by volatilzation | LN2: S-GW2 source depletion | LP2: Mass removed by volatilzation | MA2: S-GW2 source depletion | MC2: Mass removed by volatilzation
FT3: for | FZ3: half life (years) | GE3: half life (years) | GJ3: half life (years) | GY3: half life (years) | HJ3: half life (years) | HL3: using Jury Finite Source equation | HQ3: mass removed | HW3: half life (years) | HY3: using Jury Finite Source equation | ID3: mass removed | IJ3: half life (years) | IL3: using Jury Finite Source equation | IQ3: mass removed | IW3: half life (years) | IY3: using Jury Finite Source equation | JD3: mass removed | JJ3: half life (years) | JL3: using Jury Finite Source equation | JQ3: mass removed | KN3: half life (years) | KP3: using Jury Finite Source equation | KU3: mass removed | LA3: half life (years) | LC3: using Jury Finite Source equation | LH3: mass removed | LN3: half life (years) | LP3: using Jury Finite Source equation | LU3: mass removed | MA3: half life (years) | MC3: using Jury Finite Source equation | MH3: mass removed
BV4: GW-1 Cz | BW4: Components of Domenico transport eqtn (no attenuation when d=0 in Tier 1 and Tier 2) | CB4: GW-1 A = (foc *Koc) | CC4: GW-1 B =(nw+na*H' ) | CD4: GW-1 Cleachate COARSE GRAIN | CF4: GW-1 A1= d/(2*alphaz) | CG4: GW-1 Retardation Factor, R= 1+Kd*Pb/nu | CH4: GW-1 Decay Constant, Lu = .693*365/(thalf) *exp(-0.07d) *(1-fd/365) | CI4: GW-1 Contaminant Ave. Linear Velocity = qsurface/(nu*R) | CJ4: GW-1 A2= 1+(4*Lu*alphaz/ vleachate)^0.5 | CK4: GW-1 A (foc *Koc) | CL4: GW-1 B (nw+ na*H') | CM4: GW-1 Cleachate MED/FINE GRAIN | CN4: GW-2 Cz Residential | CO4: GW-2 Cz Industrial | CP4: GW-2 A1= d/(2*alphaz) | CQ4: GW-2 Retardation Factor, R= 1+Kd*Pb/nu | CR4: GW-2 Decay Constant, Lu = .693*365/(thalf) *exp(-0.07d) *(1-fd/365) | CS4: GW-2 Contaminant Ave. Linear Velocity = qsurface/(nu*R) | CT4: GW-2 A2= 1+(4*Lu*alphaz/ vleachate)^0.5 | CU4: GW-2 A (foc *Koc) | CV4: GW-2 B (nw+ na*HI) | CW4: GW-2 Cleachate COARSE GRAIN Residential | CX4: GW-2 Cleachate COARSE GRAIN Industrial | CY4: GW-2 Cz Residential | CZ4: GW-2 Cz Industrial | DA4: GW-2 A1= d/(2*alphaz) | DB4: GW-2 Retardation Factor, R= 1+Kd*Pb/nu | DC4: GW-2 Decay Constant, Lu = .693*365/(thalf) *exp(-0.07d) *(1-fd/365) | DD4: GW-2 Contaminant Ave. Linear Velocity = qsurface/(nu*R) | DE4: GW-2 A2= 1+(4*Lu*alphaz/ vleachate)^0.5 | DF4: GW-2 A (foc *Koc) | DG4: GW-2 B (nw+ na*HI) | DH4: GW-2 Cleachate MED/FINE GRAIN RESIDENTIAL | DI4: GW-2 Cleachate MED/FINE GRAIN INDUSTRIAL | DJ4: Decay Constant Lateral Flow Ls = ln2*365.25/(thalf) | DK4: GW-3 Retardation Factor, R= 1+Kd*Pb/n | DL4: GW3 B1= (1+(4*Ls*alphax)/(v/R))^0.5 | DM4: GW3 A2 = 1-B1 | DP4: GW3 A7 | DQ4: GW3 A6= exp(A1*A2) | DR4: GW3 Cz (ug/L) | DV4: GW3 A2 | DW4: GW3 cleachate above water table in soil (before reaching water table and mixing cell) | DX4: Decay Constant Lateral Flow Ls | DY4: GW-3 Retardation Factor, R= 1+Kd*Pb/n | DZ4: GW3 B1 | EA4: GW3 A2 | EB4: GW3 A3 | ED4: GW3 A7 | EE4: GW3 A6 | EF4: GW3 Cz (ug/L) | EJ4: GW3 A2 | EK4: GW3 cleachate | EL4: Gas-film Mass Transfer Coefficient | EM4: Liquid-film Mass Transfer Coefficient | EN4: Overall Gas Mass Transfer Coefficient | EO4: Adjusted Mass Transfer Coefficient | EP4: Concentration Leaving Water Droplet | EQ4: Indoor Air Generation Rate | FT4: Residential Coarse via | FZ4: Residential MedFine via | GE4: Industrial Coarse via | GJ4: Industrial MedFine via | GY4: coarse | HJ4: residential coarse | HQ4: gm/cm2-s | HW4: residential coarse | HY4: Deff numerator | HZ4: Deff denominator | IA4: Deff | IB4: Jury equation Part 1 | IC4: Jury equation Part 2 | ID4: gm/cm2-s | IJ4: industrialcoarse | IL4: Deff numerator | IM4: Deff denominator | IN4: Deff | IO4: Jury equation Part 1 | IP4: Jury equation Part 2 | IQ4: gm/cm2-s | IW4: residential FM | IY4: Deff numerator | IZ4: Deff denominator | JA4: Deff | JB4: Jury equation Part 1 | JC4: Jury equation Part 2 | JD4: gm/cm2-s | JJ4: ICC FM | JL4: Deff numerator | JM4: Deff denominator | JN4: Deff | JO4: Jury equation Part 1 | JP4: Jury equation Part 2 | JQ4: gm/cm2-s | JY4: GW-2 Cz Residential | JZ4: GW-2 Cz Industrial | KA4: GW-2 Cleachate COARSE GRAIN Residential | KB4: GW-2 Cleachate COARSE GRAIN Industrial | KC4: GW-2 Cz Residential | KD4: GW-2 Cz Industrial | KE4: GW-2 Cleachate MED/FINE GRAIN RESIDENTIAL | KF4: GW-2 Cleachate MED/FINE GRAIN INDUSTRIAL | KN4: residential coarse | KP4: Deff numerator | KQ4: Deff denominator | KR4: Deff | KS4: Jury equation Part 1 | KT4: Jury equation Part 2 | KU4: gm/cm2-s | LA4: industrialcoarse | LC4: Deff numerator | LD4: Deff denominator | LE4: Deff | LF4: Jury equation Part 1 | LG4: Jury equation Part 2 | LH4: gm/cm2-s | LN4: residential FM | LP4: Deff numerator | LQ4: Deff denominator | LR4: Deff | LS4: Jury equation Part 1 | LT4: Jury equation Part 2 | LU4: gm/cm2-s | MA4: ICC FM | MC4: Deff numerator | MD4: Deff denominator | ME4: Deff | MF4: Jury equation Part 1 | MG4: Jury equation Part 2 | MH4: gm/cm2-s
CE5: GW-1 Cz Medium/Fine Grain | DN5: GW3 A3 = | DO5: GW3 A3 | DS5: GW3 R | DT5: vleachate | DU5: Decay Constant Lu | EC5: GW3 A3 | EG5: GW3 R | EH5: vleachate | EI5: Decay Constant Lu | FT5: SIA degassing | FZ5: SIA degassing | GE5: SIA degassing | GJ5: SIA degassing | GY5: leaching | HD5: SD half lives are calc using leaching not via water use. | HJ5: leaching | HL5: (na^3.33*Dair*H'+nw^3.33*Dwater)/n^2 | HM5: (pb*Kd+nw+naH') | HN5: A/B | HO5: C0(D/Pi*t)^.5 | HR5: mass removed | HW5: leaching | HY5: (na^3.33*Dair*H'+nw^3.33*Dwater)/n^2 | HZ5: (pb*Kd+nw+naH') | IA5: A/B | IB5: C0(D/Pi*t)^.0.5 | IE5: mass removed | IJ5: leaching | IL5: (na^3.33*Dair*H'+nw^3.33*Dwater)/n^2 | IM5: (pb*Kd+nw+naH') | IN5: A/B | IO5: C0(D/Pi*t)^.0.5 | IR5: mass removed | IW5: leaching | IY5: (na^3.33*Dair*H'+nw^3.33*Dwater)/n^2 | IZ5: (pb*Kd+nw+naH') | JA5: A/B | JB5: C0(D/Pi*t)^.0.5 | JE5: mass removed | JJ5: leaching | JL5: (na^3.33*Dair*H'+nw^3.33*Dwater)/n^2 | JM5: (pb*Kd+nw+naH') | JN5: A/B | JO5: C0(D/Pi*t)^.0.5 | JR5: mass removed | KN5: leaching | KP5: (na^3.33*Dair*H'+nw^3.33*Dwater)/n^2 | KQ5: (pb*Kd+nw+naH') | KR5: A/B | KS5: C0(D/Pi*t)^.0.5 | KV5: mass removed | LA5: leaching | LC5: (na^3.33*Dair*H'+nw^3.33*Dwater)/n^2 | LD5: (pb*Kd+nw+naH') | LE5: A/B | LF5: C0(D/Pi*t)^.0.5 | LI5: mass removed | LN5: leaching | LP5: (na^3.33*Dair*H'+nw^3.33*Dwater)/n^2 | LQ5: (pb*Kd+nw+naH') | LR5: A/B | LS5: C0(D/Pi*t)^.0.5 | LV5: mass removed | MA5: leaching | MC5: (na^3.33*Dair*H'+nw^3.33*Dwater)/n^2 | MD5: (pb*Kd+nw+naH') | ME5: A/B | MF5: C0(D/Pi*t)^.0.5 | MI5: mass removed
BW6: GW-1 A1 | BX6: GW-1 Retardation Factor R | BY6: GW-1 Decay Constant Lu | BZ6: GW-1 Ave. Linear Velocity | CA6: GW-1 A2 | DN6: (x-((v/R)*time*B1))/(2*(alphax*(v/R)*time)^.5) | DO6: restriction | EC6: restriction | ER6: Coarse Grain | ES6: Med/Fine Grain | ET6: Coarse Grain | EU6: Med/Fine Grain | EV6: Coarse Grain | EW6: Med/Fine Grain | EX6: Coarse Grain | EY6: Med/Fine Grain | EZ6: Coarse Grain | FA6: Med/Fine Grain | FB6: Coarse Grain | FC6: Med/Fine Grain | FD6: Coarse Grain | FE6: Med/Fine Grain | FF6: Coarse Grain | FG6: Med/Fine Grain | FH6: Coarse Grain | FI6: Med/Fine Grain | FJ6: Coarse Grain | FK6: Med/Fine Grain | FL6: Coarse Grain | FM6: Med/Fine Grain | FN6: Coarse Grain | FO6: Med/Fine Grain | FP6: Coarse Grain | FQ6: Med/Fine Grain | FR6: Coarse Grain | FS6: Med/Fine Grain | FT6: Source volume for SIA (minimum 100m3) | FU6: initial mass in source volume minus basement volume | FV6: mass removed | FW6: mass remaining | FX6: source depletion | FY6: IF statement to determine | FZ6: initial mass | GA6: mass removed | GB6: mass remaining | GC6: source depletion | GD6: IF statement to determine | GE6: initial mass | GF6: mass removed | GG6: mass remaining | GH6: source depletion | GI6: IF statement to determine | GJ6: initial mass | GK6: mass removed | GL6: mass remaining | GM6: source depletion | GN6: IF statement to determine C0 multiplier (SDM) | GO6: Initial contaminant mass in Source Zone of S-IA pathway assuming subsoil is same conc as rest. | GP6: Mass removed | GQ6: Total mass remaining after one week, | GR6: source depletion | GS6: IF statement to determine | GT6: Initial contaminant mass in Source Zone of S-IA pathway assuming subsoil is same conc as rest. | GU6: Mass removed | GV6: Total mass remaining after one week, | GW6: source depletion | GX6: IF statement to determine | GZ6: half lives are calc using leaching not via water use. | HA6: mass remaining | HB6: source depletion | HC6: IF statement for | HF6: mass remaining | HG6: source depletion | HH6: IF statement for | HJ6: initial mass | HK6: mass removed | HL6: A | HM6: B | HN6: D | HO6: P | HP6: Q | HQ6: J | HR6: by volatilization | HS6: mass remaining | HT6: source depletion | HU6: IF statement | HW6: initial mass | HX6: mass removed | HY6: A | HZ6: B | IA6: D | IB6: P | IC6: Q | ID6: J | IE6: by volatilization | IF6: mass remaining | IG6: source depletion | IH6: IF statement | IJ6: initial mass | IK6: mass removed | IL6: A | IM6: B | IN6: D | IO6: P | IP6: Q | IQ6: J | IR6: by volatilization | IS6: mass remaining | IT6: source depletion | IU6: IF statement | IW6: initial mass | IX6: mass removed | IY6: A | IZ6: B | JA6: D | JB6: P | JC6: Q | JD6: J | JE6: by volatilization | JF6: mass remaining | JG6: source depletion | JH6: IF statement | JJ6: initial mass | JK6: mass removed | JL6: A | JM6: B | JN6: D | JO6: P | JP6: Q | JQ6: J | JR6: by volatilization | JS6: mass remaining | JT6: source depletion | JU6: IF statement | KG6: Coarse Grain | KH6: Med/Fine Grain | KI6: Coarse Grain | KJ6: Med/Fine Grain | KK6: Coarse Grain | KL6: Med/Fine Grain | KN6: initial mass | KO6: mass removed | KP6: A | KQ6: B | KR6: D | KS6: P | KT6: Q | KU6: J | KV6: by volatilization | KW6: mass remaining | KX6: source depletion | KY6: IF statement | LA6: initial mass | LB6: mass removed | LC6: A | LD6: B | LE6: D | LF6: P | LG6: Q | LH6: J | LI6: by volatilization | LJ6: mass remaining | LK6: source depletion | LL6: IF statement | LN6: initial mass | LO6: mass removed | LP6: A | LQ6: B | LR6: D | LS6: P | LT6: Q | LU6: J | LV6: by volatilization | LW6: mass remaining | LX6: source depletion | LY6: IF statement | MA6: initial mass | MB6: mass removed | MC6: A | MD6: B | ME6: D | MF6: P | MG6: Q | MH6: J | MI6: by volatilization | MJ6: mass remaining | MK6: source depletion | ML6: IF statement
BV7: ug/L | BW7: unitless | BY7: per year | BZ7: m/a | CB7: Components of equilibrium partition eqtn used in FF to generate soil conc from leachate conc. | CD7: ug/L | CE7: ug/L | CF7: unitless | CH7: per year | CI7: m/a | CK7: components of Eqbm Partition eqtn | CM7: ug/L | CN7: ug/L | CO7: ug/L | CP7: unitless | CR7: per year | CS7: m/a | CV7: unitless | CW7: ug/L | CX7: ug/L | CY7: ug/L | CZ7: ug/L | DA7: unitless | DC7: per year | DG7: unitless | DH7: ug/L | DI7: ug/L | DJ7: years | DK7: for inorganics with no koc, default R to 1 | DN7: X | DO7: X | DP7: ERFC(A3) | DR7: entering groundwater | DW7: ug/L | DY7: for inorganics with no koc, default R to 1 | EB7: X | EC7: X | ED7: ERFC(X) | EK7: ug/L | EL7: cm/hr | EM7: cm/hr | EN7: cm/hr | EO7: cm/hr | EP7: ug/L | EQ7: ug/(m^3-min) | FV7: in first week to house | FW7: after one week | FX7: half life (years) | FY7: C0 Multiplier (SDM) | FZ7: in source zone from SIA pathway | GA7: in first week to house | GB7: after one week | GC7: half life (years) | GD7: C0 Multiplier (SDM) | GE7: in source zone from SIA pathway | GF7: in first week to building | GG7: after one week | GH7: half life (years) | GI7: C0 Multiplier (SDM) | GJ7: in source zone from SIA pathway | GK7: in first week to house | GL7: after one week | GM7: half life (years) | GP7: in first week to building | GQ7: now including the increased subsoil mass via alpha-ratio method | GR7: half life (years) | GS7: C0 Multiplier (SDM) | GU7: in first week to building. | GV7: now including the increased subsoil mass via alpha-ratio method | GW7: half life (years) | GX7: C0 Multiplier (SDM) | GY7: initial mass (ug) in source zone for GW1 pathway | GZ7: mass removed in first week due to leaching to water table | HA7: after one week of leaching | HB7: half life (years) | HC7: C0 Multiplier | HD7: initial mass in source zone for GW1 pathway | HE7: mass removed in first week due to leaching to water table | HF7: after one week of leaching | HG7: half life (years) | HH7: C0 Multiplier | HJ7: in source zone | HK7: in first week to groundwater | HP7: thickness^2/(4*D*t) | HQ7: P(1-exp(-Q)) | HR7: in 1 week (ug) | HS7: after one week | HT7: half life (years) | HU7: to calc C0 multiplier is disabled and 10 times is substituted | HW7: =IF(FD8="","",FD8*rbC*GW3width*GW3L*'Site Values - data input'!$B$19*1000000) -> 2.314039479e+16 | HX7: in first week to groundwater | IC7: thickness^2/(4*D*t) | ID7: P(1-exp(-Q)) | IE7: in 1 week (ug) | IF7: after one week | IG7: half life (years) | IH7: C0 Multiplier (SDM) | IJ7: =IF(FQ8="","",FQ8*rbC*GW3width*GW3L*'Site Values - data input'!$B$19*1000000) -> 3.546845196e+19 | IK7: in first week to groundwater | IP7: thickness^2/(4*D*t) | IQ7: P(1-exp(-Q)) | IR7: in 1 week (ug) | IS7: after one week | IT7: half life (years) | IU7: C0 Multiplier (SDM) | IW7: =IF(GD8="","",GD8*rbC*GW3width*GW3L*'Site Values - data input'!$B$19*1000000) -> 3.400001865e+14 | IX7: in first week to groundwater | JC7: thickness^2/(4*D*t) | JD7: P(1-exp(-Q)) | JE7: in 1 week (ug) | JF7: after one week | JG7: half life (years) | JH7: C0 Multiplier (SDM) | JJ7: =IF(GQ8="","",GQ8*rbC*GW3width*GW3L*'Site Values - data input'!$B$19*1000000) -> 6.041962155e+28 | JK7: in first week to groundwater | JP7: thickness^2/(4*D*t) | JQ7: P(1-exp(-Q)) | JR7: in 1 week (ug) | JS7: after one week | JT7: half life (years) | JU7: C0 Multiplier (SDM) | JW7: Volatility and Toxicity/Odour Check for S-IA (Odour+health), S-OA and S-GW2 pathways (YES/NO) | JY7: ug/L | JZ7: ug/L | KA7: ug/L | KB7: ug/L | KC7: ug/L | KD7: ug/L | KE7: ug/L | KF7: ug/L | KN7: =IF(ID8="","",ID8*rbC*GW3width*GW3L*'Site Values - data input'!$B$19*1000000) -> 5797.059363 | KO7: in first week to groundwater | KT7: thickness^2/(4*D*t) | KU7: P(1-exp(-Q)) | KV7: in 1 week (ug) | KW7: after one week | KX7: half life (years) | KY7: C0 Multiplier (SDM) | LA7: =IF(IQ8="","",IQ8*rbC*GW3width*GW3L*'Site Values - data input'!$B$19*1000000) -> 123480.6279 | LB7: in first week to groundwater | LG7: thickness^2/(4*D*t) | LH7: P(1-exp(-Q)) | LI7: in 1 week (ug) | LJ7: after one week | LK7: half life (years) | LL7: C0 Multiplier (SDM) | LN7: =IF(JD8="","",JD8*rbC*GW3width*GW3L*'Site Values - data input'!$B$19*1000000) -> 8566.408442 | LO7: in first week to groundwater | LT7: thickness^2/(4*D*t) | LU7: P(1-exp(-Q)) | LV7: in 1 week (ug) | LW7: after one week | LX7: half life (years) | LY7: C0 Multiplier (SDM) | MA7: =IF(JQ8="","",JQ8*rbC*GW3width*GW3L*'Site Values - data input'!$B$19*1000000) -> 125931.4379 | MB7: in first week to groundwater | MG7: thickness^2/(4*D*t) | MH7: P(1-exp(-Q)) | MI7: in 1 week (ug) | MJ7: after one week | MK7: half life (years) | ML7: C0 Multiplier (SDM)
... 8 more rows

Sheet Source depletion cont'd (hidden)
A1: Source Depletion: Calculations | Z1: S-GW2 NOT USED -- ignore | AJ1: =IF(AA1="","",IF(AC1="","",Z1-(AA1+AI1))) ->  | AX1: =IF(AO1="","",IF(AQ1="","",AN1-(AO1+AW1))) ->  | BL1: =IF(BC1="","",IF(BE1="","",BB1-(BC1+BK1))) ->  | BZ1: SOIL to IA INDUSTRIAL SUBSOIL ATTENUATION CALCULATIONS Coarse Grain | CE1: SOIL to IA INDUSTRIAL SUBSOIL ATTENUATION CALCULATIONS M/F Grain
A2: CHEMICAL NAME | B2: S - Nose pathway, a.k.a Soil-Odour pathway. Initial, Source Depletion Multiplier Calculations. | I2: Winter volatilization correction incorporated by multiplying total mass removed by (365 - #frost days)/365 | J2: final SDM calculations. Soil Odour. Coarse-grained Soil. | N2: S-Nose pathway, aka Soil-Odour. Source Depletion Multiplier Calculations. | O2: Jury Model, Finite-Source Flux calculations. | U2: Winter volatilization correction incorporated by multiplying total mass removed by (365 - #frost days)/365 | V2: final SDM calculations. Soil Odour. Medium&Fine-grained Soil | Z2: source depletion | AC2: Mass removed by volatilzation | AJ2: volatilization removed | AN2: source depletion | AQ2: Mass removed by volatilzation | AX2: volatilization removed | BB2: source depletion | BE2: Mass removed by volatilzation | BL2: volatilization removed | BP2: Soil-to-Outdoor Air (S-OA). | BZ2: Total overall effective diffusion coefficient Industrial (cm2/s) DeffT | CA2: (DeffTxAb)/(QbuildxL) | CB2: (DeffTxAb)/(QsoilxL) | CC2: Soil/IA INDUSTRIAL SUBSOIL ALPHA coarse grain (unitless) | CD2: Ratio of surface alpha to subsurface alpha - Coarse. Used to determine subsoil mass. | CE2: Total overall effective diffusion coefficient Industrial (cm2/s) DeffT | CF2: (DeffTxAb)/(QbuildxL) | CG2: (DeffTxAb)/(QsoilxL) | CH2: Soil/IA INDUSTRIAL SUBSOIL ALPHA M/F grain (unitless) | CI2: Ratio of surface alpha to subsurface alpha - M/F. Used to determine subsoil mass. | CN2: 0.01
B3: Coarse soil | C3: Jury Model, Finite-Source Flux calculations at t(seconds) = 1 week. | N3: Medium&Fine soil | Z3: half life (years) | AC3: using Jury Finite Source equation | AH3: mass removed | AJ3: Original formula in row 1 | AN3: half life (years) | AQ3: using Jury Finite Source equation | AV3: mass removed | AX3: original formula in row 1 | BB3: half life (years) | BE3: using Jury Finite Source equation | BJ3: mass removed | BL3: Original formula in row 1 | BP3: Residential setting. Coarse-grained soil. | CL3: Maximum Soil conc without presence of residual Free Phase | CN3: ="Soil conc only from "&CN2*100&"%"&" of pore space filled with NAPL" -> Soil conc only from 1% of pore space filled with NAPL
C4: Deff numerator | D4: Deff denominator | E4: Deff | F4: Jury equation Part 1 | G4: Jury equation Part 2 | H4: Flux = Mass volatilized per cm2, per second at time = t seconds. | O4: Deff numerator | P4: Deff denominator | Q4: Deff | R4: Jury equation Part 1 | S4: Jury equation Part 2 | T4: Flux = Mass volatilized per cm2, per second, at time = t seconds. | Z4: Residential MF via | AH4: gm/cm2-s | AN4: industrial Coarse via | AV4: gm/cm2-s | BB4: industrial MF via | BJ4: gm/cm2-s | BP4: Use Jury model, with t = 1 year, with dilution from atmosphere mixing cell, to determine C0(ug/g) | BV4: Use Jury Model to determine Soil C0 at t= 0 (g/cm3) | CL4: ug/g | CN4: ug/g
C5: (na^3.33*Dair*H'+nw^3.33*Dwater)/n^2 | D5: (pb*Kd+nw+naH') | E5: A/B | F5: C0(D/Pi*t)^.5 | G5: thickness^2/(4*D*t) | H5: (g/cm2-s) | L5: SDM = 1/exp(-ln(2)*1year/t1/2). SDM used to produce the soil conc that reduces to the odour aesthetic standard after one year of volatilization to atmosphere. Max SDM=10 | O5: (na^3.33*Dair*H'+nw^3.33*Dwater)/n^2 | P5: (pb*Kd+nw+naH') | Q5: A/B | R5: C0(D/Pi*t)^.5 | S5: thickness^2/(4*D*t) | T5: (g/cm2-s) | X5: SDM = 1/exp(-ln(2)*1year/t1/2). SDM used to produce the soil conc that reduces to the odour aesthetic standard after one year of volatilization to atmosphere. Max SDM=10 | Z5: GW2 leaching | AC5: (na^3.33*Dair*H'+nw^3.33*Dwater)/n^2 | AD5: (pb*Kd+nw+naH') | AE5: A/B | AF5: C0(D/Pi*t)^.5 | AI5: mass removed | AN5: GW2 leaching | AQ5: (na^3.33*Dair*H'+nw^3.33*Dwater)/n^2 | AR5: (pb*Kd+nw+naH') | AS5: A/B | AT5: C0(D/Pi*t)^.5 | AW5: mass removed | BB5: GW2 leaching | BE5: (na^3.33*Dair*H'+nw^3.33*Dwater)/n^2 | BF5: (pb*Kd+nw+naH') | BG5: A/B | BH5: C0(D/Pi*t)^.5 | BK5: mass removed | BP5: Mixing cell height of 200 cm from Atlantic RBCA | BQ5: Determine Jury Model componants at time=1 year. | BU5: Required Flux | CL5: these two, independently-calculated concentrations are added together in the Componant Table to arrive at the soil's free-phase "threshold".
C6: A | D6: B | E6: D | F6: P | G6: Q | H6: J | I6: J*Source Area*winter correction. | O6: A | P6: B | Q6: D | R6: P | S6: Q | T6: J | U6: J*Source Area*winter correction. | Z6: initial mass | AA6: mass removed | AB6: mass remaining | AC6: A | AD6: B | AE6: D | AF6: P | AG6: Q | AH6: J | AI6: by volatilization | AJ6: mass remaining | AK6: source depletion | AL6: IF statement to determine | AN6: initial mass | AO6: mass removed | AP6: mass remaining | AQ6: A | AR6: B | AS6: D | AT6: P | AU6: Q | AV6: J | AW6: by volatilization | AX6: mass remaining | AY6: source depletion | AZ6: IF statement to determine | BB6: initial mass | BC6: mass removed | BD6: mass remaining | BE6: A | BF6: B | BG6: D | BH6: P | BI6: Q | BJ6: J | BK6: by volatilization | BL6: mass remaining | BM6: source depletion | BN6: IF statement to determine | BP6: pb*Kd+nw+naH' | BQ6: A/B | BR6: (Deff/(Pi*1year)^.5 | BS6: d2/(4*Deff*1year) | BT6: 1-exp(-Q) | BU6: Determine the flux from soil, J, necessary to attain the Human Health Residential air impact, outside, in the atmosphere mixing cell, when t = 1 year. (g/cm2-sec) | BV6: J/(M*P) | BW6: 1,000,000*C0/bulk density
B7: Determine the initial mass in source zone (Mass1) | H7: P(1-exp(-Q)) | I7: Total mass removed by volatilization to atmosphere in one week (ug) | J7: Mass remaining in Source Zone after one week (Mass2) | K7: Source Depletion half life, t1/2. (years) | N7: Determine the initial mass in source zone (Mass1) | T7: P(1-exp(-Q)) | U7: Total mass removed by volatilization to atmosphere in one week (ug) | V7: Mass remaining in Source Zone after one week (Mass2) | W7: Source Depletion half life, t1/2. (years) | Z7: in source zone from controlling pathway | AA7: in first week via leaching | AB7: after one week | AG7: thickness^2/(4*D*t) | AH7: P(1-exp(-Q)) | AI7: in 1 week (ug) | AJ7: after one week | AK7: half life (years) | AL7: C0 Multiplier | AN7: in source zone from controlling pathway | AO7: in first week via leaching | AP7: after one week | AU7: thickness^2/(4*D*t) | AV7: P(1-exp(-Q)) | AW7: in 1 week (ug) | AX7: after one week | AY7: half life (years) | AZ7: C0 Multiplier | BB7: in source zone from controlling pathway | BC7: in first week via leaching | BD7: after one week | BI7: thickness^2/(4*D*t) | BJ7: P(1-exp(-Q)) | BK7: in 1 week (ug) | BL7: after one week | BM7: half life (years) | BN7: C0 Multiplier | BP7: B | BQ7: Deff | BR7: M | BS7: Q | BT7: P | BU7: J | BV7: C0 (g/cm3) | BW7: C0 (ug/g) | CL7: Coarse | CM7: Med/Fine | CN7: Coarse | CO7: Med/Fine
... 8 more rows

Sheet BRAT Component Table (hidden)
A1: Component Table | H1: GW2 with Bioattenuation Factor (BAF) of 100 if >=3m unsaturated separation, BAF =10 if separation is >74 cm; and BAF=1 if <74 cm | L1: Shallow Soils | CH1: QAQC add on---> | CI1: ID pathway controlled and Background or MDL controlled; comparison with GUCS included | DR1: The Following Are For Risk Calculations Without RMM | DS1: GW2 with Bioattenuation Factor (BAF) of 100 if >=3m unsaturated separation, BAF =10 if separation is >74 cm; and BAF=1 if <74 cm | DW1: Shallow Soils | EB1: old column 26 | ED1: new CTRisk,13 | EE1: old column 30 | EH1: =IF(('Human Health'!X14/'Human Health'!V14)<'Physical Transport'!FY14,'Physical Transport'!FJ14,"") -> 
A2: CHEMICAL NAME | B2: CASRN | E2: GW-1 ug/L | F2: GW-1 Odour Threshold | H2: GW-2 Residential | J2: GW-2 Industrial | L2: GW-2 Residential | N2: GW-2 Industrial | P2: ODOUR CEILING Residential | R2: ODOUR CEILING Industrial | T2: GW-3 | V2: SWDFfor APV*Aquatic Protection Value (ug/L) | W2: Water RL | X2: 1/2 Solubility | Y2: S1 | Z2: S2 | AA2: S3 | AC2: S/IA | AE2: S/IA | AG2: S/IA | AI2: S GW-1 | AK2: S GW-2 Residential | AM2: S GW-2 Industrial | AO2: S GW-3 | AS2: RESIDENTIAL INDOOR AIR ODOUR | AU2: INDUSTRIAL INDOOR AIR ODOUR | AW2: SOIL ODOUR | AY2: SOIL TO OUTDOOR AIR VALUE | AZ2: BACKGROUND | BB2: Soil RL | BC2: Mammals and Birds | BF2: Plants and Soil Invertebrates | BJ2: S GW-2 Residential (Shallow Soil) | BL2: S GW-2 Industrial (Shallow Soil) | BN2: S GW-3 (Shallow Soil) | BP2: INDUSTRIAL INDOOR AIR ODOUR (SUBSURFACE) | BR2: S GW-1 (Odour) | BT2: S GW-2 Residential (Odour) | BV2: S GW-2 Industrial (Odour) | BX2: S GW-2 Residential (Odour + Shallow) | BZ2: S GW-2 Industrial (Odour + Shallow) | CB2: GW-2 Residential (Odour + Shallow) | CD2: GW-2 Industrial (Odour + Shallow) | CF2: Lowest of S-GW1 (Odour + Risk), unless GW1 are set at ODWQS or CDWQS | CI2: original from final 9c_april7_eco10timesandwell3m.xls | CJ2: =Y2 -> S1 | CK2: S2 | CL2: S3 | CM2: RESIDENTIAL | CN2: S GW-1 | CO2: S GW-3 | CP2: SOIL TO NOSE | CQ2: plant invert protection | CR2: terrestrial | CU2: why is BM > BK? | DR2: CHEMICAL NAME | DS2: GW-2 Residential | DU2: GW-2 Industrial | DW2: GW-2 Residential | DY2: GW-2 Industrial | EA2: S1 | EB2: S2 | EC2: S3 | ED2: S/IA | EF2: S/IA | EH2: Mammals and Birds | EJ2: Plants and Soil Invertebrates
G3: GW-1 ug/L | AC3: RESIDENTIAL | AE3: INDUSTRIAL | AG3: INDUSTRIAL SubSurface | AQ3: Free Phase Threshold | AW3: (TO NOSE) VALUE | CM3: SIA | CP3: ODOUR VALUE | CS3: minimum value | DG3: lower than GUCS | DM3: SPLP Leachate Criteria Table | ED3: RESIDENTIAL | EF3: INDUSTRIAL
H4: ug/L | J4: ug/L | L4: ug/L | N4: ug/L | P4: ug/L | R4: ug/L | T4: ug/L | AC4: ug/g | AE4: ug/g | AG4: ug/g | AI4: ug/g | AK4: ug/g | AM4: ug/g | AO4: ug/g | AQ4: ug/g | AS4: ug/g | AU4: ug/g | AW4: ug/g | AZ4: ug/g | BJ4: ug/g | BL4: ug/g | BN4: ug/g | BP4: ug/g | BR4: ug/g | BT4: ug/g | BV4: ug/g | BX4: ug/g | BZ4: ug/g | CB4: ug/L | CD4: ug/L | CF4: ug/L | CM4: ug/g | CN4: ug/g | CO4: ug/g | CP4: ug/g | CS4: of | CT4: without multipliers | CU4: with SD multipliers | CV4: effect | CW4: factor | DG4: by what factor? | DS4: ug/L | DU4: ug/L | DW4: ug/L | DY4: ug/L | ED4: ug/g | EF4: ug/g
E5: COARSE | F5: ug/L | H5: Coarse Grain | I5: Med/Fine Grain | J5: Coarse Grain | K5: Med/Fine Grain | L5: Coarse Grain | M5: Med/Fine Grain | N5: Coarse Grain | O5: Med/Fine Grain | P5: Coarse Grain | Q5: Med/Fine Grain | R5: Coarse Grain | S5: Med/Fine Grain | T5: Coarse Grain with SWDFforAPV | U5: Med/Fine Grain with SWDFforAPV | V5: ug/L | W5: ug/L | X5: ug/L | Y5: ug/g | Z5: ug/g | AA5: ug/g | AC5: Coarse Grain with SIA residential SDM | AD5: Med/Fine Grain with SDM | AE5: Coarse Grain with SIA industrial SDM | AF5: Med/Fine Grain with SDM | AG5: Coarse Grain with SIA industrial stratified SDM | AH5: Med/Fine Grain with industrial stratified SDM | AI5: Coarse Grain with GW1 SDM | AJ5: Med/Fine Grain with SDM | AK5: Coarse Grain with SDM | AL5: Med/Fine Grain with SDM | AM5: Coarse Grain with SDM | AN5: Med/Fine Grain with SDM | AO5: Coarse Grain with SWDFforAPV | AP5: Med/Fine Grain with SWDFforAPV | AS5: Coarse Grain | AT5: Med/Fine Grain | AU5: Coarse Grain | AV5: Med/Fine Grain | AW5: Coarse Grain (with 5 times dilution) and depletion C0 multiplier | AX5: Med/Fine Grain (with 5 times dilution and CO multiplier) | AY5: ug/g | AZ5: Agricultural | BA5: Other Land Uses | BB5: ug/g | BC5: Agricultural | BD5: Residential/Parkland | BE5: Commercial/Industrial | BF5: Agricultural/Residential | BH5: Commercial/Industrial | BJ5: Coarse Grain with SDM | BK5: Med/Fine Grain with SDM | BL5: Coarse Grain with SDM | BM5: Med/Fine Grain with SDM | BN5: Coarse Grain with SWDFforAPV | BO5: Med/Fine Grain with SWDFforAPV | BP5: Coarse Grain | BQ5: Med/Fine Grain | BR5: Coarse Grain with GW1 SDM | BS5: Med/Fine Grain with SDM | BT5: Coarse Grain with SDM | BU5: Med/Fine Grain with SDM | BV5: Coarse Grain with SDM | BW5: Med/Fine Grain with SDM | BX5: Coarse Grain with SDM | BY5: Med/Fine Grain with SDM | BZ5: Coarse Grain with SDM | CA5: Med/Fine Grain with SDM | CB5: Coarse Grain | CC5: Med/Fine Grain | CD5: Coarse Grain | CE5: Med/Fine Grain | CF5: Coarse Grain | CG5: Med/Fine Grain | CI5: pink cell indicates controlling pathway | CJ5: ug/g | CK5: ug/g | CL5: ug/g | CM5: Coarse Grain | CN5: Coarse Grain | CO5: Coarse Grain | CP5: Coarse Grain | CS5: all the pathways | CU5: and best parameter values | CV5: of | CW5: change | CX5: standards which are | CY5: controlling value | CZ5: MDL | DA5: background | DB5: soil standard | DD5: residential coarse | DF5: this spreadsheet | DG5: greater than 10 | DS5: Coarse Grain | DT5: Med/Fine Grain | DU5: Coarse Grain | DV5: Med/Fine Grain | DW5: Coarse Grain | DX5: Med/Fine Grain | DY5: Coarse Grain | DZ5: Med/Fine Grain | EA5: ug/g | EB5: ug/g | EC5: ug/g | ED5: Coarse Grain with SIA residential SDM | EE5: Med/Fine Grain with SDM | EF5: Coarse Grain with SIA industrial SDM | EG5: Med/Fine Grain with SDM | EH5: Residential/Parkland | EI5: Commercial/Industrial | EJ5: Agricultural/Residential | EL5: Commercial/Industrial
BF6: Coarse Grain | BG6: Med./Fine Grain | BH6: Coarse Grain | BI6: Med./Fine Grain | CQ6: Coarse Grain | CS6: for | CT6: original 9f MOE criteria model | CU6: (this spreadsheet) | CV6: this spreadsheet | CX6: Pathway controlled | CY6: if not a pathway | CZ6: ug/g | DA6: ug/g | DB6: is >=pathway minima | DD6: GUCS | DE6: 9f with SDmultipliers | DF6: compared to GUCS | DG6: greater than 100 | DN6: GW1 | DO6: GW3 | EJ6: Coarse Grain | EK6: Med./Fine Grain | EL6: Coarse Grain | EM6: Med./Fine Grain
G7: M/F same as Coarse | AB7: Vapour Pressure cutoff | AQ7: Coarse | AR7: Med/Fine | CS7: residential coarse | CT7: ResCoarse surface soil standard | CU7: ResCoarse surface soil standard | CX7: BUT if no MDL or Background it will read pathway controlled | CY7: =CY147+CY149 -> 0 | DD7: 1997 | DE7: (this spreadsheet) | DF7: higher, same or lower? | DM7: Chemical Name | DN7: all | DO7: coarse, fine, shallow or< 30m (based on T2 Input)
... 8 more rows

Sheet Ag_Soil Risk Calc (hidden)
A1: ="AGRICULTURAL LAND USE" -> AGRICULTURAL LAND USE | B1: ICRL: | C1: 0.0001 | D1: HQ: | E1: 1 | F1: HQ-Eco: | G1: 10 | AT1: DAF | AU1: 2 | AV1: 6 | CI1: DAF | CJ1: =$AU$1 -> 2 | CK1: =$AV$1 -> 6 | DX1: DAF | DY1: =$AU$1 -> 2 | EA1: =$AV$1 -> 6
A2: CHEMICAL NAME | B2: TABLE 1 Stantards Agri +Others | D2: TABLE 2 Stantards (Coarse) | F2: TABLE 2 Stantards (F/M) | H2: TABLE 6 Stantards (Coarse) | J2: TABLE 6 Stantards (F/M) | L2: TABLE8 Stantards (Coarse) | N2: TABLE 8 Stantards (F/M) | P2: TABLE 10 Stantards (Coarse) | R2: TABLE 10 Stantards (F/M) | U2: RISK ESTIMATES for S-IA | X2: RISK ESTIMATES for S-IA | AT2: RISK ESTIMATES for S-GW1 | CI2: RISK ESTIMATES for S-GW2 | DX2: RISK ESTIMATES for S-GW3 | FM2: CHEMICALS WITH ANALYTICAL LIMITATION
U4: Table 2 Standards | X4: Table 2 Standards | AA4: Table 6 Standards | AD4: Table 6 Standards | AG4: Table 8 Standards | AJ4: Table 8 Standards | AM4: Table 10 Standards | AP4: Table 10 Standards | AT4: Table 2 Standards | AY4: Table 2 Standards | BD4: Table 6 Standards | BI4: Table 6 Standards | BN4: Table 8 Standards | BS4: Table 8 Standards | BX4: Table 10 Standards | CC4: Table 10 Standards | CI4: Table 2 Standards | CN4: Table 2 Standards | CS4: Table 6 Standards | CX4: Table 6 Standards | DC4: Table 8 Standards | DH4: Table 8 Standards | DM4: Table 10 Standards | DR4: Table 10 Standards | DX4: Table 2 Standards | EC4: Table 2 Standards | EH4: Table 6 Standards | EM4: Table 6 Standards | ER4: Table 8 Standards | EW4: Table 8 Standards | FB4: Table 10 Standards | FG4: Table 10 Standards | FM4: Table 2 Standards | FQ4: Table 2 Standards | FU4: Table 6 Standards | FY4: Table 6 Standards | GC4: Table 8 Standards | GG4: Table 8 Standards | GK4: Table 10 Standards | GO4: Table 10 Standards
U5: COARSE | X5: F/M | AA5: COARSE | AD5: F/M | AG5: COARSE | AJ5: F/M | AM5: COARSE | AP5: F/M | AT5: COARSE | AY5: F/M | BD5: COARSE | BI5: F/M | BN5: COARSE | BS5: F/M | BX5: COARSE | CC5: F/M | CI5: COARSE | CN5: F/M | CS5: COARSE | CX5: F/M | DC5: COARSE | DH5: F/M | DM5: COARSE | DR5: F/M | DX5: COARSE | EC5: F/M | EH5: COARSE | EM5: F/M | ER5: COARSE | EW5: F/M | FB5: COARSE | FG5: F/M | FM5: COARSE | FQ5: F/M | FU5: COARSE | FY5: F/M | GC5: COARSE | GG5: F/M | GK5: COARSE | GO5: F/M
B6: (mg/kg) | C6: (Set at RLs) | D6: (mg/kg) | E6: (Set at RL) | F6: (mg/kg) | G6: (Set at RL) | H6: (mg/kg) | I6: (Set at RL) | L6: (mg/kg) | M6: (Set at RL) | P6: (mg/kg) | Q6: (Set at RL) | R6: (mg/kg) | S6: (Set at RL)
U7: (IRCL) | V7: (HQ) | W7: High Risk (RL) | X7: (IRCL) | Y7: (HQ) | Z7: High Risk (RL) | AA7: (IRCL) | AB7: (HQ) | AC7: High Risk (RL) | AD7: (IRCL) | AE7: (HQ) | AF7: High Risk (RL) | AG7: (IRCL) | AH7: (HQ) | AI7: High Risk (RL) | AJ7: (IRCL) | AK7: (HQ) | AL7: High Risk (RL) | AM7: (IRCL) | AN7: (HQ) | AO7: High Risk (RL) | AP7: (IRCL) | AQ7: (HQ) | AR7: High Risk (RL) | AS7: GW Based on Aesthetic | AT7: (IRCL) | AU7: (HQ) | AV7: Odour Ratio | AW7: Risk Multiplier (to URT) | AX7: Pathway of concern | AY7: (IRCL) | AZ7: (HQ) | BA7: Odour Ratio | BB7: Risk Multiplier (to URT) | BC7: Pathway of concern | BD7: (IRCL) | BE7: (HQ) | BF7: Odour Ratio | BG7: Risk Multiplier (to URT) | BH7: Pathway of concern | BI7: (IRCL) | BJ7: (HQ) | BK7: Odour Ratio | BL7: Risk Multiplier (to URT) | BM7: Pathway of concern | BN7: (IRCL) | BO7: (HQ) | BP7: Odour Ratio | BQ7: Risk Multiplier (to URT) | BR7: Pathway of concern | BS7: (IRCL) | BT7: (HQ) | BU7: Odour Ratio | BV7: Risk Multiplier (to URT) | BW7: Pathway of concern | BX7: (IRCL) | BY7: (HQ) | BZ7: Odour Ratio | CA7: Risk Multiplier (to URT) | CB7: Pathway of concern | CC7: (IRCL) | CD7: (HQ) | CE7: Odour Ratio | CF7: Risk Multiplier (to URT) | CG7: Pathway of concern | CI7: (IRCL) | CJ7: (HQ) | CK7: Odour Ratio | CL7: Risk Multiplier (to URT) | CM7: Pathway of concern | CN7: (IRCL) | CO7: (HQ) | CP7: Odour Ratio | CQ7: Risk Multiplier (to URT) | CR7: Pathway of concern | CS7: (IRCL) | CT7: (HQ) | CU7: Odour Ratio | CV7: Risk Multiplier (to URT) | CW7: Pathway of concern | CX7: (IRCL) | CY7: (HQ) | CZ7: Odour Ratio | DA7: Risk Multiplier (to URT) | DB7: Pathway of concern | DC7: (IRCL) | DD7: (HQ) | DE7: Odour Ratio | DF7: Risk Multiplier (to URT) | DG7: Pathway of concern | DH7: (IRCL) | DI7: (HQ) | DJ7: Odour Ratio | DK7: Risk Multiplier (to URT) | DL7: Pathway of concern | DM7: (IRCL) | DN7: (HQ) | DO7: Odour Ratio | DP7: Risk Multiplier (to URT) | DQ7: Pathway of concern | DR7: (IRCL) | DS7: (HQ) | DT7: Odour Ratio | DU7: Risk Multiplier (to URT) | DV7: Pathway of concern | DX7: (HQ) | DY7: Note | EA7: Risk Multiplier (to URT) | EB7: Pathway of concern | EC7: (HQ) | ED7: Note | EF7: Risk Multiplier (to URT) | EG7: Pathway of concern | EH7: (HQ) | EI7: Note | EK7: Risk Multiplier (to URT) | EL7: Pathway of concern | EM7: (HQ) | EN7: Note | EP7: Risk Multiplier (to URT) | EQ7: Pathway of concern | ER7: (HQ) | ES7: Note | EU7: Risk Multiplier (to URT) | EV7: Pathway of concern | EW7: (HQ) | EX7: Note | EZ7: Risk Multiplier (to URT) | FA7: Pathway of concern | FB7: (HQ) | FC7: Note | FE7: Risk Multiplier (to URT) | FF7: Pathway of concern | FG7: (HQ) | FH7: Note | FJ7: Risk Multiplier (to URT) | FK7: Pathway of concern | FM7: COPC | FN7: Inhalation Pathways of Concern | FO7: Risk Multiplier (to URT) | FP7: S-GW Pathways of Concern | FQ7: COPC | FR7: Inhalation Pathways of Concern | FS7: Risk Multiplier (to URT) | FT7: S-GW Pathways of Concern | FU7: COPC | FV7: Inhalation Pathways of Concern | FW7: Risk Multiplier (to URT) | FX7: S-GW Pathways of Concern | FY7: COPC | FZ7: Inhalation Pathways of Concern | GA7: Risk Multiplier (to URT) | GB7: S-GW Pathways of Concern | GC7: COPC | GD7: Inhalation Pathways of Concern | GE7: Risk Multiplier (to URT) | GF7: S-GW Pathways of Concern | GG7: COPC | GH7: Inhalation Pathways of Concern | GI7: Risk Multiplier (to URT) | GJ7: S-GW Pathways of Concern | GK7: COPC | GL7: Inhalation Pathways of Concern | GM7: Risk Multiplier (to URT) | GN7: S-GW Pathways of Concern | GO7: COPC | GP7: Inhalation Pathways of Concern | GQ7: Risk Multiplier (to URT) | GR7: S-GW Pathways of Concern
... 7 more rows

Sheet RPI_Soil Risk Calc (hidden)
A1: RPI LAND USE | B1: ICRL: | C1: ='Ag_Soil Risk Calc'!$C$1 -> 0.0001 | D1: HQ: | E1: ='Ag_Soil Risk Calc'!$E$1 -> 1 | F1: HQ-Eco: | G1: ='Ag_Soil Risk Calc'!$G$1 -> 10 | DV1: DAF | DW1: ='Ag_Soil Risk Calc'!$AU$1 -> 2 | DX1: ='Ag_Soil Risk Calc'!$AV$1 -> 6 | HS1: DAF | HT1: =IF('Phys_Chem & Tox'!BI8=10,$DX$1,$DW$1) -> 2 | HU1: ='Ag_Soil Risk Calc'!$AV$1 -> 6 | LP1: DAF | LQ1: =IF('Phys_Chem & Tox'!BI8=10,$DX$1,$DW$1) -> 2 | LS1: ='Ag_Soil Risk Calc'!$AV$1 -> 6
A2: CHEMICAL NAME | B2: TABLE 1 Stantards Res +Others | D2: TABLE 2 Stantards (Coarse) | F2: TABLE 2 Stantards (F/M) | H2: TABLE 3 Stantards (Coarse) | J2: TABLE 3 Stantards (F/M) | L2: TABLE 4 Stantards (Coarse) | N2: TABLE 4 Stantards (F/M) | P2: TABLE 5 Stantards (Coarse) | R2: TABLE 5 Stantards (F/M) | T2: TABLE 6 Stantards (Coarse) | V2: TABLE 6 Stantards (F/M) | X2: TABLE 7 Stantards (Coarse) | Z2: TABLE 7 Stantards (F/M) | AB2: TABLE8 Stantards (Coarse) | AD2: TABLE 8 Stantards (F/M) | AF2: TABLE 9 Stantards (Coarse) | AH2: TABLE 9 Stantards (F/M) | AJ2: TABLE 10 Stantards (Coarse) | AL2: TABLE 10 Stantards (F/M) | AN2: TABLE 11 Stantards (Coarse) | AP2: TABLE 11 Stantards (F/M) | BM2: RISK ESTIMATES for S-IA | DV2: RISK ESTIMATES for S-GW1 | HS2: RISK ESTIMATES for S-GW2 | LP2: RISK ESTIMATES for S-GW3 | PM2: CHEMICALS WITH ANALYTICAL LIMITATION
BM4: Table 2 Standards | BP4: Table 2 Standards | BS4: Table 3 Standards | BV4: Table 3 Standards | BY4: Table 4 Standards | CB4: Table 4 Standards | CE4: Table 5 Standards | CH4: Table 5 Standards | CK4: Table 6 Standards | CN4: Table 6 Standards | CQ4: Table 7 Standards | CT4: Table 7 Standards | CW4: Table 8 Standards | CZ4: Table 8 Standards | DC4: Table 9 Standards | DF4: Table 9 Standards | DI4: Table 10 Standards | DL4: Table 10 Standards | DO4: Table 11 Standards | DR4: Table 11 Standards | DV4: Table 2 Standards | EA4: Table 2 Standards | EF4: Table 3 Standards | EK4: Table 3 Standards | EP4: Table 4 Standards | EU4: Table 4 Standards | EZ4: Table 5 Standards | FE4: Table 5 Standards | FJ4: Table 6 Standards | FO4: Table 6 Standards | FT4: Table 7 Standards | FY4: Table 7 Standards | GD4: Table 8 Standards | GI4: Table 8 Standards | GN4: Table 9 Standards | GS4: Table 9 Standards | GX4: Table 10 Standards | HC4: Table 10 Standards | HH4: Table 11 Standards | HM4: Table 11 Standards | HS4: Table 2 Standards | HX4: Table 2 Standards | IC4: Table 3 Standards | IH4: Table 3 Standards | IM4: Table 4 Standards | IR4: Table 4 Standards | IW4: Table 5 Standards | JB4: Table 5 Standards | JG4: Table 6 Standards | JL4: Table 6 Standards | JQ4: Table 7 Standards | JV4: Table 7 Standards | KA4: Table 8 Standards | KF4: Table 8 Standards | KK4: Table 9 Standards | KP4: Table 9 Standards | KU4: Table 10 Standards | KZ4: Table 10 Standards | LE4: Table 11 Standards | LJ4: Table 11 Standards | LP4: Table 2 Standards | LU4: Table 2 Standards | LZ4: Table 3 Standards | ME4: Table 3 Standards | MJ4: Table 4 Standards | MO4: Table 4 Standards | MT4: Table 5 Standards | MY4: Table 5 Standards | ND4: Table 6 Standards | NI4: Table 6 Standards | NN4: Table 7 Standards | NS4: Table 7 Standards | NX4: Table 8 Standards | OC4: Table 8 Standards | OH4: Table 9 Standards | OM4: Table 9 Standards | OR4: Table 10 Standards | OW4: Table 10 Standards | PB4: Table 11 Standards | PG4: Table 11 Standards | PM4: Table 2 Standards | PQ4: Table 2 Standards | PU4: Table 3 Standards | PY4: Table 3 Standards | QC4: Table 4 Standards | QG4: Table 4 Standards | QK4: Table 5 Standards | QO4: Table 5 Standards | QS4: Table 6 Standards | QW4: Table 6 Standards | RA4: Table 7 Standards | RE4: Table 7 Standards | RI4: Table 8 Standards | RM4: Table 8 Standards | RQ4: Table 9 Standards | RU4: Table 9 Standards | RY4: Table 10 Standards | SC4: Table 10 Standards | SG4: Table 11 Standards | SK4: Table 11 Standards
BM5: COARSE | BP5: F/M | BS5: COARSE | BV5: F/M | BY5: COARSE | CB5: F/M | CE5: COARSE | CH5: F/M | CK5: COARSE | CN5: F/M | CQ5: COARSE | CT5: F/M | CW5: COARSE | CZ5: F/M | DC5: COARSE | DF5: F/M | DI5: COARSE | DL5: F/M | DO5: COARSE | DR5: F/M | DV5: COARSE | EA5: F/M | EF5: COARSE | EK5: F/M | EP5: COARSE | EU5: F/M | EZ5: COARSE | FE5: F/M | FJ5: COARSE | FO5: F/M | FT5: COARSE | FY5: F/M | GD5: COARSE | GI5: F/M | GN5: COARSE | GS5: F/M | GX5: COARSE | HC5: F/M | HH5: COARSE | HM5: F/M | HS5: COARSE | HX5: F/M | IC5: COARSE | IH5: F/M | IM5: COARSE | IR5: F/M | IW5: COARSE | JB5: F/M | JG5: COARSE | JL5: F/M | JQ5: COARSE | JV5: F/M | KA5: COARSE | KF5: F/M | KK5: COARSE | KP5: F/M | KU5: COARSE | KZ5: F/M | LE5: COARSE | LJ5: F/M | LP5: COARSE | LU5: F/M | LZ5: COARSE | ME5: F/M | MJ5: COARSE | MO5: F/M | MT5: COARSE | MY5: F/M | ND5: COARSE | NI5: F/M | NN5: COARSE | NS5: F/M | NX5: COARSE | OC5: F/M | OH5: COARSE | OM5: F/M | OR5: COARSE | OW5: F/M | PB5: COARSE | PG5: F/M | PM5: COARSE | PQ5: F/M | PU5: COARSE | PY5: F/M | QC5: COARSE | QG5: F/M | QK5: COARSE | QO5: F/M | QS5: COARSE | QW5: F/M | RA5: COARSE | RE5: F/M | RI5: COARSE | RM5: F/M | RQ5: COARSE | RU5: F/M | RY5: COARSE | SC5: F/M | SG5: COARSE | SK5: F/M
B6: (mg/kg) | C6: (Set at RLs) | D6: (mg/kg) | E6: (Set at RL) | F6: (mg/kg) | G6: (Set at RL) | H6: (mg/kg) | I6: (Set at RL) | J6: (mg/kg) | K6: (Set at RL) | L6: (mg/kg) | M6: (Set at RL) | N6: (mg/kg) | O6: (Set at RL) | P6: (mg/kg) | Q6: (Set at RL) | R6: (mg/kg) | S6: (Set at RL) | T6: (mg/kg) | U6: (Set at RL) | V6: (mg/kg) | W6: (Set at RL) | X6: (mg/kg) | Y6: (Set at RL) | Z6: (mg/kg) | AA6: (Set at RL) | AB6: (mg/kg) | AC6: (Set at RL) | AD6: (mg/kg) | AE6: (Set at RL) | AF6: (mg/kg) | AG6: (Set at RL) | AH6: (mg/kg) | AI6: (Set at RL) | AJ6: (mg/kg) | AK6: (Set at RL) | AL6: (mg/kg) | AM6: (Set at RL) | AN6: (mg/kg) | AO6: (Set at RL) | AP6: (mg/kg) | AQ6: (Set at RL)
BM7: (IRCL) | BN7: (HQ) | BO7: High Risk (RL) | BP7: (IRCL) | BQ7: (HQ) | BR7: High Risk (RL) | BS7: (IRCL) | BT7: (HQ) | BU7: High Risk (RL) | BV7: (IRCL) | BW7: (HQ) | BX7: High Risk (RL) | BY7: (IRCL) | BZ7: (HQ) | CA7: High Risk (RL) | CB7: (IRCL) | CC7: (HQ) | CD7: High Risk (RL) | CE7: (IRCL) | CF7: (HQ) | CG7: High Risk (RL) | CH7: (IRCL) | CI7: (HQ) | CJ7: High Risk (RL) | CK7: (IRCL) | CL7: (HQ) | CM7: High Risk (RL) | CN7: (IRCL) | CO7: (HQ) | CP7: High Risk (RL) | CQ7: (IRCL) | CR7: (HQ) | CS7: High Risk (RL) | CT7: (IRCL) | CU7: (HQ) | CV7: High Risk (RL) | CW7: (IRCL) | CX7: (HQ) | CY7: High Risk (RL) | CZ7: (IRCL) | DA7: (HQ) | DB7: High Risk (RL) | DC7: (IRCL) | DD7: (HQ) | DE7: High Risk (RL) | DF7: (IRCL) | DG7: (HQ) | DH7: High Risk (RL) | DI7: (IRCL) | DJ7: (HQ) | DK7: High Risk (RL) | DL7: (IRCL) | DM7: (HQ) | DN7: High Risk (RL) | DO7: (IRCL) | DP7: (HQ) | DQ7: High Risk (RL) | DR7: (IRCL) | DS7: (HQ) | DT7: High Risk (RL) | DU7: GW Based on Aesthetic | DV7: (IRCL) | DW7: (HQ) | DX7: Odour Ratio | DY7: Risk Multiplier (to URT) | DZ7: Pathway of concern | EA7: (IRCL) | EB7: (HQ) | EC7: Odour Ratio | ED7: Risk Multiplier (to URT) | EE7: Pathway of concern | EF7: (IRCL) | EG7: (HQ) | EI7: Risk Multiplier (to URT) | EJ7: Pathway of concern | EK7: (IRCL) | EL7: (HQ) | EN7: Risk Multiplier (to URT) | EO7: Pathway of concern | EP7: (IRCL) | EQ7: (HQ) | ER7: Odour Ratio | ES7: Risk Multiplier (to URT) | ET7: Pathway of concern | EU7: (IRCL) | EV7: (HQ) | EW7: Odour Ratio | EX7: Risk Multiplier (to URT) | EY7: Pathway of concern | EZ7: (IRCL) | FA7: (HQ) | FC7: Risk Multiplier (to URT) | FD7: Pathway of concern | FE7: (IRCL) | FF7: (HQ) | FH7: Risk Multiplier (to URT) | FI7: Pathway of concern | FJ7: (IRCL) | FK7: (HQ) | FL7: Odour Ratio | FM7: Risk Multiplier (to URT) | FN7: Pathway of concern | FO7: (IRCL) | FP7: (HQ) | FQ7: Odour Ratio | FR7: Risk Multiplier (to URT) | FS7: Pathway of concern | FT7: (IRCL) | FU7: (HQ) | FW7: Risk Multiplier (to URT) | FX7: Pathway of concern | FY7: (IRCL) | FZ7: (HQ) | GB7: Risk Multiplier (to URT) | GC7: Pathway of concern | GD7: (IRCL) | GE7: (HQ) | GF7: Odour Ratio | GG7: Risk Multiplier (to URT) | GH7: Pathway of concern | GI7: (IRCL) | GJ7: (HQ) | GK7: Odour Ratio | GL7: Risk Multiplier (to URT) | GM7: Pathway of concern | GN7: (IRCL) | GO7: (HQ) | GQ7: Risk Multiplier (to URT) | GR7: Pathway of concern | GS7: (IRCL) | GT7: (HQ) | GV7: Risk Multiplier (to URT) | GW7: Pathway of concern | GX7: (IRCL) | GY7: (HQ) | GZ7: Odour Ratio | HA7: Risk Multiplier (to URT) | HB7: Pathway of concern | HC7: (IRCL) | HD7: (HQ) | HE7: Odour Ratio | HF7: Risk Multiplier (to URT) | HG7: Pathway of concern | HH7: (IRCL) | HI7: (HQ) | HK7: Risk Multiplier (to URT) | HL7: Pathway of concern | HM7: (IRCL) | HN7: (HQ) | HP7: Risk Multiplier (to URT) | HQ7: Pathway of concern | HS7: (IRCL) | HT7: (HQ) | HU7: Odour Ratio | HV7: Risk Multiplier (to URT) | HW7: Pathway of concern | HX7: (IRCL) | HY7: (HQ) | HZ7: Odour Ratio | IA7: Risk Multiplier (to URT) | IB7: Pathway of concern | IC7: (IRCL) | ID7: (HQ) | IE7: Odour Ratio | IF7: Risk Multiplier (to URT) | IG7: Pathway of concern | IH7: (IRCL) | II7: (HQ) | IJ7: Odour Ratio | IK7: Risk Multiplier (to URT) | IL7: Pathway of concern | IM7: (IRCL) | IN7: (HQ) | IO7: Odour Ratio | IP7: Risk Multiplier (to URT) | IQ7: Pathway of concern | IR7: (IRCL) | IS7: (HQ) | IT7: Odour Ratio | IU7: Risk Multiplier (to URT) | IV7: Pathway of concern | IW7: (IRCL) | IX7: (HQ) | IY7: Odour Ratio | IZ7: Risk Multiplier (to URT) | JA7: Pathway of concern | JB7: (IRCL) | JC7: (HQ) | JD7: Odour Ratio | JE7: Risk Multiplier (to URT) | JF7: Pathway of concern | JG7: (IRCL) | JH7: (HQ) | JI7: Odour Ratio | JJ7: Risk Multiplier (to URT) | JK7: Pathway of concern | JL7: (IRCL) | JM7: (HQ) | JN7: Odour Ratio | JO7: Risk Multiplier (to URT) | JP7: Pathway of concern | JQ7: (IRCL) | JR7: (HQ) | JS7: Odour Ratio | JT7: Risk Multiplier (to URT) | JU7: Pathway of concern | JV7: (IRCL) | JW7: (HQ) | JX7: Odour Ratio | JY7: Risk Multiplier (to URT) | JZ7: Pathway of concern | KA7: (IRCL) | KB7: (HQ) | KC7: Odour Ratio | KD7: Risk Multiplier (to URT) | KE7: Pathway of concern | KF7: (IRCL) | KG7: (HQ) | KH7: Odour Ratio | KI7: Risk Multiplier (to URT) | KJ7: Pathway of concern | KK7: (IRCL) | KL7: (HQ) | KM7: Odour Ratio | KN7: Risk Multiplier (to URT) | KO7: Pathway of concern | KP7: (IRCL) | KQ7: (HQ) | KR7: Odour Ratio | KS7: Risk Multiplier (to URT) | KT7: Pathway of concern | KU7: (IRCL) | KV7: (HQ) | KW7: Odour Ratio | KX7: Risk Multiplier (to URT) | KY7: Pathway of concern | KZ7: (IRCL) | LA7: (HQ) | LB7: Odour Ratio | LC7: Risk Multiplier (to URT) | LD7: Pathway of concern | LE7: (IRCL) | LF7: (HQ) | LG7: Odour Ratio | LH7: Risk Multiplier (to URT) | LI7: Pathway of concern | LJ7: (IRCL) | LK7: (HQ) | LL7: Odour Ratio | LM7: Risk Multiplier (to URT) | LN7: Pathway of concern | LP7: (HQ) | LQ7: Note | LS7: Risk Multiplier (to URT) | LT7: Pathway of concern | LU7: (HQ) | LV7: Note | LX7: Risk Multiplier (to URT) | LY7: Pathway of concern | LZ7: (HQ) | MA7: Note | MC7: Risk Multiplier (to URT) | MD7: Pathway of concern | ME7: (HQ) | MF7: Note | MH7: Risk Multiplier (to URT) | MI7: Pathway of concern | MJ7: (HQ) | MK7: Note | MM7: Risk Multiplier (to URT) | MN7: Pathway of concern | MO7: (HQ) | MP7: Note | MR7: Risk Multiplier (to URT) | MS7: Pathway of concern | MT7: (HQ) | MU7: Note | MW7: Risk Multiplier (to URT) | MX7: Pathway of concern | MY7: (HQ) | MZ7: Note | NB7: Risk Multiplier (to URT) | NC7: Pathway of concern | ND7: (HQ) | NE7: Note | NG7: Risk Multiplier (to URT) | NH7: Pathway of concern | NI7: (HQ) | NJ7: Note | NL7: Risk Multiplier (to URT) | NM7: Pathway of concern | NN7: (HQ) | NO7: Note | NQ7: Risk Multiplier (to URT) | NR7: Pathway of concern | NS7: (HQ) | NT7: Note | NV7: Risk Multiplier (to URT) | NW7: Pathway of concern | NX7: (HQ) | NY7: Note | OA7: Risk Multiplier (to URT) | OB7: Pathway of concern | OC7: (HQ) | OD7: Note | OF7: Risk Multiplier (to URT) | OG7: Pathway of concern | OH7: (HQ) | OI7: Note | OK7: Risk Multiplier (to URT) | OL7: Pathway of concern | OM7: (HQ) | ON7: Note | OP7: Risk Multiplier (to URT) | OQ7: Pathway of concern | OR7: (HQ) | OS7: Note | OU7: Risk Multiplier (to URT) | OV7: Pathway of concern | OW7: (HQ) | OX7: Note | OZ7: Risk Multiplier (to URT) | PA7: Pathway of concern | PB7: (HQ) | PC7: Note | PE7: Risk Multiplier (to URT) | PF7: Pathway of concern | PG7: (HQ) | PH7: Note | PJ7: Risk Multiplier (to URT) | PK7: Pathway of concern | PM7: COPC | PN7: Inhalation Pathways of Concern | PO7: Risk Multiplier (to URT) | PP7: S-GW Pathways of Concern | PQ7: COPC | PR7: Inhalation Pathways of Concern | PS7: Risk Multiplier (to URT) | PT7: S-GW Pathways of Concern | PU7: COPC | PV7: Inhalation Pathways of Concern | PW7: Risk Multiplier (to URT) | PX7: S-GW Pathways of Concern | PY7: COPC | PZ7: Inhalation Pathways of Concern | QA7: Risk Multiplier (to URT) | QB7: S-GW Pathways of Concern | QC7: COPC | QD7: Inhalation Pathways of Concern | QE7: Risk Multiplier (to URT) | QF7: S-GW Pathways of Concern | QG7: COPC | QH7: Inhalation Pathways of Concern | QI7: Risk Multiplier (to URT) | QJ7: S-GW Pathways of Concern | QK7: COPC | QL7: Inhalation Pathways of Concern | QM7: Risk Multiplier (to URT) | QN7: S-GW Pathways of Concern | QO7: COPC | QP7: Inhalation Pathways of Concern | QQ7: Risk Multiplier (to URT) | QR7: S-GW Pathways of Concern | QS7: COPC | QT7: Inhalation Pathways of Concern | QU7: Risk Multiplier (to URT) | QV7: S-GW Pathways of Concern | QW7: COPC | QX7: Inhalation Pathways of Concern | QY7: Risk Multiplier (to URT) | QZ7: S-GW Pathways of Concern | RA7: COPC | RB7: Inhalation Pathways of Concern | RC7: Risk Multiplier (to URT) | RD7: S-GW Pathways of Concern | RE7: COPC | RF7: Inhalation Pathways of Concern | RG7: Risk Multiplier (to URT) | RH7: S-GW Pathways of Concern | RI7: COPC | RJ7: Inhalation Pathways of Concern | RK7: Risk Multiplier (to URT) | RL7: S-GW Pathways of Concern | RM7: COPC | RN7: Inhalation Pathways of Concern | RO7: Risk Multiplier (to URT) | RP7: S-GW Pathways of Concern | RQ7: COPC | RR7: Inhalation Pathways of Concern | RS7: Risk Multiplier (to URT) | RT7: S-GW Pathways of Concern | RU7: COPC | RV7: Inhalation Pathways of Concern | RW7: Risk Multiplier (to URT) | RX7: S-GW Pathways of Concern | RY7: COPC | RZ7: Inhalation Pathways of Concern | SA7: Risk Multiplier (to URT) | SB7: S-GW Pathways of Concern | SC7: COPC | SD7: Inhalation Pathways of Concern | SE7: Risk Multiplier (to URT) | SF7: S-GW Pathways of Concern | SG7: COPC | SH7: Inhalation Pathways of Concern | SI7: Risk Multiplier (to URT) | SJ7: S-GW Pathways of Concern | SK7: COPC | SL7: Inhalation Pathways of Concern | SM7: Risk Multiplier (to URT) | SN7: S-GW Pathways of Concern
... 7 more rows

Sheet ICC_Soil Risk Calc (hidden)
A1: ICC LAND USE | B1: ICRL: | C1: ='Ag_Soil Risk Calc'!$C$1 -> 0.0001 | D1: HQ: | E1: ='Ag_Soil Risk Calc'!$E$1 -> 1 | F1: HQ-Eco: | G1: ='Ag_Soil Risk Calc'!$G$1 -> 10 | DB1: DAF | DC1: ='Ag_Soil Risk Calc'!$AU$1 -> 2 | DD1: ='Ag_Soil Risk Calc'!$AV$1 -> 6 | GY1: DAF | GZ1: ='Ag_Soil Risk Calc'!$AU$1 -> 2 | HA1: ='Ag_Soil Risk Calc'!$AV$1 -> 6 | KV1: DAF | KW1: ='Ag_Soil Risk Calc'!$AU$1 -> 2 | KY1: ='Ag_Soil Risk Calc'!$AV$1 -> 6
A2: CHEMICAL NAME | B2: TABLE 1 Standards Res +Others | D2: TABLE 2 Standards (Coarse) | F2: TABLE 2 Standards (F/M) | H2: TABLE 3 Standards (Coarse) | J2: TABLE 3 Standards (F/M) | L2: TABLE 4 Standards (Coarse) | N2: TABLE 4 Standards (F/M) | P2: TABLE 5 Standards (Coarse) | R2: TABLE 5 Standards (F/M) | T2: TABLE 6 Standards (Coarse) | V2: TABLE 6 Standards (F/M) | X2: TABLE 7 Standards (Coarse) | Z2: TABLE 7 Standards (F/M) | AB2: TABLE8 Standards (Coarse) | AD2: TABLE 8 Standards (F/M) | AF2: TABLE 9 Standards (Coarse) | AH2: TABLE 9 Standards (F/M) | AJ2: TABLE 10 Standards (Coarse) | AL2: TABLE 10 Standards (F/M) | AN2: TABLE 11 Standards (Coarse) | AP2: TABLE 11 Standards (F/M) | AS2: RISK ESTIMATES for S-IA | DB2: RISK ESTIMATES for S-GW1 | GY2: RISK ESTIMATES for S-GW2 | KV2: RISK ESTIMATES for S-GW3 | OS2: CHEMICALS WITH ANALYTICAL LIMITATION
AS4: Table 2 Standards | AV4: Table 2 Standards | AY4: Table 3 Standards | BB4: Table 3 Standards | BE4: Table 4 Standards | BH4: Table 4 Standards | BK4: Table 5 Standards | BN4: Table 5 Standards | BQ4: Table 6 Standards | BT4: Table 6 Standards | BW4: Table 7 Standards | BZ4: Table 7 Standards | CC4: Table 8 Standards | CF4: Table 8 Standards | CI4: Table 9 Standards | CL4: Table 9 Standards | CO4: Table 10 Standards | CR4: Table 10 Standards | CU4: Table 11 Standards | CX4: Table 11 Standards | DB4: Table 2 Standards | DG4: Table 2 Standards | DL4: Table 3 Standards | DQ4: Table 3 Standards | DV4: Table 4 Standards | EA4: Table 4 Standards | EF4: Table 5 Standards | EK4: Table 5 Standards | EP4: Table 6 Standards | EU4: Table 6 Standards | EZ4: Table 7 Standards | FE4: Table 7 Standards | FJ4: Table 8 Standards | FO4: Table 8 Standards | FT4: Table 9 Standards | FY4: Table 9 Standards | GD4: Table 10 Standards | GI4: Table 10 Standards | GN4: Table 11 Standards | GS4: Table 11 Standards | GY4: Table 2 Standards | HD4: Table 2 Standards | HI4: Table 3 Standards | HN4: Table 3 Standards | HS4: Table 4 Standards | HX4: Table 4 Standards | IC4: Table 5 Standards | IH4: Table 5 Standards | IM4: Table 6 Standards | IR4: Table 6 Standards | IW4: Table 7 Standards | JB4: Table 7 Standards | JG4: Table 8 Standards | JL4: Table 8 Standards | JQ4: Table 9 Standards | JV4: Table 9 Standards | KA4: Table 10 Standards | KF4: Table 10 Standards | KK4: Table 11 Standards | KP4: Table 11 Standards | KV4: Table 2 Standards | LA4: Table 2 Standards | LF4: Table 3 Standards | LK4: Table 3 Standards | LP4: Table 4 Standards | LU4: Table 4 Standards | LZ4: Table 5 Standards | ME4: Table 5 Standards | MJ4: Table 6 Standards | MO4: Table 6 Standards | MT4: Table 7 Standards | MY4: Table 7 Standards | ND4: Table 8 Standards | NI4: Table 8 Standards | NN4: Table 9 Standards | NS4: Table 9 Standards | NX4: Table 10 Standards | OC4: Table 10 Standards | OH4: Table 11 Standards | OM4: Table 11 Standards | OS4: Table 2 Standards | OW4: Table 2 Standards | PA4: Table 3 Standards | PE4: Table 3 Standards | PI4: Table 4 Standards | PM4: Table 4 Standards | PQ4: Table 5 Standards | PU4: Table 5 Standards | PY4: Table 6 Standards | QC4: Table 6 Standards | QG4: Table 7 Standards | QK4: Table 7 Standards | QO4: Table 8 Standards | QS4: Table 8 Standards | QW4: Table 9 Standards | RA4: Table 9 Standards | RE4: Table 10 Standards | RI4: Table 10 Standards | RM4: Table 11 Standards | RQ4: Table 11 Standards
AS5: COARSE | AV5: F/M | AY5: COARSE | BB5: F/M | BE5: COARSE | BH5: F/M | BK5: COARSE | BN5: F/M | BQ5: COARSE | BT5: F/M | BW5: COARSE | BZ5: F/M | CC5: COARSE | CF5: F/M | CI5: COARSE | CL5: F/M | CO5: COARSE | CR5: F/M | CU5: COARSE | CX5: F/M | DB5: COARSE | DG5: F/M | DL5: COARSE | DQ5: F/M | DV5: COARSE | EA5: F/M | EF5: COARSE | EK5: F/M | EP5: COARSE | EU5: F/M | EZ5: COARSE | FE5: F/M | FJ5: COARSE | FO5: F/M | FT5: COARSE | FY5: F/M | GD5: COARSE | GI5: F/M | GN5: COARSE | GS5: F/M | GY5: COARSE | HD5: F/M | HI5: COARSE | HN5: F/M | HS5: COARSE | HX5: F/M | IC5: COARSE | IH5: F/M | IM5: COARSE | IR5: F/M | IW5: COARSE | JB5: F/M | JG5: COARSE | JL5: F/M | JQ5: COARSE | JV5: F/M | KA5: COARSE | KF5: F/M | KK5: COARSE | KP5: F/M | KV5: COARSE | LA5: F/M | LF5: COARSE | LK5: F/M | LP5: COARSE | LU5: F/M | LZ5: COARSE | ME5: F/M | MJ5: COARSE | MO5: F/M | MT5: COARSE | MY5: F/M | ND5: COARSE | NI5: F/M | NN5: COARSE | NS5: F/M | NX5: COARSE | OC5: F/M | OH5: COARSE | OM5: F/M | OS5: COARSE | OW5: F/M | PA5: COARSE | PE5: F/M | PI5: COARSE | PM5: F/M | PQ5: COARSE | PU5: F/M | PY5: COARSE | QC5: F/M | QG5: COARSE | QK5: F/M | QO5: COARSE | QS5: F/M | QW5: COARSE | RA5: F/M | RE5: COARSE | RI5: F/M | RM5: COARSE | RQ5: F/M
B6: (mg/kg) | C6: (Set at RLs) | D6: (mg/kg) | E6: (Set at RL) | F6: (mg/kg) | G6: (Set at RL) | H6: (mg/kg) | I6: (Set at RL) | J6: (mg/kg) | K6: (Set at RL) | L6: (mg/kg) | M6: (Set at RL) | N6: (mg/kg) | O6: (Set at RL) | P6: (mg/kg) | Q6: (Set at RL) | R6: (mg/kg) | S6: (Set at RL) | T6: (mg/kg) | U6: (Set at RL) | V6: (mg/kg) | W6: (Set at RL) | X6: (mg/kg) | Y6: (Set at RL) | Z6: (mg/kg) | AA6: (Set at RL) | AB6: (mg/kg) | AC6: (Set at RL) | AD6: (mg/kg) | AE6: (Set at RL) | AF6: (mg/kg) | AG6: (Set at RL) | AH6: (mg/kg) | AI6: (Set at RL) | AJ6: (mg/kg) | AK6: (Set at RL) | AL6: (mg/kg) | AM6: (Set at RL) | AN6: (mg/kg) | AO6: (Set at RL) | AP6: (mg/kg) | AQ6: (Set at RL)
AS7: (IRCL) | AT7: (HQ) | AU7: High Risk (RL) | AV7: (IRCL) | AW7: (HQ) | AX7: High Risk (RL) | AY7: (IRCL) | AZ7: (HQ) | BA7: High Risk (RL) | BB7: (IRCL) | BC7: (HQ) | BD7: High Risk (RL) | BE7: (IRCL) | BF7: (HQ) | BG7: High Risk (RL) | BH7: (IRCL) | BI7: (HQ) | BJ7: High Risk (RL) | BK7: (IRCL) | BL7: (HQ) | BM7: High Risk (RL) | BN7: (IRCL) | BO7: (HQ) | BP7: High Risk (RL) | BQ7: (IRCL) | BR7: (HQ) | BS7: High Risk (RL) | BT7: (IRCL) | BU7: (HQ) | BV7: High Risk (RL) | BW7: (IRCL) | BX7: (HQ) | BY7: High Risk (RL) | BZ7: (IRCL) | CA7: (HQ) | CB7: High Risk (RL) | CC7: (IRCL) | CD7: (HQ) | CE7: High Risk (RL) | CF7: (IRCL) | CG7: (HQ) | CH7: High Risk (RL) | CI7: (IRCL) | CJ7: (HQ) | CK7: High Risk (RL) | CL7: (IRCL) | CM7: (HQ) | CN7: High Risk (RL) | CO7: (IRCL) | CP7: (HQ) | CQ7: High Risk (RL) | CR7: (IRCL) | CS7: (HQ) | CT7: High Risk (RL) | CU7: (IRCL) | CV7: (HQ) | CW7: High Risk (RL) | CX7: (IRCL) | CY7: (HQ) | CZ7: High Risk (RL) | DA7: GW Based on Aesthetic | DB7: (IRCL) | DC7: (HQ) | DD7: Odour Ratio | DE7: Risk Multiplier (to URT) | DF7: Pathway of concern | DG7: (IRCL) | DH7: (HQ) | DI7: Odour Ratio | DJ7: Risk Multiplier (to URT) | DK7: Pathway of concern | DL7: (IRCL) | DM7: (HQ) | DO7: Risk Multiplier (to URT) | DP7: Pathway of concern | DQ7: (IRCL) | DR7: (HQ) | DT7: Risk Multiplier (to URT) | DU7: Pathway of concern | DV7: (IRCL) | DW7: (HQ) | DX7: Odour Ratio | DY7: Risk Multiplier (to URT) | DZ7: Pathway of concern | EA7: (IRCL) | EB7: (HQ) | EC7: Odour Ratio | ED7: Risk Multiplier (to URT) | EE7: Pathway of concern | EF7: (IRCL) | EG7: (HQ) | EI7: Risk Multiplier (to URT) | EJ7: Pathway of concern | EK7: (IRCL) | EL7: (HQ) | EN7: Risk Multiplier (to URT) | EO7: Pathway of concern | EP7: (IRCL) | EQ7: (HQ) | ER7: Odour Ratio | ES7: Risk Multiplier (to URT) | ET7: Pathway of concern | EU7: (IRCL) | EV7: (HQ) | EW7: Odour Ratio | EX7: Risk Multiplier (to URT) | EY7: Pathway of concern | EZ7: (IRCL) | FA7: (HQ) | FC7: Risk Multiplier (to URT) | FD7: Pathway of concern | FE7: (IRCL) | FF7: (HQ) | FH7: Risk Multiplier (to URT) | FI7: Pathway of concern | FJ7: (IRCL) | FK7: (HQ) | FL7: Odour Ratio | FM7: Risk Multiplier (to URT) | FN7: Pathway of concern | FO7: (IRCL) | FP7: (HQ) | FQ7: Odour Ratio | FR7: Risk Multiplier (to URT) | FS7: Pathway of concern | FT7: (IRCL) | FU7: (HQ) | FW7: Risk Multiplier (to URT) | FX7: Pathway of concern | FY7: (IRCL) | FZ7: (HQ) | GB7: Risk Multiplier (to URT) | GC7: Pathway of concern | GD7: (IRCL) | GE7: (HQ) | GF7: Odour Ratio | GG7: Risk Multiplier (to URT) | GH7: Pathway of concern | GI7: (IRCL) | GJ7: (HQ) | GK7: Odour Ratio | GL7: Risk Multiplier (to URT) | GM7: Pathway of concern | GN7: (IRCL) | GO7: (HQ) | GQ7: Risk Multiplier (to URT) | GR7: Pathway of concern | GS7: (IRCL) | GT7: (HQ) | GV7: Risk Multiplier (to URT) | GW7: Pathway of concern | GY7: (IRCL) | GZ7: (HQ) | HA7: Odour Ratio | HB7: Risk Multiplier (to URT) | HC7: Pathway of concern | HD7: (IRCL) | HE7: (HQ) | HF7: Odour Ratio | HG7: Risk Multiplier (to URT) | HH7: Pathway of concern | HI7: (IRCL) | HJ7: (HQ) | HK7: Odour Ratio | HL7: Risk Multiplier (to URT) | HM7: Pathway of concern | HN7: (IRCL) | HO7: (HQ) | HP7: Odour Ratio | HQ7: Risk Multiplier (to URT) | HR7: Pathway of concern | HS7: (IRCL) | HT7: (HQ) | HU7: Odour Ratio | HV7: Risk Multiplier (to URT) | HW7: Pathway of concern | HX7: (IRCL) | HY7: (HQ) | HZ7: Odour Ratio | IA7: Risk Multiplier (to URT) | IB7: Pathway of concern | IC7: (IRCL) | ID7: (HQ) | IE7: Odour Ratio | IF7: Risk Multiplier (to URT) | IG7: Pathway of concern | IH7: (IRCL) | II7: (HQ) | IJ7: Odour Ratio | IK7: Risk Multiplier (to URT) | IL7: Pathway of concern | IM7: (IRCL) | IN7: (HQ) | IO7: Odour Ratio | IP7: Risk Multiplier (to URT) | IQ7: Pathway of concern | IR7: (IRCL) | IS7: (HQ) | IT7: Odour Ratio | IU7: Risk Multiplier (to URT) | IV7: Pathway of concern | IW7: (IRCL) | IX7: (HQ) | IY7: Odour Ratio | IZ7: Risk Multiplier (to URT) | JA7: Pathway of concern | JB7: (IRCL) | JC7: (HQ) | JD7: Odour Ratio | JE7: Risk Multiplier (to URT) | JF7: Pathway of concern | JG7: (IRCL) | JH7: (HQ) | JI7: Odour Ratio | JJ7: Risk Multiplier (to URT) | JK7: Pathway of concern | JL7: (IRCL) | JM7: (HQ) | JN7: Odour Ratio | JO7: Risk Multiplier (to URT) | JP7: Pathway of concern | JQ7: (IRCL) | JR7: (HQ) | JS7: Odour Ratio | JT7: Risk Multiplier (to URT) | JU7: Pathway of concern | JV7: (IRCL) | JW7: (HQ) | JX7: Odour Ratio | JY7: Risk Multiplier (to URT) | JZ7: Pathway of concern | KA7: (IRCL) | KB7: (HQ) | KC7: Odour Ratio | KD7: Risk Multiplier (to URT) | KE7: Pathway of concern | KF7: (IRCL) | KG7: (HQ) | KH7: Odour Ratio | KI7: Risk Multiplier (to URT) | KJ7: Pathway of concern | KK7: (IRCL) | KL7: (HQ) | KM7: Odour Ratio | KN7: Risk Multiplier (to URT) | KO7: Pathway of concern | KP7: (IRCL) | KQ7: (HQ) | KR7: Odour Ratio | KS7: Risk Multiplier (to URT) | KT7: Pathway of concern | KV7: (HQ) | KW7: Note | KY7: Risk Multiplier (to URT) | KZ7: Pathway of concern | LA7: (HQ) | LB7: Note | LD7: Risk Multiplier (to URT) | LE7: Pathway of concern | LF7: (HQ) | LG7: Note | LI7: Risk Multiplier (to URT) | LJ7: Pathway of concern | LK7: (HQ) | LL7: Note | LN7: Risk Multiplier (to URT) | LO7: Pathway of concern | LP7: (HQ) | LQ7: Note | LS7: Risk Multiplier (to URT) | LT7: Pathway of concern | LU7: (HQ) | LV7: Note | LX7: Risk Multiplier (to URT) | LY7: Pathway of concern | LZ7: (HQ) | MA7: Note | MC7: Risk Multiplier (to URT) | MD7: Pathway of concern | ME7: (HQ) | MF7: Note | MH7: Risk Multiplier (to URT) | MI7: Pathway of concern | MJ7: (HQ) | MK7: Note | MM7: Risk Multiplier (to URT) | MN7: Pathway of concern | MO7: (HQ) | MP7: Note | MR7: Risk Multiplier (to URT) | MS7: Pathway of concern | MT7: (HQ) | MU7: Note | MW7: Risk Multiplier (to URT) | MX7: Pathway of concern | MY7: (HQ) | MZ7: Note | NB7: Risk Multiplier (to URT) | NC7: Pathway of concern | ND7: (HQ) | NE7: Note | NG7: Risk Multiplier (to URT) | NH7: Pathway of concern | NI7: (HQ) | NJ7: Note | NL7: Risk Multiplier (to URT) | NM7: Pathway of concern | NN7: (HQ) | NO7: Note | NQ7: Risk Multiplier (to URT) | NR7: Pathway of concern | NS7: (HQ) | NT7: Note | NV7: Risk Multiplier (to URT) | NW7: Pathway of concern | NX7: (HQ) | NY7: Note | OA7: Risk Multiplier (to URT) | OB7: Pathway of concern | OC7: (HQ) | OD7: Note | OF7: Risk Multiplier (to URT) | OG7: Pathway of concern | OH7: (HQ) | OI7: Note | OK7: Risk Multiplier (to URT) | OL7: Pathway of concern | OM7: (HQ) | ON7: Note | OP7: Risk Multiplier (to URT) | OQ7: Pathway of concern | OS7: COPC | OT7: Inhalation Pathways of Concern | OU7: Risk Multiplier (to URT) | OV7: S-GW Pathways of Concern | OW7: COPC | OX7: Inhalation Pathways of Concern | OY7: Risk Multiplier (to URT) | OZ7: S-GW Pathways of Concern | PA7: COPC | PB7: Inhalation Pathways of Concern | PC7: Risk Multiplier (to URT) | PD7: S-GW Pathways of Concern | PE7: COPC | PF7: Inhalation Pathways of Concern | PG7: Risk Multiplier (to URT) | PH7: S-GW Pathways of Concern | PI7: COPC | PJ7: Inhalation Pathways of Concern | PK7: Risk Multiplier (to URT) | PL7: S-GW Pathways of Concern | PM7: COPC | PN7: Inhalation Pathways of Concern | PO7: Risk Multiplier (to URT) | PP7: S-GW Pathways of Concern | PQ7: COPC | PR7: Inhalation Pathways of Concern | PS7: Risk Multiplier (to URT) | PT7: S-GW Pathways of Concern | PU7: COPC | PV7: Inhalation Pathways of Concern | PW7: Risk Multiplier (to URT) | PX7: S-GW Pathways of Concern | PY7: COPC | PZ7: Inhalation Pathways of Concern | QA7: Risk Multiplier (to URT) | QB7: S-GW Pathways of Concern | QC7: COPC | QD7: Inhalation Pathways of Concern | QE7: Risk Multiplier (to URT) | QF7: S-GW Pathways of Concern | QG7: COPC | QH7: Inhalation Pathways of Concern | QI7: Risk Multiplier (to URT) | QJ7: S-GW Pathways of Concern | QK7: COPC | QL7: Inhalation Pathways of Concern | QM7: Risk Multiplier (to URT) | QN7: S-GW Pathways of Concern | QO7: COPC | QP7: Inhalation Pathways of Concern | QQ7: Risk Multiplier (to URT) | QR7: S-GW Pathways of Concern | QS7: COPC | QT7: Inhalation Pathways of Concern | QU7: Risk Multiplier (to URT) | QV7: S-GW Pathways of Concern | QW7: COPC | QX7: Inhalation Pathways of Concern | QY7: Risk Multiplier (to URT) | QZ7: S-GW Pathways of Concern | RA7: COPC | RB7: Inhalation Pathways of Concern | RC7: Risk Multiplier (to URT) | RD7: S-GW Pathways of Concern | RE7: COPC | RF7: Inhalation Pathways of Concern | RG7: Risk Multiplier (to URT) | RH7: S-GW Pathways of Concern | RI7: COPC | RJ7: Inhalation Pathways of Concern | RK7: Risk Multiplier (to URT) | RL7: S-GW Pathways of Concern | RM7: COPC | RN7: Inhalation Pathways of Concern | RO7: Risk Multiplier (to URT) | RP7: S-GW Pathways of Concern | RQ7: COPC | RR7: Inhalation Pathways of Concern | RS7: Risk Multiplier (to URT) | RT7: S-GW Pathways of Concern
... 7 more rows

Sheet Leachate SLs (hidden)
A1: Leachate Screening Levels - ALL LAND USES | I1: 1/2 Solubility Multiplier | J1: 2 | L1: GW1 Cap | M1: 1000000000 | O1: Volume Liquid | P1: 20 | R1: Volume Solid | S1: 1 | U1: unit conversion | W1: 1000
A2: CHEMICAL NAME | I2: TABLE 6 Leachate Screening Levels (Coarse) | L2: TABLE 6 Leachate Screening Levels (F/M) | O2: TABLE 8 Leachate Screening Levels (Coarse) | R2: TABLE 8 Leachate Screening Levels (F/M) | U2: TABLE 10 Leachate Screening Levels (Coarse) | X2: TABLE 10 Leachate Screening Levels (F/M) | AB2: R/P/I/I/C/C Property Use | AH2: TABLE 3 Leachate Screening Levels (Coarse) | AK2: TABLE 3 Leachate Screening Levels (F/M) | AN2: TABLE 4 Leachate Screening Levels (Coarse) | AQ2: TABLE 4 Leachate Screening Levels (F/M) | AT2: TABLE 5 Leachate Screening Levels (Coarse) | AW2: TABLE 5 Leachate Screening Levels (F/M) | AZ2: TABLE 6 Leachate Screening Levels (Coarse) | BC2: TABLE 6 Leachate Screening Levels (F/M) | BF2: TABLE 7 Leachate Screening Levels (Coarse) | BI2: TABLE 7 Leachate Screening Levels (F/M) | BL2: TABLE 8 Leachate Screening Levels (Coarse) | BO2: TABLE 8 Leachate Screening Levels (F/M) | BR2: TABLE 9 Leachate Screening Levels (Coarse) | BU2: TABLE 9 Leachate Screening Levels (F/M) | BX2: TABLE 10 Leachate Screening Levels (Coarse) | CA2: TABLE 10 Leachate Screening Levels (F/M) | CD2: TABLE 11 Leachate Screening Levels (Coarse) | CG2: TABLE 11 Leachate Screening Levels (F/M)
C3: AGRICULTURAL Property Use
C4: TABLE 2 Leachate Screening Levels (Coarse) | F4: TABLE 2 Leachate Screening Levels (F/M) | AB4: TABLE 2 Leachate Screening Levels (Coarse) | AE4: TABLE 2 Leachate Screening Levels (F/M)
B6: Koc | C6: Lowest S-GW1/O, S-GW2/O, S-GW3 bump to bkgnd (mg/kg) | D6: mg/L (at 20:1 L/S ratio) | E6: capped at RL if required | F6: Lowest S-GW1/O, S-GW2/O, S-GW3 bump to bkgnd (mg/kg) | G6: mg/L (at 20:1 L/S ratio) | H6: capped at RL if required | I6: Lowest S-GW1/O, S-GW2/O, S-GW3 bump to bkgnd (mg/kg) | J6: mg/L (at 20:1 L/S ratio) | K6: capped at RL if required | L6: Lowest S-GW1/O, S-GW2/O, S-GW3 bump to bkgnd (mg/kg) | M6: mg/L (at 20:1 L/S ratio) | N6: capped at RL if required | O6: Lowest S-GW1/O, S-GW2/O, S-GW3 bump to bkgnd (mg/kg) | P6: mg/L (at 20:1 L/S ratio) | Q6: capped at RL if required | R6: Lowest S-GW1/O, S-GW2/O, S-GW3 bump to bkgnd (mg/kg) | S6: mg/L (at 20:1 L/S ratio) | T6: capped at RL if required | U6: Lowest S-GW1/O, S-GW2/O, S-GW3 bump to bkgnd (mg/kg) | V6: mg/L (at 20:1 L/S ratio) | W6: capped at RL if required | X6: Lowest S-GW1/O, S-GW2/O, S-GW3 bump to bkgnd (mg/kg) | Y6: mg/L (at 20:1 L/S ratio) | Z6: capped at RL if required | AB6: Lowest S-GW1/O, S-GW2/O, S-GW3 bump to bkgnd (mg/kg) | AC6: mg/L (at 20:1 L/S ratio) | AD6: capped at RL if required | AE6: Lowest S-GW1/O, S-GW2/O, S-GW3 bump to bkgnd (mg/kg) | AF6: mg/L (at 20:1 L/S ratio) | AG6: capped at RL if required | AH6: Lowest S-GW1/O, S-GW2/O, S-GW3 bump to bkgnd (mg/kg) | AI6: mg/L (at 20:1 L/S ratio) | AJ6: capped at RL if required | AK6: Lowest S-GW1/O, S-GW2/O, S-GW3 bump to bkgnd (mg/kg) | AL6: mg/L (at 20:1 L/S ratio) | AM6: capped at RL if required | AN6: Lowest S-GW1/O, S-GW2/O, S-GW3 bump to bkgnd (mg/kg) | AO6: mg/L (at 20:1 L/S ratio) | AP6: capped at RL if required | AQ6: Lowest S-GW1/O, S-GW2/O, S-GW3 bump to bkgnd (mg/kg) | AR6: mg/L (at 20:1 L/S ratio) | AS6: capped at RL if required | AT6: Lowest S-GW1/O, S-GW2/O, S-GW3 bump to bkgnd (mg/kg) | AU6: mg/L (at 20:1 L/S ratio) | AV6: capped at RL if required | AW6: Lowest S-GW1/O, S-GW2/O, S-GW3 bump to bkgnd (mg/kg) | AX6: mg/L (at 20:1 L/S ratio) | AY6: capped at RL if required | AZ6: Lowest S-GW1/O, S-GW2/O, S-GW3 bump to bkgnd (mg/kg) | BA6: mg/L (at 20:1 L/S ratio) | BB6: capped at RL if required | BC6: Lowest S-GW1/O, S-GW2/O, S-GW3 bump to bkgnd (mg/kg) | BD6: mg/L (at 20:1 L/S ratio) | BE6: capped at RL if required | BF6: Lowest S-GW1/O, S-GW2/O, S-GW3 bump to bkgnd (mg/kg) | BG6: mg/L (at 20:1 L/S ratio) | BH6: capped at RL if required | BI6: Lowest S-GW1/O, S-GW2/O, S-GW3 bump to bkgnd (mg/kg) | BJ6: mg/L (at 20:1 L/S ratio) | BK6: capped at RL if required | BL6: Lowest S-GW1/O, S-GW2/O, S-GW3 bump to bkgnd (mg/kg) | BM6: mg/L (at 20:1 L/S ratio) | BN6: capped at RL if required | BO6: Lowest S-GW1/O, S-GW2/O, S-GW3 bump to bkgnd (mg/kg) | BP6: mg/L (at 20:1 L/S ratio) | BQ6: capped at RL if required | BR6: Lowest S-GW1/O, S-GW2/O, S-GW3 bump to bkgnd (mg/kg) | BS6: mg/L (at 20:1 L/S ratio) | BT6: capped at RL if required | BU6: Lowest S-GW1/O, S-GW2/O, S-GW3 bump to bkgnd (mg/kg) | BV6: mg/L (at 20:1 L/S ratio) | BW6: capped at RL if required | BX6: Lowest S-GW1/O, S-GW2/O, S-GW3 bump to bkgnd (mg/kg) | BY6: mg/L (at 20:1 L/S ratio) | BZ6: capped at RL if required | CA6: Lowest S-GW1/O, S-GW2/O, S-GW3 bump to bkgnd (mg/kg) | CB6: mg/L (at 20:1 L/S ratio) | CC6: capped at RL if required | CD6: Lowest S-GW1/O, S-GW2/O, S-GW3 bump to bkgnd (mg/kg) | CE6: mg/L (at 20:1 L/S ratio) | CF6: capped at RL if required | CG6: Lowest S-GW1/O, S-GW2/O, S-GW3 bump to bkgnd (mg/kg) | CH6: mg/L (at 20:1 L/S ratio) | CI6: capped at RL if required
B7: cm3/g | AB7: except for metals
... 7 more rows

Sheet Final Leachate SLs (hidden)
A1: LEACHATE STANDARDS | D1: soil liquid conv. | E1: 50 | F1: leachate performance | H1: 2
A2: CHEMICAL NAME | B2: Metals considered for Leachate | E2: AGRICUTURAL | AE2: R/P/I | CN2: I/C/C
F4: Table 2 Standards | I4: Table 2 Standards | L4: Table 6 Standards | O4: Table 6 Standards | R4: Table 8 Standards | U4: Table 8 Standards | X4: Table 10 Standards | AA4: Table 10 Standards | AE4: Table 2 Standards | AH4: Table 2 Standards | AK4: Table 3 Standards | AN4: Table 3 Standards | AQ4: Table 4 Standards | AT4: Table 4 Standards | AW4: Table 5 Standards | AZ4: Table 5 Standards | BC4: Table 6 Standards | BF4: Table 6 Standards | BI4: Table 7 Standards | BL4: Table 7 Standards | BO4: Table 8 Standards | BR4: Table 8 Standards | BU4: Table 9 Standards | BX4: Table 9 Standards | CA4: Table 10 Standards | CD4: Table 10 Standards | CG4: Table 11 Standards | CJ4: Table 11 Standards | CN4: Table 2 Standards | CQ4: Table 2 Standards | CT4: Table 3 Standards | CW4: Table 3 Standards | CZ4: Table 4 Standards | DC4: Table 4 Standards | DF4: Table 5 Standards | DI4: Table 5 Standards | DL4: Table 6 Standards | DO4: Table 6 Standards | DR4: Table 7 Standards | DU4: Table 7 Standards | DX4: Table 8 Standards | EA4: Table 8 Standards | ED4: Table 9 Standards | EG4: Table 9 Standards | EJ4: Table 10 Standards | EM4: Table 10 Standards | EP4: Table 11 Standards | ES4: Table 11 Standards
C5: Applicability of | D5: Other Considerations | F5: COARSE | I5: F/M | L5: COARSE | O5: F/M | R5: COARSE | U5: F/M | X5: COARSE | AA5: F/M | AE5: COARSE | AH5: F/M | AK5: COARSE | AN5: F/M | AQ5: COARSE | AT5: F/M | AW5: COARSE | AZ5: F/M | BC5: COARSE | BF5: F/M | BI5: COARSE | BL5: F/M | BO5: COARSE | BR5: F/M | BU5: COARSE | BX5: F/M | CA5: COARSE | CD5: F/M | CG5: COARSE | CJ5: F/M | CN5: COARSE | CQ5: F/M | CT5: COARSE | CW5: F/M | CZ5: COARSE | DC5: F/M | DF5: COARSE | DI5: F/M | DL5: COARSE | DO5: F/M | DR5: COARSE | DU5: F/M | DX5: COARSE | EA5: F/M | ED5: COARSE | EG5: F/M | EJ5: COARSE | EM5: F/M | EP5: COARSE | ES5: F/M
C6: Leachate Testing | D6: (Pathway Modifier)
E7: COPC | F7: Leachate Note for TRL | G7: Leachate Standard (ug/L) | H7: COPC | I7: Leachate Note for TRL | J7: Leachate Standard (ug/L) | K7: COPC | L7: Leachate Note for TRL | M7: Leachate Standard (ug/L) | N7: COPC | O7: Leachate Note for TRL | P7: Leachate Standard (ug/L) | Q7: COPC | R7: Leachate Note for TRL | S7: Leachate Standard (ug/L) | T7: COPC | U7: Leachate Note for TRL | V7: Leachate Standard (ug/L) | W7: COPC | X7: Leachate Note for TRL | Y7: Leachate Standard (ug/L) | Z7: COPC | AA7: Leachate Note for TRL | AB7: Leachate Standard (ug/L) | AD7: COPC | AE7: Leachate Note for TRL | AF7: Leachate Standard (ug/L) | AG7: COPC | AH7: Leachate Note for TRL | AI7: Leachate Standard (ug/L) | AJ7: COPC | AK7: Leachate Note for TRL | AL7: Leachate Standard (ug/L) | AM7: COPC | AN7: Leachate Note for TRL | AO7: Leachate Standard (ug/L) | AP7: COPC | AQ7: Leachate Note for TRL | AR7: Leachate Standard (ug/L) | AS7: COPC | AT7: Leachate Note for TRL | AU7: Leachate Standard (ug/L) | AV7: COPC | AW7: Leachate Note for TRL | AX7: Leachate Standard (ug/L) | AY7: COPC | AZ7: Leachate Note for TRL | BA7: Leachate Standard (ug/L) | BB7: COPC | BC7: Leachate Note for TRL | BD7: Leachate Standard (ug/L) | BE7: COPC | BF7: Leachate Note for TRL | BG7: Leachate Standard (ug/L) | BH7: COPC | BI7: Leachate Note for TRL | BJ7: Leachate Standard (ug/L) | BK7: COPC | BL7: Leachate Note for TRL | BM7: Leachate Standard (ug/L) | BN7: COPC | BO7: Leachate Note for TRL | BP7: Leachate Standard (ug/L) | BQ7: COPC | BR7: Leachate Note for TRL | BS7: Leachate Standard (ug/L) | BT7: COPC | BU7: Leachate Note for TRL | BV7: Leachate Standard (ug/L) | BW7: COPC | BX7: Leachate Note for TRL | BY7: Leachate Standard (ug/L) | BZ7: COPC | CA7: Leachate Note for TRL | CB7: Leachate Standard (ug/L) | CC7: COPC | CD7: Leachate Note for TRL | CE7: Leachate Standard (ug/L) | CF7: COPC | CG7: Leachate Note for TRL | CH7: Leachate Standard (ug/L) | CI7: COPC | CJ7: Leachate Note for TRL | CK7: Leachate Standard (ug/L) | CM7: COPC | CN7: Leachate Note for TRL | CO7: Leachate Standard (ug/L) | CP7: COPC | CQ7: Leachate Note for TRL | CR7: Leachate Standard (ug/L) | CS7: COPC | CT7: Leachate Note for TRL | CU7: Leachate Standard (ug/L) | CV7: COPC | CW7: Leachate Note for TRL | CX7: Leachate Standard (ug/L) | CY7: COPC | CZ7: Leachate Note for TRL | DA7: Leachate Standard (ug/L) | DB7: COPC | DC7: Leachate Note for TRL | DD7: Leachate Standard (ug/L) | DE7: COPC | DF7: Leachate Note for TRL | DG7: Leachate Standard (ug/L) | DH7: COPC | DI7: Leachate Note for TRL | DJ7: Leachate Standard (ug/L) | DK7: COPC | DL7: Leachate Note for TRL | DM7: Leachate Standard (ug/L) | DN7: COPC | DO7: Leachate Note for TRL | DP7: Leachate Standard (ug/L) | DQ7: COPC | DR7: Leachate Note for TRL | DS7: Leachate Standard (ug/L) | DT7: COPC | DU7: Leachate Note for TRL | DV7: Leachate Standard (ug/L) | DW7: COPC | DX7: Leachate Note for TRL | DY7: Leachate Standard (ug/L) | DZ7: COPC | EA7: Leachate Note for TRL | EB7: Leachate Standard (ug/L) | EC7: COPC | ED7: Leachate Note for TRL | EE7: Leachate Standard (ug/L) | EF7: COPC | EG7: Leachate Note for TRL | EH7: Leachate Standard (ug/L) | EI7: COPC | EJ7: Leachate Note for TRL | EK7: Leachate Standard (ug/L) | EL7: COPC | EM7: Leachate Note for TRL | EN7: Leachate Standard (ug/L) | EO7: COPC | EP7: Leachate Note for TRL | EQ7: Leachate Standard (ug/L) | ER7: COPC | ES7: Leachate Note for TRL | ET7: Leachate Standard (ug/L)
... 8 more rows

Sheet BRAT Soil Criteria_Initial (hidden)
A1: Soil Criteria_Initial
A2: CHEMICAL NAME | B2: CASRN | F2: SURFACE SOIL | AG2: CHEMICAL NAME | AH2: CASRN | AJ2: SUBSURFACE SOIL | BG2: CHEMICAL NAME | BH2: CASRN | BJ2: SHALLOW SOIL | CC2: CHEMICAL NAME | CD2: CASRN | CF2: WITHIN 30 M of SURFACE WATER | CY2: CHEMICAL NAME | CZ2: CASRN | DB2: WITHIN 30 M of SURFACE WATER AND SHALLOW SOIL
E3: POTABLE GROUNDWATER CONDITIONS (μg/g) | U3: NON- POTABLE GROUNDWATER CONDITIONS (μg/g) | AJ3: POTABLE GROUNDWATER CONDITIONS | AV3: NON-POTABLE GROUNDWATER CONDITIONS | BI3: POTABLE GROUNDWATER CONDITIONS (μg/g) | BU3: NON- POTABLE GROUNDWATER CONDITIONS (μg/g) | CE3: POTABLE GROUNDWATER CONDITIONS (μg/g) | CQ3: NON- POTABLE GROUNDWATER CONDITIONS (μg/g) | DA3: POTABLE GROUNDWATER CONDITIONS (μg/g) | DM3: NON- POTABLE GROUNDWATER CONDITIONS (μg/g)
E5: Agricultural | J5: Residential | M5: Commercial | R5: Industrial | U5: Residential | Y5: Commercial | AD5: Industrial | AJ5: Residential | AN5: Commercial | AR5: Industrial | AV5: Residential | AZ5: Commercial | BD5: Industrial | BI5: Agricultural | BN5: Residential | BR5: Commercial/Industrial | BU5: Residential | BZ5: Commercial/Industrial | CE5: Agricultural | CJ5: Residential | CN5: Commercial/Industrial | CQ5: Residential | CV5: Commercial/Industrial | DA5: Agricultural | DF5: Residential | DJ5: Commercial/Industrial | DM5: Residential | DR5: Commercial/Industrial
E6: coarse MIN | F6: coarse | G6: med/fin MIN | H6: med./fine | I6: coarse MIN | J6: coarse | K6: med/fin MIN | L6: med./fine | M6: coarse MIN | N6: coarse | O6: med/fin MIN | P6: med./fine | Q6: coarse MIN | R6: coarse | S6: med/fin MIN | T6: med./fine | U6: coarse MIN | V6: coarse | W6: med/fin MIN | X6: med./fine | Y6: coarse MIN | Z6: coarse | AA6: med/fin MIN | AB6: med./fine | AC6: coarse MIN | AD6: coarse | AE6: med/fin MIN | AF6: med./fine | AI6: coarse MIN | AJ6: coarse | AK6: med/fin MIN | AL6: med./fine | AM6: coarse MIN | AN6: coarse | AO6: med/fin MIN | AP6: med./fine | AQ6: coarse MIN | AR6: coarse | AS6: med/fin MIN | AT6: med./fine | AU6: coarse MIN | AV6: coarse | AW6: med/fin MIN | AX6: med./fine | AY6: coarse MIN | AZ6: coarse | BA6: med/fin MIN | BB6: med./fine | BC6: coarse MIN | BD6: coarse | BE6: med/fin MIN | BF6: med./fine | BI6: coarse MIN | BJ6: coarse | BK6: med/fin MIN | BL6: med./fine | BM6: coarse MIN | BN6: coarse | BO6: med/fin MIN | BP6: med./fine | BQ6: coarse MIN | BR6: coarse | BS6: med/fin MIN | BT6: med./fine | BU6: coarse MIN | BV6: coarse | BW6: med/fin MIN | BX6: med./fine | BY6: coarse MIN | BZ6: coarse | CA6: med/fin MIN | CB6: med./fine | CE6: coarse MIN | CF6: coarse | CG6: med/fin MIN | CH6: med./fine | CI6: coarse MIN | CJ6: coarse | CK6: med/fin MIN | CL6: med./fine | CM6: coarse MIN | CN6: coarse | CO6: med/fin MIN | CP6: med./fine | CQ6: coarse MIN | CR6: coarse | CS6: med/fin MIN | CT6: med./fine | CU6: coarse MIN | CV6: coarse | CW6: med/fin MIN | CX6: med./fine | DA6: coarse MIN | DB6: coarse | DC6: med/fin MIN | DD6: med./fine | DE6: coarse MIN | DF6: coarse | DG6: med/fin MIN | DH6: med./fine | DI6: coarse MIN | DJ6: coarse | DK6: med/fin MIN | DL6: med./fine | DM6: coarse MIN | DN6: coarse | DO6: med/fin MIN | DP6: med./fine | DQ6: coarse MIN | DR6: coarse | DS6: med/fin MIN | DT6: med./fine
... 8 more rows

Sheet BRAT Soil Criteria_Final (hidden)
A1: Soil Criteria_Final
A2: CHEMICAL NAME | B2: CASRN | F2: SURFACE SOIL | AG2: CHEMICAL NAME | AH2: CASRN | AJ2: SUBSURFACE SOIL | BG2: CHEMICAL NAME | BH2: CASRN | BJ2: SHALLOW SOIL | CC2: CHEMICAL NAME | CD2: CASRN | CF2: WITHIN 30 M of SURFACE WATER | CY2: CHEMICAL NAME | CZ2: CASRN | DB2: WITHIN 30 M of SURFACE WATER AND SHALLOW SOIL
E3: POTABLE GROUNDWATER CONDITIONS (μg/g) | U3: NON- POTABLE GROUNDWATER CONDITIONS (μg/g) | AJ3: POTABLE GROUNDWATER CONDITIONS | AV3: NON-POTABLE GROUNDWATER CONDITIONS | BI3: POTABLE GROUNDWATER CONDITIONS (μg/g) | BU3: NON- POTABLE GROUNDWATER CONDITIONS (μg/g) | CE3: POTABLE GROUNDWATER CONDITIONS (μg/g) | CQ3: NON- POTABLE GROUNDWATER CONDITIONS (μg/g) | DA3: POTABLE GROUNDWATER CONDITIONS (μg/g) | DM3: NON- POTABLE GROUNDWATER CONDITIONS (μg/g)
E5: Agricultural | J5: Residential | M5: Commercial | R5: Industrial | U5: Residential | Y5: Commercial | AD5: Industrial | AJ5: Residential | AN5: Commercial | AR5: Industrial | AV5: Residential | AZ5: Commercial | BD5: Industrial | BI5: Agricultural | BN5: Residential | BR5: Commercial/Industrial | BU5: Residential | BZ5: Commercial/Industrial | CE5: Agricultural | CJ5: Residential | CN5: Commercial/Industrial | CQ5: Residential | CV5: Commercial/Industrial | DA5: Agricultural | DF5: Residential | DJ5: Commercial/Industrial | DM5: Residential | DR5: Commercial/Industrial
E6: coarse MIN | F6: coarse | G6: med/fin MIN | H6: med./fine | I6: coarse MIN | J6: coarse | K6: med/fin MIN | L6: med./fine | M6: coarse MIN | N6: coarse | O6: med/fin MIN | P6: med./fine | Q6: coarse MIN | R6: coarse | S6: med/fin MIN | T6: med./fine | U6: coarse MIN | V6: coarse | W6: med/fin MIN | X6: med./fine | Y6: coarse MIN | Z6: coarse | AA6: med/fin MIN | AB6: med./fine | AC6: coarse MIN | AD6: coarse | AE6: med/fin MIN | AF6: med./fine | AI6: coarse MIN | AJ6: coarse | AK6: med/fin MIN | AL6: med./fine | AM6: coarse MIN | AN6: coarse | AO6: med/fin MIN | AP6: med./fine | AQ6: coarse MIN | AR6: coarse | AS6: med/fin MIN | AT6: med./fine | AU6: coarse MIN | AV6: coarse | AW6: med/fin MIN | AX6: med./fine | AY6: coarse MIN | AZ6: coarse | BA6: med/fin MIN | BB6: med./fine | BC6: coarse MIN | BD6: coarse | BE6: med/fin MIN | BF6: med./fine | BI6: coarse MIN | BJ6: coarse | BK6: med/fin MIN | BL6: med./fine | BM6: coarse MIN | BN6: coarse | BO6: med/fin MIN | BP6: med./fine | BQ6: coarse MIN | BR6: coarse | BS6: med/fin MIN | BT6: med./fine | BU6: coarse MIN | BV6: coarse | BW6: med/fin MIN | BX6: med./fine | BY6: coarse MIN | BZ6: coarse | CA6: med/fin MIN | CB6: med./fine | CE6: coarse MIN | CF6: coarse | CG6: med/fin MIN | CH6: med./fine | CI6: coarse MIN | CJ6: coarse | CK6: med/fin MIN | CL6: med./fine | CM6: coarse MIN | CN6: coarse | CO6: med/fin MIN | CP6: med./fine | CQ6: coarse MIN | CR6: coarse | CS6: med/fin MIN | CT6: med./fine | CU6: coarse MIN | CV6: coarse | CW6: med/fin MIN | CX6: med./fine | DA6: coarse MIN | DB6: coarse | DC6: med/fin MIN | DD6: med./fine | DE6: coarse MIN | DF6: coarse | DG6: med/fin MIN | DH6: med./fine | DI6: coarse MIN | DJ6: coarse | DK6: med/fin MIN | DL6: med./fine | DM6: coarse MIN | DN6: coarse | DO6: med/fin MIN | DP6: med./fine | DQ6: coarse MIN | DR6: coarse | DS6: med/fin MIN | DT6: med./fine
... 8 more rows

Sheet Ceiling Value_Ag (hidden)
A1: Ceiling Values (Ag): Calculations | V1: 1 | W1: 10 | X1: 1 | AB1: 2
P2: TABLE 1 - Effect-based & Acute Caps and Ceiling Values | AD2: TABLE 2 - Effect-based & Acute Caps and Ceiling Values | AR2: TABLE 2 - Effect-based & Acute Caps and Ceiling Values | BF2: TABLE 6 - Effect-based & Acute Caps and Ceiling Values | BT2: TABLE 6 - Effect-based & Acute Caps and Ceiling Values | CH2: TABLE 8 - Effect-based & Acute Caps and Ceiling Values | CV2: TABLE 8 - Effect-based & Acute Caps and Ceiling Values | DJ2: TABLE 10 - Effect-based & Acute Caps and Ceiling Values | DX2: TABLE 10 - Effect-based & Acute Caps and Ceiling Values
B3: OTR98 Value | C3: Table 1 | E3: Table 1 | G3: Table 2 | H3: Table 2 | I3: Table 6 | J3: Table 6 | K3: Table 8 | L3: Table 8 | M3: Table 10 | N3: Table 10 | AD3: (COARSE) | AP3: Ceiling | AR3: (F/M) | BD3: Ceiling | BF3: (COARSE) | BR3: Ceiling | BT3: (F/M) | CF3: Ceiling | CH3: (COARSE) | CT3: Ceiling | CV3: (F/M) | DH3: Ceiling | DJ3: (COARSE) | DV3: Ceiling | DX3: (F/M) | EJ3: Ceiling
A4: CHEMICAL NAME | B4: Rural | C4: Soil Standards | E4: Limited at | G4: Soil Standards | H4: Soil Standards | I4: Soil Standards | J4: Soil Standards | K4: Soil Standards | L4: Soil Standards | M4: Soil Standards | N4: Soil Standards | P4: Lowest of (S-IA, S-GW2, S-OA) | R4: (S1) | T4: (S-GW1) | V4: Lowest of (P&SO, M&B, S-GW3) | X4: Lowest of (S-Nose, S-IA Odour) | Y4: Lowest of (S-GW1 Odour S-GW2 Odour) | AB4: Ceiling | AD4: Lowest of (S-IA, S-GW2, S-OA) | AF4: (S1) | AH4: (S-GW1) | AJ4: Lowest of (P&SO, M&B, S-GW3) | AL4: Lowest of (S-Nose, S-IA Odour) | AM4: Lowest of (S-GW1 Odour S-GW2 Odour) | AP4: Values | AR4: Lowest of (S-IA, S-GW2, S-OA) | AT4: (S1) | AV4: (S-GW1) | AX4: Lowest of (P&SO, M&B, S-GW3) | AZ4: Lowest of (S-Nose, S-IA Odour) | BA4: Lowest of (S-GW1 Odour S-GW2 Odour) | BD4: Values | BF4: Lowest of (S-IA, S-GW2, S-OA) | BH4: (S1) | BJ4: (S-GW1) | BL4: Lowest of (P&SO, M&B, S-GW3) | BN4: Lowest of (S-Nose, S-IA Odour) | BO4: Lowest of (S-GW1 Odour S-GW2 Odour) | BR4: Values | BT4: Lowest of (S-IA, S-GW2, S-OA) | BV4: (S1) | BX4: (S-GW1) | BZ4: Lowest of (P&SO, M&B, S-GW3) | CB4: Lowest of (S-Nose, S-IA Odour) | CC4: Lowest of (S-GW1 Odour S-GW2 Odour) | CF4: Values | CH4: Lowest of (S-IA, S-GW2, S-OA) | CJ4: (S1) | CL4: (S-GW1) | CN4: Lowest of (P&SO, M&B, S-GW3) | CP4: Lowest of (S-Nose, S-IA Odour) | CQ4: Lowest of (S-GW1 Odour S-GW2 Odour) | CT4: Values | CV4: Lowest of (S-IA, S-GW2, S-OA) | CX4: (S1) | CZ4: (S-GW1) | DB4: Lowest of (P&SO, M&B, S-GW3) | DD4: Lowest of (S-Nose, S-IA Odour) | DE4: Lowest of (S-GW1 Odour S-GW2 Odour) | DH4: Values | DJ4: Lowest of (S-IA, S-GW2, S-OA) | DL4: (S1) | DN4: (S-GW1) | DP4: Lowest of (P&SO, M&B, S-GW3) | DR4: Lowest of (S-Nose, S-IA Odour) | DS4: Lowest of (S-GW1 Odour S-GW2 Odour) | DV4: Values | DX4: Lowest of (S-IA, S-GW2, S-OA) | DZ4: (S1) | EB4: (S-GW1) | ED4: Lowest of (P&SO, M&B, S-GW3) | EF4: Lowest of (S-Nose, S-IA Odour) | EG4: Lowest of (S-GW1 Odour S-GW2 Odour) | EJ4: Values
B5: mg/kg | C5: (Agr) | E5: RL | G5: (Coarse) | H5: (F/M) | I5: (Coarse) | J5: (F/M) | K5: (Coarse) | L5: (F/M) | M5: (Coarse) | N5: (F/M) | Z5: Lowest | AA5: Lowest | AB5: Values | AN5: Lowest | AO5: Lowest | AP5: (Agr) | BB5: Lowest | BC5: Lowest | BD5: (Agr) | BP5: Lowest | BQ5: Lowest | BR5: (Agr) | CD5: Lowest | CE5: Lowest | CF5: (Agr) | CR5: Lowest | CS5: Lowest | CT5: (Agr) | DF5: Lowest | DG5: Lowest | DH5: (Agr) | DT5: Lowest | DU5: Lowest | DV5: (Agr) | EH5: Lowest | EI5: Lowest | EJ5: (Agr)
C6: mg/kg | G6: mg/kg | H6: mg/kg | I6: mg/kg | J6: mg/kg | K6: mg/kg | L6: mg/kg | M6: mg/kg | N6: mg/kg | Z6: Effect-based Cap | AA6: HH Acute Caps | AB6: (Agr) | AN6: Effect-based Cap | AO6: HH Acute Caps | BB6: Effect-based Cap | BC6: HH Acute Caps | BP6: Effect-based Cap | BQ6: HH Acute Caps | CD6: Effect-based Cap | CE6: HH Acute Caps | CR6: Effect-based Cap | CS6: HH Acute Caps | DF6: Effect-based Cap | DG6: HH Acute Caps | DT6: Effect-based Cap | DU6: HH Acute Caps | EH6: Effect-based Cap | EI6: HH Acute Caps
P7: Effect-based Cap (mg/kg) | Q7: Acute Cap (mg/kg) | R7: Effect-based Cap (mg/kg) | S7: Acute Cap (mg/kg) | T7: Effect-based Cap (mg/kg) | U7: Acute Cap (mg/kg) | V7: Note | W7: Effect-based Cap (mg/kg) | X7: Effect-based Cap (mg/kg) | Y7: Effect-based Cap (mg/kg) | Z7: (mg/kg) | AA7: (mg/kg) | AB7: =$C$6 -> mg/kg | AD7: Effect-based Cap (mg/kg) | AE7: Acute Cap (mg/kg) | AF7: Effect-based Cap (mg/kg) | AG7: Acute Cap (mg/kg) | AH7: Effect-based Cap (mg/kg) | AI7: Acute Cap (mg/kg) | AJ7: Note | AK7: Effect-based Cap (mg/kg) | AL7: Effect-based Cap (mg/kg) | AM7: Effect-based Cap (mg/kg) | AN7: (mg/kg) | AO7: (mg/kg) | AP7: =$C$6 -> mg/kg | AR7: Effect-based Cap (mg/kg) | AS7: Acute Cap (mg/kg) | AT7: Effect-based Cap (mg/kg) | AU7: Acute Cap (mg/kg) | AV7: Effect-based Cap (mg/kg) | AW7: Acute Cap (mg/kg) | AX7: Note | AY7: Effect-based Cap (mg/kg) | AZ7: Effect-based Cap (mg/kg) | BA7: Effect-based Cap (mg/kg) | BB7: (mg/kg) | BC7: (mg/kg) | BD7: =$C$6 -> mg/kg | BF7: Effect-based Cap (mg/kg) | BG7: Acute Cap (mg/kg) | BH7: Effect-based Cap (mg/kg) | BI7: Acute Cap (mg/kg) | BJ7: Effect-based Cap (mg/kg) | BK7: Acute Cap (mg/kg) | BL7: Note | BM7: Effect-based Cap (mg/kg) | BN7: Effect-based Cap (mg/kg) | BO7: Effect-based Cap (mg/kg) | BP7: (mg/kg) | BQ7: (mg/kg) | BR7: =$C$6 -> mg/kg | BT7: Effect-based Cap (mg/kg) | BU7: Acute Cap (mg/kg) | BV7: Effect-based Cap (mg/kg) | BW7: Acute Cap (mg/kg) | BX7: Effect-based Cap (mg/kg) | BY7: Acute Cap (mg/kg) | BZ7: Note | CA7: Effect-based Cap (mg/kg) | CB7: Effect-based Cap (mg/kg) | CC7: Effect-based Cap (mg/kg) | CD7: (mg/kg) | CE7: (mg/kg) | CF7: =$C$6 -> mg/kg | CH7: Effect-based Cap (mg/kg) | CI7: Acute Cap (mg/kg) | CJ7: Effect-based Cap (mg/kg) | CK7: Acute Cap (mg/kg) | CL7: Effect-based Cap (mg/kg) | CM7: Acute Cap (mg/kg) | CN7: Note | CO7: Effect-based Cap (mg/kg) | CP7: Effect-based Cap (mg/kg) | CQ7: Effect-based Cap (mg/kg) | CR7: (mg/kg) | CS7: (mg/kg) | CT7: =$C$6 -> mg/kg | CV7: Effect-based Cap (mg/kg) | CW7: Acute Cap (mg/kg) | CX7: Effect-based Cap (mg/kg) | CY7: Acute Cap (mg/kg) | CZ7: Effect-based Cap (mg/kg) | DA7: Acute Cap (mg/kg) | DB7: Note | DC7: Effect-based Cap (mg/kg) | DD7: Effect-based Cap (mg/kg) | DE7: Effect-based Cap (mg/kg) | DF7: (mg/kg) | DG7: (mg/kg) | DH7: =$C$6 -> mg/kg | DJ7: Effect-based Cap (mg/kg) | DK7: Acute Cap (mg/kg) | DL7: Effect-based Cap (mg/kg) | DM7: Acute Cap (mg/kg) | DN7: Effect-based Cap (mg/kg) | DO7: Acute Cap (mg/kg) | DP7: Note | DQ7: Effect-based Cap (mg/kg) | DR7: Effect-based Cap (mg/kg) | DS7: Effect-based Cap (mg/kg) | DT7: (mg/kg) | DU7: (mg/kg) | DV7: =$C$6 -> mg/kg | DX7: Effect-based Cap (mg/kg) | DY7: Acute Cap (mg/kg) | DZ7: Effect-based Cap (mg/kg) | EA7: Acute Cap (mg/kg) | EB7: Effect-based Cap (mg/kg) | EC7: Acute Cap (mg/kg) | ED7: Note | EE7: Effect-based Cap (mg/kg) | EF7: Effect-based Cap (mg/kg) | EG7: Effect-based Cap (mg/kg) | EH7: (mg/kg) | EI7: (mg/kg) | EJ7: =$C$6 -> mg/kg
... 8 more rows

Sheet Ceiling Value_RPI (hidden)
A1: Ceiling Values (RPI): Calculations | AH1: ='Ceiling Value_Ag'!$V$1 -> 1 | AI1: ='Ceiling Value_Ag'!$W$1 -> 10 | AJ1: ='Ceiling Value_Ag'!$X$1 -> 1 | AN1: ='Ceiling Value_Ag'!$AB$1 -> 2
AB2: TABLE 1 - Effect-based & Acute Caps and Ceiling Values | AP2: TABLE 2 - Effect-based & Acute Caps and Ceiling Values | BD2: TABLE 2 - Effect-based & Acute Caps and Ceiling Values | BR2: TABLE 3 - Effect-based & Acute Caps and Ceiling Values | CF2: TABLE 3 - Effect-based & Acute Caps and Ceiling Values | CT2: TABLE 4 - Effect-based & Acute Caps and Ceiling Values | DJ2: TABLE 4 - Effect-based & Acute Caps and Final Ceiling Values | DZ2: TABLE 5 - Effect-based & Acute Caps and Ceiling Values | EP2: TABLE 5 - Effect-based & Acute Caps and Final Ceiling Values | FF2: TABLE 6 - Effect-based & Acute Caps and Final Ceiling Values | FT2: TABLE 6 - Effect-based & Acute Caps and Final Ceiling Values | GH2: TABLE 7 - Effect-based & Acute Caps and Final Ceiling Values | GV2: TABLE 7 - Effect-based & Acute Caps and Final Ceiling Values | HJ2: TABLE 8 - Effect-based & Acute Caps and Final Ceiling Values | HX2: TABLE 8 - Effect-based & Acute Caps and Final Ceiling Values | IL2: TABLE 9 - Effect-based & Acute Caps and Final Ceiling Values | IZ2: TABLE 9 - Effect-based & Acute Caps and Final Ceiling Values | JN2: TABLE 10 - Effect-based & Acute Caps and Final Ceiling Values | KB2: TABLE 10 - Effect-based & Acute Caps and Final Ceiling Values | KP2: TABLE 11 - Effect-based & Acute Caps and Final Ceiling Values | LD2: TABLE 11 - Effect-based & Acute Caps and Final Ceiling Values
B3: OTR98 Value | C3: Table 1 | E3: Table 1 | G3: Table 2 | H3: Table 2 | I3: Table 3 | J3: Table 3 | K3: Table 4 | L3: Table 4 | M3: Table 5 | N3: Table 5 | O3: Table 6 | P3: Table 6 | Q3: Table 7 | R3: Table 7 | S3: Table 8 | T3: Table 8 | U3: Table 9 | V3: Table 9 | W3: Table 10 | X3: Table 10 | Y3: Table 11 | Z3: Table 11 | AP3: (COARSE) | BD3: (F/M) | BR3: (COARSE) | CF3: (F/M) | CT3: (COARSE) | DJ3: (F/M) | DZ3: (COARSE) | EP3: (F/M) | FF3: (COARSE) | FT3: (F/M) | GH3: (COARSE) | GV3: (F/M) | HJ3: (COARSE) | HX3: (F/M) | IL3: (Coarse) | IZ3: (F/M) | JN3: (COARSE) | KB3: (F/M) | KP3: (COARSE) | LD3: (F/M)
A4: CHEMICAL NAME | B4: Other | C4: Soil Standards | E4: Limited at | G4: Soil Standards | H4: Soil Standards | I4: Soil Standards | J4: Soil Standards | K4: Soil Standards | L4: Soil Standards | M4: Soil Standards | N4: Soil Standards | O4: Soil Standards | P4: Soil Standards | Q4: Soil Standards | R4: Soil Standards | S4: Soil Standards | T4: Soil Standards | U4: Soil Standards | V4: Soil Standards | W4: Soil Standards | X4: Soil Standards | Y4: Soil Standards | Z4: Soil Standards | AB4: Lowest of (S-IA, S-GW2, S-OA) | AD4: (S1) | AF4: (S-GW1) | AH4: Lowest of (P&SO, M&B, S-GW3) | AJ4: Lowest of (S-Nose, S-IA Odour) | AK4: Lowest of (S-GW1 Odour S-GW2 Odour) | AN4: Ceiling | AP4: Lowest of (S-IA, S-GW2, S-OA) | AR4: (S1) | AT4: (S-GW1) | AV4: Lowest of (P&SO, M&B, S-GW3) | AX4: Lowest of (S-Nose, S-IA Odour) | AY4: Lowest of (S-GW1 Odour S-GW2 Odour) | BB4: Ceiling | BD4: Lowest of (S-IA, S-GW2, S-OA) | BF4: (S1) | BH4: (S-GW1) | BJ4: Lowest of (P&SO, M&B, S-GW3) | BL4: Lowest of (S-Nose, S-IA Odour) | BM4: Lowest of (S-GW1 Odour S-GW2 Odour) | BP4: Ceiling | BR4: Lowest of (S-IA, S-GW2, S-OA) | BT4: (S1) | BV4: (S-GW1) | BX4: Lowest of (P&SO, M&B, S-GW3) | BZ4: Lowest of (S-Nose, S-IA Odour) | CA4: (S-GW2 Odour) | CD4: Ceiling | CF4: Lowest of (S-IA, S-GW2, S-OA) | CH4: (S1) | CJ4: (S-GW1) | CL4: Lowest of (P&SO, M&B, S-GW3) | CN4: Lowest of (S-Nose, S-IA Odour) | CO4: (S-GW2 Odour) | CR4: Ceiling | CT4: Lowest of (S-IA, S-GW2) | CV4: (S2) | CX4: (S3) | CZ4: (S-GW1) | DB4: (S-GW3) | DD4: (S-IA Odour) | DE4: Lowest of (S-GW1 Odour S-GW2 Odour) | DH4: Ceiling | DJ4: Lowest of (S-IA, S-GW2) | DL4: (S2) | DN4: (S3) | DP4: (S-GW1) | DR4: (S-GW3) | DT4: (S-IA Odour) | DU4: Lowest of (S-GW1 Odour S-GW2 Odour) | DX4: Ceiling | DZ4: Lowest of (S-IA, S-GW2) | EB4: (S2) | ED4: (S3) | EF4: (S-GW1) | EH4: (S-GW3) | EJ4: (S-IA Odour) | EK4: (S-GW2 Odour) | EN4: Ceiling | EP4: Lowest of (S-IA, S-GW2) | ER4: (S2) | ET4: (S3) | EV4: (S-GW1) | EX4: (S-GW3) | EZ4: (S-IA Odour) | FA4: (S-GW2 Odour) | FD4: Ceiling | FF4: Lowest of (S-IA, S-GW2, S-OA) | FH4: (S1) | FJ4: (S-GW1) | FL4: Lowest of (P&SO, M&B, S-GW3) | FN4: Lowest of (S-Nose, S-IA Odour) | FO4: Lowest of (S-GW1 Odour S-GW2 Odour) | FR4: Ceiling | FT4: Lowest of (S-IA, S-GW2, S-OA) | FV4: (S1) | FX4: (S-GW1) | FZ4: Lowest of (P&SO, M&B, S-GW3) | GB4: Lowest of (S-Nose, S-IA Odour) | GC4: Lowest of (S-GW1 Odour S-GW2 Odour) | GF4: Ceiling | GH4: Lowest of (S-IA, S-GW2, S-OA) | GJ4: (S1) | GL4: (S-GW1) | GN4: Lowest of (P&SO, M&B, S-GW3) | GP4: Lowest of (S-Nose, S-IA Odour) | GQ4: (S-GW2 Odour) | GT4: Ceiling | GV4: Lowest of (S-IA, S-GW2, S-OA) | GX4: (S1) | GZ4: (S-GW1) | HB4: Lowest of (P&SO, M&B, S-GW3) | HD4: Lowest of (S-Nose, S-IA Odour) | HE4: (S-GW2 Odour) | HH4: Ceiling | HJ4: Lowest of (S-IA, S-GW2, S-OA) | HL4: (S1) | HN4: (S-GW1) | HP4: Lowest of (P&SO, M&B, S-GW3) | HR4: Lowest of (S-Nose, S-IA Odour) | HS4: Lowest of (S-GW1 Odour S-GW2 Odour) | HV4: Ceiling | HX4: Lowest of (S-IA, S-GW2, S-OA) | HZ4: (S1) | IB4: (S-GW1) | ID4: Lowest of (P&SO, M&B, S-GW3) | IF4: Lowest of (S-Nose, S-IA Odour) | IG4: Lowest of (S-GW1 Odour S-GW2 Odour) | IJ4: Ceiling | IL4: Lowest of (S-IA, S-GW2, S-OA) | IN4: (S1) | IP4: (S-GW1) | IR4: Lowest of (P&SO, M&B, S-GW3) | IT4: Lowest of (S-Nose, S-IA Odour) | IU4: (S-GW2 Odour) | IX4: Ceiling | IZ4: Lowest of (S-IA, S-GW2, S-OA) | JB4: (S1) | JD4: (S-GW1) | JF4: Lowest of (P&SO, M&B, S-GW3) | JH4: Lowest of (S-Nose, S-IA Odour) | JI4: (S-GW2 Odour) | JL4: Ceiling | JN4: Lowest of (S-IA, S-GW2, S-OA) | JP4: (S1) | JR4: (S-GW1) | JT4: Lowest of (P&SO, M&B, S-GW3) | JV4: Lowest of (S-Nose, S-IA Odour) | JW4: Lowest of (S-GW1 Odour S-GW2 Odour) | JZ4: Ceiling | KB4: Lowest of (S-IA, S-GW2, S-OA) | KD4: (S1) | KF4: (S-GW1) | KH4: Lowest of (P&SO, M&B, S-GW3) | KJ4: Lowest of (S-Nose, S-IA Odour) | KK4: Lowest of (S-GW1 Odour S-GW2 Odour) | KN4: Ceiling | KP4: Lowest of (S-IA, S-GW2, S-OA) | KR4: (S1) | KT4: (S-GW1) | KV4: Lowest of (P&SO, M&B, S-GW3) | KX4: Lowest of (S-Nose, S-IA Odour) | KY4: (S-GW2 Odour) | LB4: Ceiling | LD4: Lowest of (S-IA, S-GW2, S-OA) | LF4: (S1) | LH4: (S-GW1) | LJ4: Lowest of (P&SO, M&B, S-GW3) | LL4: Lowest of (S-Nose, S-IA Odour) | LM4: (S-GW2 Odour) | LP4: Ceiling
B5: mg/kg | C5: (Others) | E5: RL | G5: (Coarse) | H5: (F/M) | I5: (Coarse) | J5: (F/M) | K5: (Coarse) | L5: (F/M) | M5: (Coarse) | N5: (F/M) | O5: (Coarse) | P5: (F/M) | Q5: (Coarse) | R5: (F/M) | S5: (Coarse) | T5: (F/M) | U5: (Coarse) | V5: (F/M) | W5: (Coarse) | X5: (F/M) | Y5: (Coarse) | Z5: (F/M) | AL5: Lowest | AM5: Lowest | AN5: Values | AZ5: Lowest | BA5: Lowest | BB5: Values | BN5: Lowest | BO5: Lowest | BP5: Values | CB5: Lowest | CC5: Lowest | CD5: Values | CP5: Lowest | CQ5: Lowest | CR5: Values | DF5: Lowest | DG5: Lowest | DH5: Values | DV5: Lowest | DW5: Lowest | DX5: Values | EL5: Lowest | EM5: Lowest | EN5: Values | FB5: Lowest | FC5: Lowest | FD5: Values | FP5: Lowest | FQ5: Lowest | FR5: Values | GD5: Lowest | GE5: Lowest | GF5: Values | GR5: Lowest | GS5: Lowest | GT5: Values | HF5: Lowest | HG5: Lowest | HH5: Values | HT5: Lowest | HU5: Lowest | HV5: Values | IH5: Lowest | II5: Lowest | IJ5: Values | IV5: Lowest | IW5: Lowest | IX5: Values | JJ5: Lowest | JK5: Lowest | JL5: Values | JX5: Lowest | JY5: Lowest | JZ5: Values | KL5: Lowest | KM5: Lowest | KN5: Values | KZ5: Lowest | LA5: Lowest | LB5: Values | LN5: Lowest | LO5: Lowest | LP5: Values
C6: mg/kg | G6: mg/kg | H6: mg/kg | I6: mg/kg | J6: mg/kg | K6: mg/kg | L6: mg/kg | M6: mg/kg | N6: mg/kg | O6: mg/kg | P6: mg/kg | Q6: mg/kg | R6: mg/kg | S6: mg/kg | T6: mg/kg | U6: mg/kg | V6: mg/kg | W6: mg/kg | X6: mg/kg | Y6: mg/kg | Z6: mg/kg | AL6: Effect-based Cap | AM6: HH Acute Caps | AN6: (RPI/ICC) | AZ6: Effect-based Cap | BA6: HH Acute Caps | BB6: (RPI) | BN6: Effect-based Cap | BO6: HH Acute Caps | BP6: (RPI) | CB6: Effect-based Cap | CC6: HH Acute Caps | CD6: (RPI) | CP6: Effect-based Cap | CQ6: HH Acute Caps | CR6: (RPI) | DF6: Effect-based Cap | DG6: HH Acute Caps | DH6: (RPI) | DV6: Effect-based Cap | DW6: HH Acute Caps | DX6: (RPI) | EL6: Effect-based Cap | EM6: HH Acute Caps | EN6: (RPI) | FB6: Effect-based Cap | FC6: HH Acute Caps | FD6: (RPI) | FP6: Effect-based Cap | FQ6: HH Acute Caps | GD6: Effect-based Cap | GE6: HH Acute Caps | GR6: Effect-based Cap | GS6: HH Acute Caps | HF6: Effect-based Cap | HG6: HH Acute Caps | HT6: Effect-based Cap | HU6: HH Acute Caps | IH6: Effect-based Cap | II6: HH Acute Caps | IV6: Effect-based Cap | IW6: HH Acute Caps | JJ6: Effect-based Cap | JK6: HH Acute Caps | JX6: Effect-based Cap | JY6: HH Acute Caps | KL6: Effect-based Cap | KM6: HH Acute Caps | KZ6: Effect-based Cap | LA6: HH Acute Caps | LN6: Effect-based Cap | LO6: HH Acute Caps
AB7: Effect-based Cap (mg/kg) | AC7: Acute Cap (mg/kg) | AD7: Effect-based Cap (mg/kg) | AE7: Acute Cap (mg/kg) | AF7: Effect-based Cap (mg/kg) | AG7: Acute Cap (mg/kg) | AH7: Note | AI7: Effect-based Cap (mg/kg) | AJ7: Effect-based Cap (mg/kg) | AK7: Effect-based Cap (mg/kg) | AL7: (mg/kg) | AM7: (mg/kg) | AN7: =$C$6 -> mg/kg | AP7: =AR7 -> Effect-based Cap (mg/kg) | AQ7: Acute Cap (mg/kg) | AR7: Effect-based Cap (mg/kg) | AS7: Acute Cap (mg/kg) | AT7: Effect-based Cap (mg/kg) | AU7: Acute Cap (mg/kg) | AV7: Note | AW7: Effect-based Cap (mg/kg) | AX7: Effect-based Cap (mg/kg) | AY7: Effect-based Cap (mg/kg) | AZ7: (mg/kg) | BA7: (mg/kg) | BB7: =$C$6 -> mg/kg | BD7: Effect-based Cap (mg/kg) | BE7: Acute Cap (mg/kg) | BF7: Effect-based Cap (mg/kg) | BG7: Acute Cap (mg/kg) | BH7: Effect-based Cap (mg/kg) | BI7: Acute Cap (mg/kg) | BJ7: Note | BK7: Effect-based Cap (mg/kg) | BL7: Effect-based Cap (mg/kg) | BM7: Effect-based Cap (mg/kg) | BN7: (mg/kg) | BO7: (mg/kg) | BP7: =$C$6 -> mg/kg | BR7: Effect-based Cap (mg/kg) | BS7: Acute Cap (mg/kg) | BT7: Effect-based Cap (mg/kg) | BU7: Acute Cap (mg/kg) | BV7: Effect-based Cap (mg/kg) | BW7: Acute Cap (mg/kg) | BX7: Note | BY7: Effect-based Cap (mg/kg) | BZ7: Effect-based Cap (mg/kg) | CA7: Effect-based Cap (mg/kg) | CB7: (mg/kg) | CC7: (mg/kg) | CD7: =$C$6 -> mg/kg | CF7: Effect-based Cap (mg/kg) | CG7: Acute Cap (mg/kg) | CH7: Effect-based Cap (mg/kg) | CI7: Acute Cap (mg/kg) | CJ7: Effect-based Cap (mg/kg) | CK7: Acute Cap (mg/kg) | CL7: Note | CM7: Effect-based Cap (mg/kg) | CN7: Effect-based Cap (mg/kg) | CO7: Effect-based Cap (mg/kg) | CP7: (mg/kg) | CQ7: (mg/kg) | CR7: =$C$6 -> mg/kg | CT7: Effect-based Cap (mg/kg) | CU7: Acute Cap (mg/kg) | CV7: Effect-based Cap (mg/kg) | CW7: Acute Cap (mg/kg) | CX7: Effect-based Cap (mg/kg) | CY7: Acute Cap (mg/kg) | CZ7: Effect-based Cap (mg/kg) | DA7: Acute Cap (mg/kg) | DB7: Note | DC7: Effect-based Cap (mg/kg) | DD7: Effect-based Cap (mg/kg) | DE7: Effect-based Cap (mg/kg) | DF7: (mg/kg) | DG7: (mg/kg) | DH7: =$C$6 -> mg/kg | DJ7: Effect-based Cap (mg/kg) | DK7: Acute Cap (mg/kg) | DL7: Effect-based Cap (mg/kg) | DM7: Acute Cap (mg/kg) | DN7: Effect-based Cap (mg/kg) | DO7: Acute Cap (mg/kg) | DP7: Effect-based Cap (mg/kg) | DQ7: Acute Cap (mg/kg) | DR7: Note | DS7: Effect-based Cap (mg/kg) | DT7: Effect-based Cap (mg/kg) | DU7: Effect-based Cap (mg/kg) | DV7: (mg/kg) | DW7: (mg/kg) | DX7: =$C$6 -> mg/kg | DZ7: Effect-based Cap (mg/kg) | EA7: Acute Cap (mg/kg) | EB7: Effect-based Cap (mg/kg) | EC7: Acute Cap (mg/kg) | ED7: Effect-based Cap (mg/kg) | EE7: Acute Cap (mg/kg) | EF7: Effect-based Cap (mg/kg) | EG7: Acute Cap (mg/kg) | EH7: Note | EI7: Effect-based Cap (mg/kg) | EJ7: Effect-based Cap (mg/kg) | EK7: Effect-based Cap (mg/kg) | EL7: (mg/kg) | EM7: (mg/kg) | EN7: =$C$6 -> mg/kg | EP7: Effect-based Cap (mg/kg) | EQ7: Acute Cap (mg/kg) | ER7: Effect-based Cap (mg/kg) | ES7: Acute Cap (mg/kg) | ET7: Effect-based Cap (mg/kg) | EU7: Acute Cap (mg/kg) | EV7: Effect-based Cap (mg/kg) | EW7: Acute Cap (mg/kg) | EX7: Note | EY7: Effect-based Cap (mg/kg) | EZ7: Effect-based Cap (mg/kg) | FA7: Effect-based Cap (mg/kg) | FB7: (mg/kg) | FC7: (mg/kg) | FD7: =$C$6 -> mg/kg | FF7: Effect-based Cap (mg/kg) | FG7: Acute Cap (mg/kg) | FH7: Effect-based Cap (mg/kg) | FI7: Acute Cap (mg/kg) | FJ7: Effect-based Cap (mg/kg) | FK7: Acute Cap (mg/kg) | FL7: Note | FM7: Effect-based Cap (mg/kg) | FN7: Effect-based Cap (mg/kg) | FO7: Effect-based Cap (mg/kg) | FP7: (mg/kg) | FQ7: (mg/kg) | FR7: =$C$6 -> mg/kg | FT7: Effect-based Cap (mg/kg) | FU7: Acute Cap (mg/kg) | FV7: Effect-based Cap (mg/kg) | FW7: Acute Cap (mg/kg) | FX7: Effect-based Cap (mg/kg) | FY7: Acute Cap (mg/kg) | FZ7: Note | GA7: Effect-based Cap (mg/kg) | GB7: Effect-based Cap (mg/kg) | GC7: Effect-based Cap (mg/kg) | GD7: (mg/kg) | GE7: (mg/kg) | GF7: =$C$6 -> mg/kg | GH7: Effect-based Cap (mg/kg) | GI7: Acute Cap (mg/kg) | GJ7: Effect-based Cap (mg/kg) | GK7: Acute Cap (mg/kg) | GL7: Effect-based Cap (mg/kg) | GM7: Acute Cap (mg/kg) | GN7: Note | GO7: Effect-based Cap (mg/kg) | GP7: Effect-based Cap (mg/kg) | GQ7: Effect-based Cap (mg/kg) | GR7: (mg/kg) | GS7: (mg/kg) | GT7: =$C$6 -> mg/kg | GV7: Effect-based Cap (mg/kg) | GW7: Acute Cap (mg/kg) | GX7: Effect-based Cap (mg/kg) | GY7: Acute Cap (mg/kg) | GZ7: Effect-based Cap (mg/kg) | HA7: Acute Cap (mg/kg) | HB7: Note | HC7: Effect-based Cap (mg/kg) | HD7: Effect-based Cap (mg/kg) | HE7: Effect-based Cap (mg/kg) | HF7: (mg/kg) | HG7: (mg/kg) | HH7: =$C$6 -> mg/kg | HJ7: Effect-based Cap (mg/kg) | HK7: Acute Cap (mg/kg) | HL7: Effect-based Cap (mg/kg) | HM7: Acute Cap (mg/kg) | HN7: Effect-based Cap (mg/kg) | HO7: Acute Cap (mg/kg) | HP7: Note | HQ7: Effect-based Cap (mg/kg) | HR7: Effect-based Cap (mg/kg) | HS7: Effect-based Cap (mg/kg) | HT7: (mg/kg) | HU7: (mg/kg) | HV7: =$C$6 -> mg/kg | HX7: Effect-based Cap (mg/kg) | HY7: Acute Cap (mg/kg) | HZ7: Effect-based Cap (mg/kg) | IA7: Acute Cap (mg/kg) | IB7: Effect-based Cap (mg/kg) | IC7: Acute Cap (mg/kg) | ID7: Note | IE7: Effect-based Cap (mg/kg) | IF7: Effect-based Cap (mg/kg) | IG7: Effect-based Cap (mg/kg) | IH7: (mg/kg) | II7: (mg/kg) | IJ7: =$C$6 -> mg/kg | IL7: Effect-based Cap (mg/kg) | IM7: Acute Cap (mg/kg) | IN7: Effect-based Cap (mg/kg) | IO7: Acute Cap (mg/kg) | IP7: Effect-based Cap (mg/kg) | IQ7: Acute Cap (mg/kg) | IR7: Note | IS7: Effect-based Cap (mg/kg) | IT7: Effect-based Cap (mg/kg) | IU7: Effect-based Cap (mg/kg) | IV7: (mg/kg) | IW7: (mg/kg) | IX7: =$C$6 -> mg/kg | IZ7: Effect-based Cap (mg/kg) | JA7: Acute Cap (mg/kg) | JB7: Effect-based Cap (mg/kg) | JC7: Acute Cap (mg/kg) | JD7: Effect-based Cap (mg/kg) | JE7: Acute Cap (mg/kg) | JF7: Note | JG7: Effect-based Cap (mg/kg) | JH7: Effect-based Cap (mg/kg) | JI7: Effect-based Cap (mg/kg) | JJ7: (mg/kg) | JK7: (mg/kg) | JL7: =$C$6 -> mg/kg | JN7: Effect-based Cap (mg/kg) | JO7: Acute Cap (mg/kg) | JP7: Effect-based Cap (mg/kg) | JQ7: Acute Cap (mg/kg) | JR7: Effect-based Cap (mg/kg) | JS7: Acute Cap (mg/kg) | JT7: Note | JU7: Effect-based Cap (mg/kg) | JV7: Effect-based Cap (mg/kg) | JW7: Effect-based Cap (mg/kg) | JX7: (mg/kg) | JY7: (mg/kg) | JZ7: =$C$6 -> mg/kg | KB7: Effect-based Cap (mg/kg) | KC7: Acute Cap (mg/kg) | KD7: Effect-based Cap (mg/kg) | KE7: Acute Cap (mg/kg) | KF7: Effect-based Cap (mg/kg) | KG7: Acute Cap (mg/kg) | KH7: Note | KI7: Effect-based Cap (mg/kg) | KJ7: Effect-based Cap (mg/kg) | KK7: Effect-based Cap (mg/kg) | KL7: (mg/kg) | KM7: (mg/kg) | KN7: =$C$6 -> mg/kg | KP7: Effect-based Cap (mg/kg) | KQ7: Acute Cap (mg/kg) | KR7: Effect-based Cap (mg/kg) | KS7: Acute Cap (mg/kg) | KT7: Effect-based Cap (mg/kg) | KU7: Acute Cap (mg/kg) | KV7: Note | KW7: Effect-based Cap (mg/kg) | KX7: Effect-based Cap (mg/kg) | KY7: Effect-based Cap (mg/kg) | KZ7: (mg/kg) | LA7: (mg/kg) | LB7: =$C$6 -> mg/kg | LD7: Effect-based Cap (mg/kg) | LE7: Acute Cap (mg/kg) | LF7: Effect-based Cap (mg/kg) | LG7: Acute Cap (mg/kg) | LH7: Effect-based Cap (mg/kg) | LI7: Acute Cap (mg/kg) | LJ7: Note | LK7: Effect-based Cap (mg/kg) | LL7: Effect-based Cap (mg/kg) | LM7: Effect-based Cap (mg/kg) | LN7: (mg/kg) | LO7: (mg/kg) | LP7: =$C$6 -> mg/kg
... 8 more rows

Sheet Ceiling Value_ICC (hidden)
A1: Ceiling Values (ICC): Calculations | AF1: ='Ceiling Value_Ag'!$V$1 -> 1 | AG1: ='Ceiling Value_Ag'!$W$1 -> 10 | AH1: ='Ceiling Value_Ag'!$X$1 -> 1 | AL1: ='Ceiling Value_Ag'!$AB$1 -> 2
W2: TABLE 2 - Effect-based & Acute Caps and Ceiling Values | AN2: TABLE 2 - Effect-based & Acute Caps and Ceiling Values | BE2: TABLE 3 - Effect-based & Acute Caps and Ceiling Values | BV2: TABLE 3 - Effect-based & Acute Caps and Ceiling Values | CM2: TABLE 4 - Effect-based & Acute Caps and Ceiling Values | DD2: TABLE 4 - Effect-based & Acute Caps and Final Ceiling Values | DU2: TABLE 5 - Effect-based & Acute Caps and Ceiling Values | EL2: TABLE 5 - Effect-based & Acute Caps and Final Ceiling Values | FC2: TABLE 6 - Effect-based & Acute Caps and Final Ceiling Values | FT2: TABLE 6 - Effect-based & Acute Caps and Final Ceiling Values | GK2: TABLE 7 - Effect-based & Acute Caps and Final Ceiling Values | HB2: TABLE 7 - Effect-based & Acute Caps and Final Ceiling Values | HS2: TABLE 8 - Effect-based & Acute Caps and Final Ceiling Values | IJ2: TABLE 8 - Effect-based & Acute Caps and Final Ceiling Values | JA2: TABLE 9 - Effect-based & Acute Caps and Final Ceiling Values | JR2: TABLE 9 - Effect-based & Acute Caps and Final Ceiling Values | KI2: TABLE 10 - Effect-based & Acute Caps and Final Ceiling Values | KZ2: TABLE 10 - Effect-based & Acute Caps and Final Ceiling Values | LQ2: TABLE 11 - Effect-based & Acute Caps and Final Ceiling Values | MH2: TABLE 11 - Effect-based & Acute Caps and Final Ceiling Values
B3: Table 2 | C3: Table 2 | D3: Table 3 | E3: Table 3 | F3: Table 4 | G3: Table 4 | H3: Table 5 | I3: Table 5 | J3: Table 6 | K3: Table 6 | L3: Table 7 | M3: Table 7 | N3: Table 8 | O3: Table 8 | P3: Table 9 | Q3: Table 9 | R3: Table 10 | S3: Table 10 | T3: Table 11 | U3: Table 11 | W3: (COARSE) | AN3: (F/M) | BE3: (COARSE) | BV3: (F/M) | CM3: (COARSE) | DD3: (F/M) | DU3: (COARSE) | EL3: (F/M) | FC3: (COARSE) | FR3: Ceiling | FT3: (F/M) | GI3: Ceiling | GK3: (COARSE) | GZ3: Ceiling | HB3: (F/M) | HQ3: Ceiling | HS3: (COARSE) | IH3: Ceiling | IJ3: (F/M) | IY3: Ceiling | JA3: (COARSE) | JP3: Ceiling | JR3: (F/M) | KG3: Ceiling | KI3: (COARSE) | KX3: Ceiling | KZ3: (F/M) | LO3: Ceiling | LQ3: (COARSE) | MF3: Ceiling | MH3: (F/M) | MW3: Ceiling
A4: CHEMICAL NAME | B4: Soil Standards | C4: Soil Standards | D4: Soil Standards | E4: Soil Standards | F4: Soil Standards | G4: Soil Standards | H4: Soil Standards | I4: Soil Standards | J4: Soil Standards | K4: Soil Standards | L4: Soil Standards | M4: Soil Standards | N4: Soil Standards | O4: Soil Standards | P4: Soil Standards | Q4: Soil Standards | R4: Soil Standards | S4: Soil Standards | T4: Soil Standards | U4: Soil Standards | W4: Lowest of (S-IA, S-GW2, S-OA) | Z4: (S2) | AB4: (S3) | AD4: (S-GW1) | AF4: Lowest of (P&SO, M&B, S-GW3) | AH4: (S-IA Odour) | AI4: Lowest of (S-GW1 Odour S-GW2 Odour) | AL4: Ceiling | AN4: Lowest of (S-IA, S-GW2, S-OA) | AQ4: (S2) | AS4: (S3) | AU4: (S-GW1) | AW4: Lowest of (P&SO, M&B, S-GW3) | AY4: (S-IA Odour) | AZ4: Lowest of (S-GW1 Odour S-GW2 Odour) | BC4: Ceiling | BE4: Lowest of (S-IA, S-GW2, S-OA) | BH4: (S2) | BJ4: (S3) | BL4: (S-GW1) | BN4: Lowest of (P&SO, M&B, S-GW3) | BP4: (S-IA Odour) | BQ4: Lowest of (S-GW1 Odour S-GW2 Odour) | BT4: Ceiling | BV4: Lowest of (S-IA, S-GW2, S-OA) | BY4: (S2) | CA4: (S3) | CC4: (S-GW1) | CE4: Lowest of (P&SO, M&B, S-GW3) | CG4: (S-IA Odour) | CH4: (S-GW2 Odour) | CK4: Ceiling | CM4: Lowest of (S-IA, S-GW2) | CP4: (S2) | CR4: (S3) | CT4: (S-GW1) | CV4: (S-GW3) | CX4: (S-IA Odour) | CY4: Lowest of (S-GW1 Odour S-GW2 Odour) | DB4: Ceiling | DD4: Lowest of (S-IA, S-GW2) | DG4: (S2) | DI4: (S3) | DK4: (S-GW1) | DM4: (S-GW3) | DO4: (S-IA Odour) | DP4: (S-GW2 Odour) | DS4: Ceiling | DU4: Lowest of (S-IA, S-GW2) | DX4: (S2) | DZ4: (S3) | EB4: (S-GW1) | ED4: (S-GW3) | EF4: (S-IA Odour) | EG4: Lowest of (S-GW1 Odour S-GW2 Odour) | EJ4: Ceiling | EL4: Lowest of (S-IA, S-GW2) | EO4: (S2) | EQ4: (S3) | ES4: (S-GW1) | EU4: (S-GW3) | EW4: (S-IA Odour) | EX4: (S-GW2 Odour) | FA4: Ceiling | FC4: Lowest of (S-IA, S-GW2, S-OA) | FF4: (S2) | FH4: (S3) | FJ4: (S-GW1) | FL4: Lowest of (P&SO, M&B, S-GW3) | FN4: (S-IA Odour) | FO4: Lowest of (S-GW1 Odour S-GW2 Odour) | FR4: Values | FT4: Lowest of (S-IA, S-GW2, S-OA) | FW4: (S2) | FY4: (S3) | GA4: (S-GW1) | GC4: Lowest of (P&SO, M&B, S-GW3) | GE4: (S-IA Odour) | GF4: Lowest of (S-GW1 Odour S-GW2 Odour) | GI4: Values | GK4: Lowest of (S-IA, S-GW2, S-OA) | GN4: (S2) | GP4: (S3) | GR4: (S-GW1) | GT4: Lowest of (P&SO, M&B, S-GW3) | GV4: (S-IA Odour) | GW4: (S-GW2 Odour) | GZ4: Values | HB4: Lowest of (S-IA, S-GW2, S-OA) | HE4: (S2) | HG4: (S3) | HI4: (S-GW1) | HK4: Lowest of (P&SO, M&B, S-GW3) | HM4: (S-IA Odour) | HN4: (S-GW2 Odour) | HQ4: Values | HS4: Lowest of (S-IA, S-GW2, S-OA) | HV4: (S2) | HX4: (S3) | HZ4: (S-GW1) | IB4: Lowest of (P&SO, M&B, S-GW3) | ID4: (S-IA Odour) | IE4: Lowest of (S-GW1 Odour S-GW2 Odour) | IH4: Values | IJ4: Lowest of (S-IA, S-GW2, S-OA) | IM4: (S2) | IO4: (S3) | IQ4: (S-GW1) | IS4: Lowest of (P&SO, M&B, S-GW3) | IU4: (S-IA Odour) | IV4: Lowest of (S-GW1 Odour S-GW2 Odour) | IY4: Values | JA4: Lowest of (S-IA, S-GW2, S-OA) | JD4: (S2) | JF4: (S3) | JH4: (S-GW1) | JJ4: Lowest of (P&SO, M&B, S-GW3) | JL4: (S-IA Odour) | JM4: (S-GW2 Odour) | JP4: Values | JR4: Lowest of (S-IA, S-GW2, S-OA) | JU4: (S2) | JW4: (S3) | JY4: (S-GW1) | KA4: Lowest of (P&SO, M&B, S-GW3) | KC4: (S-IA Odour) | KD4: (S-GW2 Odour) | KG4: Values | KI4: Lowest of (S-IA, S-GW2, S-OA) | KL4: (S2) | KN4: (S3) | KP4: (S-GW1) | KR4: Lowest of (P&SO, M&B, S-GW3) | KT4: (S-IA Odour) | KU4: Lowest of (S-GW1 Odour S-GW2 Odour) | KX4: Values | KZ4: Lowest of (S-IA, S-GW2, S-OA) | LC4: (S2) | LE4: (S3) | LG4: (S-GW1) | LI4: Lowest of (P&SO, M&B, S-GW3) | LK4: (S-IA Odour) | LL4: Lowest of (S-GW1 Odour S-GW2 Odour) | LO4: Values | LQ4: Lowest of (S-IA, S-GW2, S-OA) | LT4: (S2) | LV4: (S3) | LX4: (S-GW1) | LZ4: Lowest of (P&SO, M&B, S-GW3) | MB4: (S-IA Odour) | MC4: (S-GW2 Odour) | MF4: Values | MH4: Lowest of (S-IA, S-GW2, S-OA) | MK4: (S2) | MM4: (S3) | MO4: (S-GW1) | MQ4: Lowest of (P&SO, M&B, S-GW3) | MS4: (S-IA Odour) | MT4: (S-GW2 Odour) | MW4: Values
B5: (Coarse) | C5: (F/M) | D5: (Coarse) | E5: (F/M) | F5: (Coarse) | G5: (F/M) | H5: (Coarse) | I5: (F/M) | J5: (Coarse) | K5: (F/M) | L5: (Coarse) | M5: (F/M) | N5: (Coarse) | O5: (F/M) | P5: (Coarse) | Q5: (F/M) | R5: (Coarse) | S5: (F/M) | T5: (Coarse) | U5: (F/M) | AJ5: Lowest | AK5: Lowest | AL5: Values | BA5: Lowest | BB5: Lowest | BC5: Values | BR5: Lowest | BS5: Lowest | BT5: Values | CI5: Lowest | CJ5: Lowest | CK5: Values | CZ5: Lowest | DA5: Lowest | DB5: Values | DQ5: Lowest | DR5: Lowest | DS5: Values | EH5: Lowest | EI5: Lowest | EJ5: Values | EY5: Lowest | EZ5: Lowest | FA5: Values | FP5: Lowest | FQ5: Lowest | FR5: (ICC) | GG5: Lowest | GH5: Lowest | GI5: (ICC) | GX5: Lowest | GY5: Lowest | GZ5: (ICC) | HO5: Lowest | HP5: Lowest | HQ5: (ICC) | IF5: Lowest | IG5: Lowest | IH5: (ICC) | IW5: Lowest | IX5: Lowest | IY5: (ICC) | JN5: Lowest | JO5: Lowest | JP5: (ICC) | KE5: Lowest | KF5: Lowest | KG5: (ICC) | KV5: Lowest | KW5: Lowest | KX5: (ICC) | LM5: Lowest | LN5: Lowest | LO5: (ICC) | MD5: Lowest | ME5: Lowest | MF5: (ICC) | MU5: Lowest | MV5: Lowest | MW5: (ICC)
B6: mg/kg | C6: mg/kg | D6: mg/kg | E6: mg/kg | F6: mg/kg | G6: mg/kg | H6: mg/kg | I6: mg/kg | J6: mg/kg | K6: mg/kg | L6: mg/kg | M6: mg/kg | N6: mg/kg | O6: mg/kg | P6: mg/kg | Q6: mg/kg | R6: mg/kg | S6: mg/kg | T6: mg/kg | U6: mg/kg | AJ6: Effect-based Cap | AK6: HH Acute Caps | AL6: (ICC) | BA6: Effect-based Cap | BB6: HH Acute Caps | BC6: (ICC) | BR6: Effect-based Cap | BS6: HH Acute Caps | BT6: (ICC) | CI6: Effect-based Cap | CJ6: HH Acute Caps | CK6: (ICC) | CZ6: Effect-based Cap | DA6: HH Acute Caps | DB6: (ICC) | DQ6: Effect-based Cap | DR6: HH Acute Caps | DS6: (ICC) | EH6: Effect-based Cap | EI6: HH Acute Caps | EJ6: (ICC) | EY6: Effect-based Cap | EZ6: HH Acute Caps | FA6: (ICC) | FP6: Effect-based Cap | FQ6: HH Acute Caps | GG6: Effect-based Cap | GH6: HH Acute Caps | GX6: Effect-based Cap | GY6: HH Acute Caps | HO6: Effect-based Cap | HP6: HH Acute Caps | IF6: Effect-based Cap | IG6: HH Acute Caps | IW6: Effect-based Cap | IX6: HH Acute Caps | JN6: Effect-based Cap | JO6: HH Acute Caps | KE6: Effect-based Cap | KF6: HH Acute Caps | KV6: Effect-based Cap | KW6: HH Acute Caps | LM6: Effect-based Cap | LN6: HH Acute Caps | MD6: Effect-based Cap | ME6: HH Acute Caps | MU6: Effect-based Cap | MV6: HH Acute Caps
W7: HH Inhal. Driver | X7: Effect-based Cap (mg/kg) | Y7: Acute Cap (mg/kg) | Z7: Effect-based Cap (mg/kg) | AA7: Acute Cap (mg/kg) | AB7: Effect-based Cap (mg/kg) | AC7: Acute Cap (mg/kg) | AD7: Effect-based Cap (mg/kg) | AE7: Acute Cap (mg/kg) | AF7: Note | AG7: Effect-based Cap (mg/kg) | AH7: Effect-based Cap (mg/kg) | AI7: Effect-based Cap (mg/kg) | AJ7: (mg/kg) | AK7: (mg/kg) | AL7: (mg/kg) | AN7: HH Inhal. Driver | AO7: Effect-based Cap (mg/kg) | AP7: Acute Cap (mg/kg) | AQ7: Effect-based Cap (mg/kg) | AR7: Acute Cap (mg/kg) | AS7: Effect-based Cap (mg/kg) | AT7: Acute Cap (mg/kg) | AU7: Effect-based Cap (mg/kg) | AV7: Acute Cap (mg/kg) | AW7: Note | AX7: Effect-based Cap (mg/kg) | AY7: Effect-based Cap (mg/kg) | AZ7: Effect-based Cap (mg/kg) | BA7: (mg/kg) | BB7: (mg/kg) | BC7: (mg/kg) | BE7: HH Inhal. Driver | BF7: Effect-based Cap (mg/kg) | BG7: Acute Cap (mg/kg) | BH7: Effect-based Cap (mg/kg) | BI7: Acute Cap (mg/kg) | BJ7: Effect-based Cap (mg/kg) | BK7: Acute Cap (mg/kg) | BL7: Effect-based Cap (mg/kg) | BM7: Acute Cap (mg/kg) | BN7: Note | BO7: Effect-based Cap (mg/kg) | BP7: Effect-based Cap (mg/kg) | BQ7: Effect-based Cap (mg/kg) | BR7: (mg/kg) | BS7: (mg/kg) | BT7: (mg/kg) | BV7: HH Inhal. Driver | BW7: Effect-based Cap (mg/kg) | BX7: Acute Cap (mg/kg) | BY7: Effect-based Cap (mg/kg) | BZ7: Acute Cap (mg/kg) | CA7: Effect-based Cap (mg/kg) | CB7: Acute Cap (mg/kg) | CC7: Effect-based Cap (mg/kg) | CD7: Acute Cap (mg/kg) | CE7: Note | CF7: Effect-based Cap (mg/kg) | CG7: Effect-based Cap (mg/kg) | CH7: Effect-based Cap (mg/kg) | CI7: (mg/kg) | CJ7: (mg/kg) | CK7: (mg/kg) | CM7: HH Inhal. Driver | CN7: Effect-based Cap (mg/kg) | CO7: Acute Cap (mg/kg) | CP7: Effect-based Cap (mg/kg) | CQ7: Acute Cap (mg/kg) | CR7: Effect-based Cap (mg/kg) | CS7: Acute Cap (mg/kg) | CT7: Effect-based Cap (mg/kg) | CU7: Acute Cap (mg/kg) | CV7: Note | CW7: Effect-based Cap (mg/kg) | CX7: Effect-based Cap (mg/kg) | CY7: Effect-based Cap (mg/kg) | CZ7: (mg/kg) | DA7: (mg/kg) | DB7: (mg/kg) | DD7: HH Inhal. Driver | DE7: Effect-based Cap (mg/kg) | DF7: Acute Cap (mg/kg) | DG7: Effect-based Cap (mg/kg) | DH7: Acute Cap (mg/kg) | DI7: Effect-based Cap (mg/kg) | DJ7: Acute Cap (mg/kg) | DK7: Effect-based Cap (mg/kg) | DL7: Acute Cap (mg/kg) | DM7: Note | DN7: Effect-based Cap (mg/kg) | DO7: Effect-based Cap (mg/kg) | DP7: Effect-based Cap (mg/kg) | DQ7: (mg/kg) | DR7: (mg/kg) | DS7: (mg/kg) | DU7: HH Inhal. Driver | DV7: Effect-based Cap (mg/kg) | DW7: Acute Cap (mg/kg) | DX7: Effect-based Cap (mg/kg) | DY7: Acute Cap (mg/kg) | DZ7: Effect-based Cap (mg/kg) | EA7: Acute Cap (mg/kg) | EB7: Effect-based Cap (mg/kg) | EC7: Acute Cap (mg/kg) | ED7: Note | EE7: Effect-based Cap (mg/kg) | EF7: Effect-based Cap (mg/kg) | EG7: Effect-based Cap (mg/kg) | EH7: (mg/kg) | EI7: (mg/kg) | EJ7: (mg/kg) | EL7: HH Inhal. Driver | EM7: Effect-based Cap (mg/kg) | EN7: Acute Cap (mg/kg) | EO7: Effect-based Cap (mg/kg) | EP7: Acute Cap (mg/kg) | EQ7: Effect-based Cap (mg/kg) | ER7: Acute Cap (mg/kg) | ES7: Effect-based Cap (mg/kg) | ET7: Acute Cap (mg/kg) | EU7: Note | EV7: Effect-based Cap (mg/kg) | EW7: Effect-based Cap (mg/kg) | EX7: Effect-based Cap (mg/kg) | EY7: (mg/kg) | EZ7: (mg/kg) | FA7: (mg/kg) | FC7: HH Inhal. Driver | FD7: Effect-based Cap (mg/kg) | FE7: Acute Cap (mg/kg) | FF7: Effect-based Cap (mg/kg) | FG7: Acute Cap (mg/kg) | FH7: Effect-based Cap (mg/kg) | FI7: Acute Cap (mg/kg) | FJ7: Effect-based Cap (mg/kg) | FK7: Acute Cap (mg/kg) | FL7: Note | FM7: Effect-based Cap (mg/kg) | FN7: Effect-based Cap (mg/kg) | FO7: Effect-based Cap (mg/kg) | FP7: (mg/kg) | FQ7: (mg/kg) | FR7: (mg/kg) | FT7: HH Inhal. Driver | FU7: Effect-based Cap (mg/kg) | FV7: Acute Cap (mg/kg) | FW7: Effect-based Cap (mg/kg) | FX7: Acute Cap (mg/kg) | FY7: Effect-based Cap (mg/kg) | FZ7: Acute Cap (mg/kg) | GA7: Effect-based Cap (mg/kg) | GB7: Acute Cap (mg/kg) | GC7: Note | GD7: Effect-based Cap (mg/kg) | GE7: Effect-based Cap (mg/kg) | GF7: Effect-based Cap (mg/kg) | GG7: (mg/kg) | GH7: (mg/kg) | GI7: (mg/kg) | GK7: HH Inhal. Driver | GL7: Effect-based Cap (mg/kg) | GM7: Acute Cap (mg/kg) | GN7: Effect-based Cap (mg/kg) | GO7: Acute Cap (mg/kg) | GP7: Effect-based Cap (mg/kg) | GQ7: Acute Cap (mg/kg) | GR7: Effect-based Cap (mg/kg) | GS7: Acute Cap (mg/kg) | GT7: Note | GU7: Effect-based Cap (mg/kg) | GV7: Effect-based Cap (mg/kg) | GW7: Effect-based Cap (mg/kg) | GX7: (mg/kg) | GY7: (mg/kg) | GZ7: (mg/kg) | HB7: HH Inhal. Driver | HC7: Effect-based Cap (mg/kg) | HD7: Acute Cap (mg/kg) | HE7: Effect-based Cap (mg/kg) | HF7: Acute Cap (mg/kg) | HG7: Effect-based Cap (mg/kg) | HH7: Acute Cap (mg/kg) | HI7: Effect-based Cap (mg/kg) | HJ7: Acute Cap (mg/kg) | HK7: Note | HL7: Effect-based Cap (mg/kg) | HM7: Effect-based Cap (mg/kg) | HN7: Effect-based Cap (mg/kg) | HO7: (mg/kg) | HP7: (mg/kg) | HQ7: (mg/kg) | HS7: HH Inhal. Driver | HT7: Effect-based Cap (mg/kg) | HU7: Acute Cap (mg/kg) | HV7: Effect-based Cap (mg/kg) | HW7: Acute Cap (mg/kg) | HX7: Effect-based Cap (mg/kg) | HY7: Acute Cap (mg/kg) | HZ7: Effect-based Cap (mg/kg) | IA7: Acute Cap (mg/kg) | IB7: Note | IC7: Effect-based Cap (mg/kg) | ID7: Effect-based Cap (mg/kg) | IE7: Effect-based Cap (mg/kg) | IF7: (mg/kg) | IG7: (mg/kg) | IH7: (mg/kg) | IJ7: HH Inhal. Driver | IK7: Effect-based Cap (mg/kg) | IL7: Acute Cap (mg/kg) | IM7: Effect-based Cap (mg/kg) | IN7: Acute Cap (mg/kg) | IO7: Effect-based Cap (mg/kg) | IP7: Acute Cap (mg/kg) | IQ7: Effect-based Cap (mg/kg) | IR7: Acute Cap (mg/kg) | IS7: Note | IT7: Effect-based Cap (mg/kg) | IU7: Effect-based Cap (mg/kg) | IV7: Effect-based Cap (mg/kg) | IW7: (mg/kg) | IX7: (mg/kg) | IY7: (mg/kg) | JA7: HH Inhal. Driver | JB7: Effect-based Cap (mg/kg) | JC7: Acute Cap (mg/kg) | JD7: Effect-based Cap (mg/kg) | JE7: Acute Cap (mg/kg) | JF7: Effect-based Cap (mg/kg) | JG7: Acute Cap (mg/kg) | JH7: Effect-based Cap (mg/kg) | JI7: Acute Cap (mg/kg) | JJ7: Note | JK7: Effect-based Cap (mg/kg) | JL7: Effect-based Cap (mg/kg) | JM7: Effect-based Cap (mg/kg) | JN7: (mg/kg) | JO7: (mg/kg) | JP7: (mg/kg) | JR7: HH Inhal. Driver | JS7: Effect-based Cap (mg/kg) | JT7: Acute Cap (mg/kg) | JU7: Effect-based Cap (mg/kg) | JV7: Acute Cap (mg/kg) | JW7: Effect-based Cap (mg/kg) | JX7: Acute Cap (mg/kg) | JY7: Effect-based Cap (mg/kg) | JZ7: Acute Cap (mg/kg) | KA7: Note | KB7: Effect-based Cap (mg/kg) | KC7: Effect-based Cap (mg/kg) | KD7: Effect-based Cap (mg/kg) | KE7: (mg/kg) | KF7: (mg/kg) | KG7: (mg/kg) | KI7: HH Inhal. Driver | KJ7: Effect-based Cap (mg/kg) | KK7: Acute Cap (mg/kg) | KL7: Effect-based Cap (mg/kg) | KM7: Acute Cap (mg/kg) | KN7: Effect-based Cap (mg/kg) | KO7: Acute Cap (mg/kg) | KP7: Effect-based Cap (mg/kg) | KQ7: Acute Cap (mg/kg) | KR7: Note | KS7: Effect-based Cap (mg/kg) | KT7: Effect-based Cap (mg/kg) | KU7: Effect-based Cap (mg/kg) | KV7: (mg/kg) | KW7: (mg/kg) | KX7: (mg/kg) | KZ7: HH Inhal. Driver | LA7: Effect-based Cap (mg/kg) | LB7: Acute Cap (mg/kg) | LC7: Effect-based Cap (mg/kg) | LD7: Acute Cap (mg/kg) | LE7: Effect-based Cap (mg/kg) | LF7: Acute Cap (mg/kg) | LG7: Effect-based Cap (mg/kg) | LH7: Acute Cap (mg/kg) | LI7: Note | LJ7: Effect-based Cap (mg/kg) | LK7: Effect-based Cap (mg/kg) | LL7: Effect-based Cap (mg/kg) | LM7: (mg/kg) | LN7: (mg/kg) | LO7: (mg/kg) | LQ7: HH Inhal. Driver | LR7: Effect-based Cap (mg/kg) | LS7: Acute Cap (mg/kg) | LT7: Effect-based Cap (mg/kg) | LU7: Acute Cap (mg/kg) | LV7: Effect-based Cap (mg/kg) | LW7: Acute Cap (mg/kg) | LX7: Effect-based Cap (mg/kg) | LY7: Acute Cap (mg/kg) | LZ7: Note | MA7: Effect-based Cap (mg/kg) | MB7: Effect-based Cap (mg/kg) | MC7: Effect-based Cap (mg/kg) | MD7: (mg/kg) | ME7: (mg/kg) | MF7: (mg/kg) | MH7: HH Inhal. Driver | MI7: Effect-based Cap (mg/kg) | MJ7: Acute Cap (mg/kg) | MK7: Effect-based Cap (mg/kg) | ML7: Acute Cap (mg/kg) | MM7: Effect-based Cap (mg/kg) | MN7: Acute Cap (mg/kg) | MO7: Effect-based Cap (mg/kg) | MP7: Acute Cap (mg/kg) | MQ7: Note | MR7: Effect-based Cap (mg/kg) | MS7: Effect-based Cap (mg/kg) | MT7: Effect-based Cap (mg/kg) | MU7: (mg/kg) | MV7: (mg/kg) | MW7: (mg/kg)
... 8 more rows

Sheet BRAT Background_BF (hidden)
A1: Background: Caculations
A2: CHEMICAL NAME | H2: Soil MOE RL (mg/kg) | I2: Table 1 Background Site Condition Standards - Soil - Agr mg/kg | J2: Unadjusted Background Site Condition Standards - Soil -All Other mg/kg | K2: Table 1 Background Site Condition Standards - Soil -All Other mg/kg | M2: Table F Background Soil (Agr.) ug/g | N2: Table F Background Soil (other land uses) ug/g | O2: 97.5 percentile of DWSP groundwater data (ug/L) | P2: 97.5 percentile of PGMIS groundwater data (ug/L) | Q2: Groundwater Background From PGMIS and DWSP data (ug/L) | R2: Background (BG) or Lowest of Effect-based Values (Adjusted to RLs, as applicable) | S2: PWQO ug/L | T2: Minimum of Effects Numbers (potable) ug/L | U2: Minimum of Effects Numbers (non-potable) ug/L | V2: Shallow GW Leachate Standard Potable (ug/L) | W2: Shallow GW Leachate Standard Non-Potable (ug/L)
B3: OTR98 Value | C3: CV | D3: OTR98 rural + 2sd | E3: OTR98 Value | F3: CV | G3: OTR98 urban + 2sd | S3: PWQO
B4: Rural | C4: @ | E4: Urban | F4: @ | S4: ug/L
B5: mg/kg | C5: OTR98 | E5: mg/kg | F5: OTR98
C6: rural | F6: urban
... 8 more rows

Sheet BRAT Primary Tables_Soil (hidden)
A1: BRAT Primary Tables_Soil
A2: TABLE 1: Full Depth Background Site Condition Standards | F2: TABLE 2: Full Depth Excess Soil Reuse Standards in a Potable Ground Water Condition | N2: TABLE 2: Full Depth Excess Soil Reuse Standards in a Potable Ground Water Condition | V2: TABLE 3: Full Depth Excess Soil Reuse Standards in a Non-potable Ground Water Condition | AD2: TABLE 3: Full Depth Excess Soil Reuse Standards in a Non-potable Ground Water Condition | AL2: TABLE 4: Stratified Excess Soil Reuse Standards in a Potable Ground Water Condition | AV2: TABLE 4: Stratified Excess Soil Reuse Standards in a Potable Ground Water Condition | BF2: TABLE 5: Stratified Excess Soil Reuse Standards in A Non-Potable Ground Water Condition | BP2: TABLE 5: Stratified Excess Soil Reuse Standards in A Non-Potable Ground Water Condition | BZ2: TABLE 6: Full Depth Excess Soil Reuse Standards for Shallow Soils in A Potable Ground Water Condition | CH2: TABLE 6: Full Depth Excess Soil Reuse Standards for Shallow Soils in A Potable Ground Water Condition | CP2: TABLE 7: Full Depth Excess Soil Reuse Standards for Shallow Soils in A Non-Potable Ground Water Condition | CX2: TABLE 7: Full Depth Excess Soil Reuse Standards for Shallow Soils in A Non-Potable Ground Water Condition | DF2: TABLE 8: Full Depth Excess Soil Reuse Standards for Use within 30 m of A Water Bodyin A Potable Ground Water Condition | DN2: TABLE 8: Full Depth Excess Soil Reuse Standards for Use within 30 m of A Water Bodyin A Potable Ground Water Condition | DV2: TABLE 9: Full Depth Excess Soil Reuse Standards for Use within 30 m of A Water Body in A Non-Potable Ground Water Condition | ED2: TABLE 9: Full Depth Excess Soil Reuse Standards for Use within 30 m of a Water Body in a Non-potable Ground Water Condition | EP2: TABLE 10: Full Depth Excess Soil Reuse Standards for Shallow Soils within 30 of a Water Body in a Potable Ground Water Condition | EX2: TABLE 10: Full Depth Excess Soil Reuse Standards for Shallow Soils within 30 of a Water Body in a Potable Ground Water Condition | FF2: TABLE 11: Full Depth Excess Soil Reuse Standards for Shallow Soil within 30 of a Water Body in a Non-Potable Ground Water Condition | FN2: TABLE 11: Full Depth Excess Soil Reuse Standards for Shallow Soils within 30 M of a Water Body in a Non-potable Ground Water Condition | FW2: Conparison Tables
F3: ='BRAT Output'!$G$25 ->  | N3: ='BRAT Output'!$G$25 ->  | V3: ='BRAT Output'!$G$25 ->  | AD3: ='BRAT Output'!$G$25 ->  | AL3: ='BRAT Output'!$G$25 ->  | AV3: ='BRAT Output'!$G$25 ->  | BF3: ='BRAT Output'!$G$25 ->  | BP3: ='BRAT Output'!$G$25 ->  | BZ3: ='BRAT Output'!$G$25 ->  | CH3: ='BRAT Output'!$G$25 ->  | CP3: Coarse Textured Soils | CS3: ='BRAT Output'!$G$25 ->  | CX3: ='BRAT Output'!$G$25 ->  | DF3: ='BRAT Output'!$G$25 ->  | DN3: ='BRAT Output'!$G$25 ->  | DV3: ='BRAT Output'!$G$25 ->  | ED3: ='BRAT Output'!$G$25 ->  | EP3: ='BRAT Output'!$G$25 ->  | EX3: ='BRAT Output'!$G$25 ->  | FF3: ='BRAT Output'!$G$25 ->  | FN3: ='BRAT Output'!$G$25 -> 
A4: Table 1 | B4: Soil Standards | D4: Sediment | F4: Table 2a | I4: Soil Standards | N4: Table 2b | Q4: Soil Standards | V4: Table3a | Z4: Soil Standards | AD4: Table3b | AH4: Soil Standards | AL4: Table 4a | AO4: Soil Standards | AV4: Table 4b | AY4: Soil Standards | BF4: Table 5a | BI4: Soil Standards | BP4: Table 5b | BS4: Soil Standards | BZ4: Table 6a | CC4: Soil Standards | CH4: Table 6b | CK4: Soil Standards | CP4: Table7a | CT4: Soil Standards | CX4: Table7b | DB4: Soil Standards | DF4: Table 8a | DI4: Soil Standards | DN4: Table 8b | DQ4: Soil Standards | DV4: Table 9a | DZ4: Soil Standards | ED4: Table 9b | EH4: Soil Standards | EL4: All Soil Values Rounded to | EP4: Table 10a | ES4: Soil Standards | EX4: Table 10b | FA4: Soil Standards | FF4: TABLE 11a | FJ4: Soil Standards | FN4: TABLE 11b | FR4: Soil Standards | FX4: Table 8/Table 1 | GA4: Table 9/Table 1 | GC4: Table 10/Table 1 | GF4: Table 11/Table 1
B5: µg/g | D5: µg/g | F5: Coarse Textured Soils | I5: µg/g | N5: Medium and Fine Soils | Q5: µg/g | V5: Coarse Textured Soils | Z5: µg/g | AD5: Medium and Fine Soils | AH5: µg/g | AL5: Coarse Textured Soils | AO5: µg/g | AV5: Medium and Fine Soils | AY5: µg/g | BF5: Coarse Textured Soils | BI5: µg/g | BP5: Medium and Fine Soils | BS5: µg/g | BZ5: Coarse Textured Soils | CC5: µg/g | CH5: Medium and Fine Soils | CK5: µg/g | CP5: Coarse Textured Soils | CT5: µg/g | CX5: Medium and Fine Soils | DB5: µg/g | DF5: Coarse Textured Soils | DI5: µg/g | DN5: Medium and Fine Textured Soils | DQ5: µg/g | DV5: Coarse Textured Soils | DZ5: µg/g | ED5: Medium and Fine Textured Soils | EH5: µg/g | EL5: 6 | EM5: Significant Digits | EP5: Coarse Textured Soils | ES5: µg/g | EX5: Medium and Fine Textured Soils | FA5: µg/g | FF5: Coarse Textured Soils | FJ5: µg/g | FN5: Medium and Fine Textured Soils | FR5: µg/g | FX5: potable/coarse | GA5: non-potable/coarse | GC5: potable/coarse | GF5: non-potable/coarse
A6: Contaminant | B6: Agricultural or Other | C6: Residential/ Parkland/Institutional/ Industrial/Commercial/ Community Property Use | D6: All | F6: Contaminant | G6: Agricultural or Other | I6: Residential/ Parkland/Institutional | K6: Industrial/ Commercial/Community | N6: Contaminant | O6: Agricultural or Other | Q6: Residential/ Parkland/Institutional | S6: Industrial/ Commercial/Community | V6: Contaminant | Y6: Residential/ Parkland/Institutional | AA6: Industrial/ Commercial/Community | AD6: Contaminant | AG6: Residential/ Parkland/Institutional | AI6: Industrial/ Commercial/Community | AL6: Contaminant | AM6: Residential/ Parkland/Institutional Property Use | AQ6: Industrial/ Commercial/Community Property Use | AV6: Contaminant | AW6: Residential/ Parkland/Institutional Property Use | BA6: Industrial/ Commercial/Community Property Use | BF6: Contaminant | BG6: Residential/ Parkland/Institutional Property Use | BK6: Industrial/ Commercial/Community Property Use | BP6: Contaminant | BQ6: Residential/ Parkland/Institutional Property Use | BU6: Industrial/ Commercial/Community Property Use | BZ6: Contaminant | CA6: Agricultural or Other | CC6: Residential/ Parkland/Institutional | CE6: Industrial/ Commercial/Community | CH6: Contaminant | CI6: Agricultural or Other | CK6: Residential/ Parkland/Institutional | CM6: Industrial/ Commercial/Community | CP6: Contaminant | CS6: Residential/ Parkland/Institutional | CU6: Industrial/ Commercial/Community | CX6: Contaminant | DA6: Residential/ Parkland/Institutional | DC6: Industrial/ Commercial/Community | DF6: Contaminant | DG6: Agricultural or Other | DI6: Residential/ Parkland/Institutional/ | DK6: Industrial/Commercial/ Community Property Use | DN6: Contaminant | DO6: Agricultural or Other | DQ6: Residential/ Parkland/Institutional/ | DS6: Industrial/Commercial/ Community Property Use | DV6: Contaminant | DY6: Residential/ Parkland/Institutional/ | EA6: Industrial/Commercial/ Community Property Use | ED6: Contaminant | EG6: Residential/ Parkland/Institutional/ | EI6: Industrial/Commercial/ Community Property Use | EP6: Contaminant | EQ6: Agricultural or Other | ES6: Residential/ Parkland/Institutional/ | EU6: Industrial/Commercial/ Community | EX6: Contaminant | EY6: Agricultural or Other | FA6: Residential/ Parkland/Institutional/ | FC6: Industrial/Commercial/ Community | FF6: Contaminant | FI6: Residential/ Parkland/Institutional/ | FK6: Industrial/Commercial/ Community | FN6: Contaminant | FQ6: Residential/ Parkland/Institutional/ | FS6: Industrial/Commercial/ Community | FW6: Contaminant | FX6: Soil | FY6: Soil | FZ6: Soil | GA6: Soil | GB6: Soil | GC6: Soil | GD6: Soil | GE6: Soil | GF6: Soil | GG6: Soil
B7: Property Use | D7: Property Use | G7: Property Use | I7: Property Use | K7: Property Use | O7: Property Use | Q7: Property Use | S7: Property Use | Y7: Property Use | AA7: Property Use | AG7: Property Use | AI7: Property Use | AM7: Surface Soil | AO7: Subsurface Soil | AQ7: Surface Soil | AS7: Subsurface Soil | AW7: Surface Soil | AY7: Subsurface Soil | BA7: Surface Soil | BC7: Subsurface Soil | BG7: Surface Soil | BI7: Subsurface Soil | BK7: Surface Soil | BM7: Subsurface Soil | BQ7: Surface Soil | BS7: Subsurface Soil | BU7: Surface Soil | BW7: Subsurface Soil | CA7: Property Use | CC7: Property Use | CE7: Property Use | CI7: Property Use | CK7: Property Use | CM7: Property Use | CS7: Property Use | CU7: Property Use | DA7: Property Use | DC7: Property Use | DG7: Property Use | DI7: Property Use | DK7: Property Use | DO7: Property Use | DQ7: Property Use | DS7: Property Use | DY7: Property Use | EA7: Property Use | EG7: Property Use | EI7: Property Use | EQ7: Property Use | ES7: Property Use | EU7: Property Use | EY7: Property Use | FA7: Property Use | FC7: Property Use | FI7: Property Use | FK7: Property Use | FQ7: Property Use | FS7: Property Use | FX7: Ag | FY7: RPI | FZ7: ICC | GA7: RPI | GB7: ICC | GC7: Ag | GD7: RPI | GE7: ICC | GF7: RPI | GG7: ICC
... 7 more rows

Sheet BRATVI_Generic (hidden)
A1: BRAT_VI_GENERIC
A2: TABLE 1: Full Depth Background Site Condition Standards | F2: TABLE 2: Full Depth Excess Soil Reuse Standards in a Potable Ground Water Condition | N2: TABLE 2: Full Depth Excess Soil Reuse Standards in a Potable Ground Water Condition | V2: TABLE 3: Full Depth Excess Soil Reuse Standards in a Non-potable Ground Water Condition | AD2: TABLE 3: Full Depth Excess Soil Reuse Standards in a Non-potable Ground Water Condition | AL2: TABLE 4: Stratified Excess Soil Reuse Standards in a Potable Ground Water Condition | AV2: TABLE 4: Stratified Excess Soil Reuse Standards in a Potable Ground Water Condition | BF2: TABLE 5: Stratified Excess Soil Reuse Standards in A Non-Potable Ground Water Condition | BP2: TABLE 5: Stratified Excess Soil Reuse Standards in A Non-Potable Ground Water Condition | BZ2: TABLE 6: Full Depth Excess Soil Reuse Standards for Shallow Soils in A Potable Ground Water Condition | CH2: TABLE 6: Full Depth Excess Soil Reuse Standards for Shallow Soils in A Potable Ground Water Condition | CP2: TABLE 7: Full Depth Excess Soil Reuse Standards for Shallow Soils in A Non-Potable Ground Water Condition | CX2: TABLE 7: Full Depth Excess Soil Reuse Standards for Shallow Soils in A Non-Potable Ground Water Condition | DF2: TABLE 8: Full Depth Excess Soil Reuse Standards for Use within 30 m of A Water Bodyin A Potable Ground Water Condition | DN2: TABLE 8: Full Depth Excess Soil Reuse Standards for Use within 30 m of A Water Bodyin A Potable Ground Water Condition | DV2: TABLE 9: Full Depth Excess Soil Reuse Standards for Use within 30 m of A Water Body in A Non-Potable Ground Water Condition | ED2: TABLE 9: Full Depth Excess Soil Reuse Standards for Use within 30 m of a Water Body in a Non-potable Ground Water Condition | EP2: TABLE 10: Full Depth Excess Soil Reuse Standards for Shallow Soils within 30 of a Water Body in a Potable Ground Water Condition | EX2: TABLE 10: Full Depth Excess Soil Reuse Standards for Shallow Soils within 30 of a Water Body in a Potable Ground Water Condition | FF2: TABLE 11: Full Depth Excess Soil Reuse Standards for Shallow Soil within 30 of a Water Body in a Non-Potable Ground Water Condition | FN2: TABLE 11: Full Depth Excess Soil Reuse Standards for Shallow Soils within 30 M of a Water Body in a Non-potable Ground Water Condition | FW2: Conparison Tables
F3: Volume Independent | N3: Volume Independent | V3: Volume Independent | AD3: Volume Independent | AL3: Volume Independent | AV3: Volume Independent | BF3: Volume Independent | BP3: Volume Independent | BZ3: Volume Independent | CH3: Volume Independent | CP3: Coarse Textured Soils | CS3: Volume Independent | CX3: Volume Independent | DF3: Volume Independent | DN3: Volume Independent | DV3: Volume Independent | ED3: Volume Independent | EP3: Volume Independent | EX3: Volume Independent | FF3: Volume Independent | FN3: Volume Independent
A4: Table 1 | B4: Soil Standards | D4: Sediment | F4: Table 2a | I4: Soil Standards | N4: Table 2b | Q4: Soil Standards | V4: Table3a | Z4: Soil Standards | AD4: Table3b | AH4: Soil Standards | AL4: Table 4a | AO4: Soil Standards | AV4: Table 4b | AY4: Soil Standards | BF4: Table 5a | BI4: Soil Standards | BP4: Table 5b | BS4: Soil Standards | BZ4: Table 6a | CC4: Soil Standards | CH4: Table 6b | CK4: Soil Standards | CP4: Table7a | CT4: Soil Standards | CX4: Table7b | DB4: Soil Standards | DF4: Table 8a | DI4: Soil Standards | DN4: Table 8b | DQ4: Soil Standards | DV4: Table 9a | DZ4: Soil Standards | ED4: Table 9b | EH4: Soil Standards | EL4: All Soil Values Rounded to | EP4: Table 10a | ES4: Soil Standards | EX4: Table 10b | FA4: Soil Standards | FF4: TABLE 11a | FJ4: Soil Standards | FN4: TABLE 11b | FR4: Soil Standards | FX4: Table 8/Table 1 | GA4: Table 9/Table 1 | GC4: Table 10/Table 1 | GF4: Table 11/Table 1
B5: µg/g | D5: µg/g | F5: Coarse Textured Soils | I5: µg/g | N5: Medium and Fine Soils | Q5: µg/g | V5: Coarse Textured Soils | Z5: µg/g | AD5: Medium and Fine Soils | AH5: µg/g | AL5: Coarse Textured Soils | AO5: µg/g | AV5: Medium and Fine Soils | AY5: µg/g | BF5: Coarse Textured Soils | BI5: µg/g | BP5: Medium and Fine Soils | BS5: µg/g | BZ5: Coarse Textured Soils | CC5: µg/g | CH5: Medium and Fine Soils | CK5: µg/g | CP5: Coarse Textured Soils | CT5: µg/g | CX5: Medium and Fine Soils | DB5: µg/g | DF5: Coarse Textured Soils | DI5: µg/g | DN5: Medium and Fine Textured Soils | DQ5: µg/g | DV5: Coarse Textured Soils | DZ5: µg/g | ED5: Medium and Fine Textured Soils | EH5: µg/g | EL5: 6 | EM5: Significant Digits | EP5: Coarse Textured Soils | ES5: µg/g | EX5: Medium and Fine Textured Soils | FA5: µg/g | FF5: Coarse Textured Soils | FJ5: µg/g | FN5: Medium and Fine Textured Soils | FR5: µg/g | FX5: potable/coarse | GA5: non-potable/coarse | GC5: potable/coarse | GF5: non-potable/coarse
A6: Contaminant | B6: Agricultural or Other | C6: Residential/ Parkland/Institutional/ Industrial/Commercial/ Community Property Use | D6: All | F6: Contaminant | G6: Agricultural or Other | I6: Residential/ Parkland/Institutional | K6: Industrial/ Commercial/Community | N6: Contaminant | O6: Agricultural or Other | Q6: Residential/ Parkland/Institutional | S6: Industrial/ Commercial/Community | V6: Contaminant | Y6: Residential/ Parkland/Institutional | AA6: Industrial/ Commercial/Community | AD6: Contaminant | AG6: Residential/ Parkland/Institutional | AI6: Industrial/ Commercial/Community | AL6: Contaminant | AM6: Residential/ Parkland/Institutional Property Use | AQ6: Industrial/ Commercial/Community Property Use | AV6: Contaminant | AW6: Residential/ Parkland/Institutional Property Use | BA6: Industrial/ Commercial/Community Property Use | BF6: Contaminant | BG6: Residential/ Parkland/Institutional Property Use | BK6: Industrial/ Commercial/Community Property Use | BP6: Contaminant | BQ6: Residential/ Parkland/Institutional Property Use | BU6: Industrial/ Commercial/Community Property Use | BZ6: Contaminant | CA6: Agricultural or Other | CC6: Residential/ Parkland/Institutional | CE6: Industrial/ Commercial/Community | CH6: Contaminant | CI6: Agricultural or Other | CK6: Residential/ Parkland/Institutional | CM6: Industrial/ Commercial/Community | CP6: Contaminant | CS6: Residential/ Parkland/Institutional | CU6: Industrial/ Commercial/Community | CX6: Contaminant | DA6: Residential/ Parkland/Institutional | DC6: Industrial/ Commercial/Community | DF6: Contaminant | DG6: Agricultural or Other | DI6: Residential/ Parkland/Institutional/ | DK6: Industrial/Commercial/ Community Property Use | DN6: Contaminant | DO6: Agricultural or Other | DQ6: Residential/ Parkland/Institutional/ | DS6: Industrial/Commercial/ Community Property Use | DV6: Contaminant | DY6: Residential/ Parkland/Institutional/ | EA6: Industrial/Commercial/ Community Property Use | ED6: Contaminant | EG6: Residential/ Parkland/Institutional/ | EI6: Industrial/Commercial/ Community Property Use | EP6: Contaminant | EQ6: Agricultural or Other | ES6: Residential/ Parkland/Institutional/ | EU6: Industrial/Commercial/ Community | EX6: Contaminant | EY6: Agricultural or Other | FA6: Residential/ Parkland/Institutional/ | FC6: Industrial/Commercial/ Community | FF6: Contaminant | FI6: Residential/ Parkland/Institutional/ | FK6: Industrial/Commercial/ Community | FN6: Contaminant | FQ6: Residential/ Parkland/Institutional/ | FS6: Industrial/Commercial/ Community | FW6: Contaminant | FX6: Soil | FY6: Soil | FZ6: Soil | GA6: Soil | GB6: Soil | GC6: Soil | GD6: Soil | GE6: Soil | GF6: Soil | GG6: Soil
B7: Property Use | D7: Property Use | G7: Property Use | I7: Property Use | K7: Property Use | O7: Property Use | Q7: Property Use | S7: Property Use | Y7: Property Use | AA7: Property Use | AG7: Property Use | AI7: Property Use | AM7: Surface Soil | AO7: Subsurface Soil | AQ7: Surface Soil | AS7: Subsurface Soil | AW7: Surface Soil | AY7: Subsurface Soil | BA7: Surface Soil | BC7: Subsurface Soil | BG7: Surface Soil | BI7: Subsurface Soil | BK7: Surface Soil | BM7: Subsurface Soil | BQ7: Surface Soil | BS7: Subsurface Soil | BU7: Surface Soil | BW7: Subsurface Soil | CA7: Property Use | CC7: Property Use | CE7: Property Use | CI7: Property Use | CK7: Property Use | CM7: Property Use | CS7: Property Use | CU7: Property Use | DA7: Property Use | DC7: Property Use | DG7: Property Use | DI7: Property Use | DK7: Property Use | DO7: Property Use | DQ7: Property Use | DS7: Property Use | DY7: Property Use | EA7: Property Use | EG7: Property Use | EI7: Property Use | EQ7: Property Use | ES7: Property Use | EU7: Property Use | EY7: Property Use | FA7: Property Use | FC7: Property Use | FI7: Property Use | FK7: Property Use | FQ7: Property Use | FS7: Property Use | FX7: Ag | FY7: RPI | FZ7: ICC | GA7: RPI | GB7: ICC | GC7: Ag | GD7: RPI | GE7: ICC | GF7: RPI | GG7: ICC
... 7 more rows

Sheet BRAT BF_Primary (hidden)
A2: TABLE 1: Full Depth Background Site Condition Standards | F2: TABLE 2a: Full Depth Generic Site Condition Standards in a Potable Ground Water Condition | N2: TABLE 2b: Full Depth Generic Site Condition Standards in a Potable Ground Water Condition | V2: TABLE 3a: Full Depth Generic Site Condition Standards in a Non-Potable Ground Water Condition | AD2: TABLE 3b: Full Depth Generic Site Condition Standards in a Non-Potable Ground Water Condition | AL2: TABLE 4a: Stratified Site Condition Standards in a Potable Ground Water Condition | AV2: TABLE 4b: Stratified Site Condition Standards in a Potable Ground Water Condition | BF2: TABLE 5a: Stratified Site Condition Standards in a Non-Potable Ground Water Condition | BP2: TABLE 5b: Stratified Site Condition Standards in a Non-Potable Ground Water Condition | BZ2: TABLE 6a: Generic Site Condition Standards for Shallow Soils in a Potable Ground Water Condition | CH2: TABLE 6b: Generic Site Condition Standards for Shallow Soils in a Potable Ground Water Condition | CP2: TABLE 7a: Generic Site Condition Standards for Shallow Soils in a Non-Potable Ground Water Condition | CX2: TABLE 7b: Generic Site Condition Standards for Shallow Soils in a Non-Potable Ground Water Condition | DF2: TABLE 8 - Standards for Use within 30 m of a Water Body in a Potable Ground Water Condition | DN2: TABLE 8 - Standards for Use within 30 m of a Water Body in a Potable Ground Water Condition | DV2: TABLE 9 - Standards for Use within 30 m of a Water Body in a Non-potable Ground Water Condition | ED2: TABLE 9 - Standards for Use within 30 m of a Water Body in a Non-potable Ground Water Condition | EP2: TABLE 10a: Generic Site Condition Standards for Shallow Soils within 30 M of a Water Body in a Potable Ground Water Condition | EX2: TABLE 10b: Generic Site Condition Standards for Shallow Soils within 30 M of a Water Body in a Potable Ground Water Condition | FF2: TABLE 11a: Generic Site Condition Standards for Shallow Soils within 30 M of a Water Body in a Non-potable Ground Water Condition | FN2: TABLE 11b: Generic Site Condition Standards for Shallow Soils within 30 M of a Water Body in a Non-potable Ground Water Condition
F3: Coarse Textured Soils | N3: Medium and Fine Textured Soils | V3: Coarse Textured Soils | AD3: Medium and Fine Textured Soils | AL3: Coarse Textured Soils | AV3: Medium and Fine Textured Soils | BF3: Coarse Textured Soils | BP3: Medium and Fine Textured Soils | BZ3: Coarse Textured Soils | CH3: Medium and Fine Textured Soils | CP3: Coarse Textured Soils | CX3: Medium and Fine Textured Soils | DF3: Coarse Textured Soils | DN3: Medium and Fine Textured Soils | DV3: Coarse Textured Soils | ED3: Medium and Fine Textured Soils | EP3: Coarse Textured Soils | EX3: Medium and Fine Textured Soils | FF3: Coarse Textured Soils | FN3: Medium and Fine Textured Soils
A4: Table 1 | B4: Soil (other than sediment) | E4: Sediment | F4: Table 2a | I4: Soil Standards (other than sediment) | N4: Table 2b | Q4: Soil Standards (other than sediment) | V4: Table 3a | Y4: Soil Standards (other than sediment) | AD4: Table3b | AG4: Soil Standards (other than sediment) | AL4: Table 4a | AO4: Soil Standards (other than sediment) | AV4: Table 4b | AY4: Soil Standards (other than sediment) | BF4: Table 5a | BI4: Soil Standards (other than sediment) | BP4: Table 5b | BS4: Soil Standards (other than sediment) | BZ4: Table 6a | CC4: Soil Standards (other than sediment) | CH4: Table 6b | CK4: Soil Standards (other than sediment) | CP4: Table 7a | CS4: Soil Standards (other than sediment) | CX4: Table7b | DA4: Soil Standards (other than sediment) | DF4: Table 8a | DG4: Soil Standards (other than sediment) | DN4: Table 8b | DO4: Soil Standards (other than sediment) | DV4: Table 9a | DY4: Soil Standards (other than sediment) | EA4: Soil Standards (other than sediment) | ED4: Table 9b | EG4: Soil Standards (other than sediment) | EI4: Soil Standards (other than sediment) | EL4: All Soil and Groundwater Values Rounded to | EP4: Table 10a | EQ4: Soil Standards (other than sediment) | EX4: Table 10b | EY4: Soil Standards (other than sediment) | FF4: Table 11a | FI4: Soil Standards (other than sediment) | FK4: Soil Standards (other than sediment) | FN4: Table 11b | FQ4: Soil Standards (other than sediment) | FS4: Soil Standards (other than sediment)
B5: µ/g | E5: (µg/g) | F5: Coarse Textured Soils | I5: µg/g | N5: Medium and Fine Soils | Q5: µg/g | V5: Coarse Textured Soils | Y5: µg/g | AD5: Medium and Fine Soils | AG5: µg/g | AO5: µg/g | AV5: Medium and Fine Soils | AY5: µg/g | BF5: Coarse Textured Soils | BI5: µg/g | BP5: Medium and Fine Soils | BS5: µg/g | BZ5: Coarse Textured Soils | CC5: µg/g | CH5: Medium and Fine Soils | CK5: µg/g | CP5: Coarse Textured Soils | CS5: µg/g | CX5: Medium and Fine Soils | DA5: µg/g | DG5: µg/g | DO5: µg/g | DY5: µg/g | EA5: µg/g | EG5: µg/g | EI5: µg/g | EL5: 2 | EM5: Significant Digits | EQ5: µg/g | EY5: µg/g | FI5: µg/g | FK5: µg/g | FQ5: µg/g | FS5: µg/g
A6: Contaminant | B6: Agricultural or Other | C6: Residential/ Parkland/Institutional/ Industrial/Commercial/ Community Property Use | E6: All Types of | F6: Contaminant | G6: Agricultural or Other | I6: Residential/ Parkland/Institutional | K6: Industrial/ Commercial/Community | N6: Contaminant | O6: Agricultural or Other | Q6: Residential/ Parkland/Institutional | S6: Industrial/ Commercial/Community | V6: Contaminant | Y6: Residential/ Parkland/Institutional | AA6: Industrial/ Commercial/Community | AD6: Contaminant | AG6: Residential/ Parkland/Institutional | AI6: Industrial/ Commercial/Community | AL6: Contaminant | AM6: Residential/ Parkland/Institutional Property Use | AQ6: Industrial/ Commercial/Community Property Use | AV6: Contaminant | AW6: Residential/ Parkland/Institutional Property Use | BA6: Industrial/ Commercial/Community Property Use | BF6: Contaminant | BG6: Residential/ Parkland/Institutional Property Use | BK6: Industrial/ Commercial/Community Property Use | BP6: Contaminant | BQ6: Residential/ Parkland/Institutional Property Use | BU6: Industrial/ Commercial/Community Property Use | BZ6: Contaminant | CA6: Agricultural or Other | CC6: Residential/ Parkland/Institutional | CE6: Industrial/ Commercial/Community | CH6: Contaminant | CI6: Agricultural or Other | CK6: Residential/ Parkland/Institutional | CM6: Industrial/ Commercial/Community | CP6: Contaminant | CS6: Residential/ Parkland/Institutional | CU6: Industrial/ Commercial/Community | CX6: Contaminant | DA6: Residential/ Parkland/Institutional | DC6: Industrial/ Commercial/Community | DF6: Contaminant | DG6: Agricultural or Other Property Use | DI6: Residential/ Parkland/Institutional/ Industrial/Commercial/ Community Property Use | DK6: Residential/ Parkland/Institutional/ Industrial/Commercial/ Community Property Use | DN6: Contaminant | DO6: Agricultural or Other Property Use | DQ6: Residential/ Parkland/Institutional/ Industrial/Commercial/ Community Property Use | DS6: Residential/ Parkland/Institutional/ Industrial/Commercial/ Community Property Use | DV6: Contaminant | DY6: Residential/ Parkland/Institutional/ Industrial/Commercial/ Community Property Use | EA6: Residential/ Parkland/Institutional/ Industrial/Commercial/ Community Property Use | ED6: Contaminant | EG6: Residential/ Parkland/Institutional/ Industrial/Commercial/ Community Property Use | EI6: Residential/ Parkland/Institutional/ Industrial/Commercial/ Community Property Use | EP6: Contaminant | EQ6: Agricultural or Other Property Use | ES6: Residential/ Parkland/Institutional/ Industrial/Commercial/ Community Property Use | EU6: Residential/ Parkland/Institutional/ Industrial/Commercial/ Community Property Use | EX6: Contaminant | EY6: Agricultural or Other Property Use | FA6: Residential/ Parkland/Institutional/ Industrial/Commercial/ Community Property Use | FC6: Residential/ Parkland/Institutional/ Industrial/Commercial/ Community Property Use | FF6: Contaminant | FI6: Residential/ Parkland/Institutional/ Industrial/Commercial/ Community Property Use | FK6: Residential/ Parkland/Institutional/ Industrial/Commercial/ Community Property Use | FN6: Contaminant | FQ6: Residential/ Parkland/Institutional/ Industrial/Commercial/ Community Property Use | FS6: Residential/ Parkland/Institutional/ Industrial/Commercial/ Community Property Use
B7: Property Use | E7: Property Uses | G7: Property Use | I7: Property Use | K7: Property Use | O7: Property Use | Q7: Property Use | S7: Property Use | Y7: Property Use | AA7: Property Use | AG7: Property Use | AI7: Property Use | AM7: Surface Soil | AO7: Subsurface Soil | AQ7: Surface Soil | AS7: Subsurface Soil | AW7: Surface Soil | AY7: Subsurface Soil | BA7: Surface Soil | BC7: Subsurface Soil | BG7: Surface Soil | BI7: Subsurface Soil | BK7: Surface Soil | BM7: Subsurface Soil | BQ7: Surface Soil | BS7: Subsurface Soil | BU7: Surface Soil | BW7: Subsurface Soil | CA7: Property Use | CC7: Property Use | CE7: Property Use | CI7: Property Use | CK7: Property Use | CM7: Property Use | CS7: Property Use | CU7: Property Use | DA7: Property Use | DC7: Property Use
... 8 more rows

Sheet BRAT Primary Tables_Leachate (hidden)
A1: BRAT Primary Tables:_Leachate Standards
A2: TABLE 2: Leachate Screening Levels for Full Depth Excess Soil in A Potable Ground Water Condition | I2: TABLE 2: Leachate Screening Levels for Full Depth Excess Soil in A Potable Ground Water Condition | Q2: TABLE 3: Leachate Screening Levels for Full Depth Excess Soil in a Non-Potable Ground Water Condition | Y2: TABLE 3: Leachate Standards for Full Depth Excess Soil in a Non-Potable Ground Water Condition | AG2: TABLE 4: Leachate Screening Levels for Stratified Excess Soil in A Potable Ground Water Condition | AQ2: TABLE 4: Leachate Screening Levels for Stratified Excess Soil in A Potable Ground Water Condition | BA2: TABLE 5: Leachate Screening Levels for Stratified Excess Soil in a Non-Potable Ground Water Condition | BK2: TABLE 5: Leachate Screening Levels for Stratified Excess Soil in a Non-Potable Ground Water Condition | BU2: TABLE 6: Leachate Screening Levels for Full Depth and Shallow Soils in A Potable Ground Water Condition | CC2: TABLE 6: Leachate Screening Levels for Full Depth and Shallow Soils in A Potable Ground Water Condition | CK2: TABLE 7: Leachate Screening Levels for Full Depth and Shallow Soils in A Non-Potable Ground Water Condition | CS2: TABLE 7: Leachate Screening Levels for for Full Depth and Shallow Soils in A Non-Potable Ground Water Condition | DA2: TABLE 8: Leachate Screening Levels for Full Depth Excess Soil for Use within 30 m of A Water Body in A Potable Ground Water Condition | DI2: TABLE 8: Leachate Screening Levels for Full Depth Excess Soil for Use within 30 m of A Water Body in A Potable Ground Water Condition | DQ2: TABLE 9: Leachate Screening Levels for Full Depth Excess Soil for Use within 30 m of A Water Body in A Non-potable Ground Water Condition | DY2: TABLE 9: Leachate Screening Levels for Full Depth Excess Soil for Use within 30 m of A Water Body in A Non-potable Ground Water Condition | EK2: TABLE 10: Leachate Screening Levels for Full Depth and Shallow Soils within 30 M of a Water Body in A Potable Ground Water Condition | ES2: TABLE 10: Leachate Screening Levels for Full Depth and Shallow Soils within 30 M of a Water Body in A Potable Ground Water Condition | FA2: TABLE 11: Leachate Screening Levels for Full Depth and Shallow Soils within 30 M of a Water Body in A Non-potable Ground Water Condition | FI2: TABLE 11: Leachate Screening Levels for Full Depth and Shallow Soils within 30 M of a Water Body in A Non-potable Ground Water Condition
A3: ='BRAT Output'!$G$25 ->  | I3: ='BRAT Output'!$G$25 ->  | Q3: ='BRAT Output'!$G$25 ->  | Y3: ='BRAT Output'!$G$25 ->  | AG3: ='BRAT Output'!$G$25 ->  | AQ3: ='BRAT Output'!$G$25 ->  | BA3: ='BRAT Output'!$G$25 ->  | BK3: ='BRAT Output'!$G$25 ->  | BU3: ='BRAT Output'!$G$25 ->  | CC3: ='BRAT Output'!$G$25 ->  | CK3: ='BRAT Output'!$G$25 ->  | CS3: ='BRAT Output'!$G$25 ->  | DA3: ='BRAT Output'!$G$25 ->  | DI3: ='BRAT Output'!$G$25 ->  | DQ3: ='BRAT Output'!$G$25 ->  | DY3: ='BRAT Output'!$G$25 ->  | EK3: ='BRAT Output'!$G$25 ->  | ES3: ='BRAT Output'!$G$25 ->  | FA3: ='BRAT Output'!$G$25 ->  | FI3: ='BRAT Output'!$G$25 -> 
A4: Table 2b_Leachate | D4: Leachate Screening Levels | I4: Table 2b_Leachate | L4: Leachate Standards | Q4: Table3a_Leachate | U4: Leachate Screening Levels | Y4: Table3b_Leachate | AC4: Leachate Standards | AG4: Table 4a_Leachate | AJ4: Leachate Screening Levels | AQ4: Table 4b_Leachate | AT4: Leachate Standards | BA4: Table 5a_Leachate | BD4: Leachate Screening Levels | BK4: Table 5b_Leachate | BN4: Leachate Standards | BU4: Table 6a_Leachate | BX4: Leachate Screening Levels | CC4: Table 6b_Leachate | CF4: Leachate Standards | CK4: Table7a_Leachate | CO4: Leachate Screening Levels | CS4: Table7b_Leachate | CW4: Leachate Standards | DA4: Table 8a_Leachate | DD4: Leachate Screening Levels | DI4: Table 8b_Leachate | DL4: Leachate Standards | DQ4: Table 9a_Leachate | DU4: Leachate Screening Levels | DY4: Table 9b_Leachate | EC4: Leachate Standards | EG4: All Soil Values Rounded to | EK4: Table 10a_Leachate | EN4: Leachate Screening Levels | ES4: Table 10b_Leachate | EU4: Leachate Standards | FA4: Table 11a_Leachate | FE4: Leachate Screening Levels | FI4: Table 11b_Leachate | FM4: Leachate Standards
A5: Coarse Textured Soils | D5: µg/L | I5: Medium and Fine Soils | L5: µg/L | Q5: Coarse Textured Soils | U5: µg/L | Y5: Medium and Fine Soils | AC5: µg/L | AG5: Coarse Textured Soils | AJ5: µg/L | AQ5: Medium and Fine Soils | AT5: µg/L | BA5: Coarse Textured Soils | BD5: µg/L | BK5: Medium and Fine Soils | BN5: µg/L | BU5: Coarse Textured Soils | BX5: µg/L | CC5: Medium and Fine Soils | CF5: µg/L | CK5: Coarse Textured Soils | CO5: µg/L | CS5: Medium and Fine Soils | CW5: µg/L | DA5: Coarse Textured Soils | DD5: µg/L | DI5: Medium and Fine Soils | DL5: µg/L | DQ5: Coarse Textured Soils | DU5: µg/L | DY5: Medium and Fine Soils | EC5: µg/L | EG5: 2 | EH5: Significant Digits | EK5: Coarse Textured Soils | EN5: µg/L | ES5: Medium and Fine Soils | EU5: µg/L | FA5: Coarse Textured Soils | FE5: µg/L | FI5: Medium and Fine Soils | FM5: µg/L
A6: Contaminant | B6: Agricultural or Other | D6: Residential/ Parkland/Institutional | F6: Industrial/ Commercial/Community | I6: Contaminant | J6: Agricultural or Other | L6: Residential/ Parkland/Institutional | N6: Industrial/ Commercial/Community | Q6: Contaminant | T6: Residential/ Parkland/Institutional | V6: Industrial/ Commercial/Community | Y6: Contaminant | AB6: Residential/ Parkland/Institutional | AD6: Industrial/ Commercial/Community | AG6: Contaminant | AH6: Residential/ Parkland/Institutional Property Use | AL6: Industrial/ Commercial/Community Property Use | AQ6: Contaminant | AR6: Residential/ Parkland/Institutional Property Use | AV6: Industrial/ Commercial/Community Property Use | BA6: Contaminant | BB6: Residential/ Parkland/Institutional Property Use | BF6: Industrial/ Commercial/Community Property Use | BK6: Contaminant | BL6: Residential/ Parkland/Institutional Property Use | BP6: Industrial/ Commercial/Community Property Use | BU6: Contaminant | BV6: Agricultural or Other | BX6: Residential/ Parkland/Institutional | BZ6: Industrial/ Commercial/Community | CC6: Contaminant | CD6: Agricultural or Other | CF6: Residential/ Parkland/Institutional | CH6: Industrial/ Commercial/Community | CK6: Contaminant | CN6: Residential/ Parkland/Institutional | CP6: Industrial/ Commercial/Community | CS6: Contaminant | CV6: Residential/ Parkland/Institutional | CX6: Industrial/ Commercial/Community | DA6: Contaminant | DB6: Agricultural or Other | DD6: Residential/ Parkland/Institutional/ | DF6: Industrial/Commercial/ Community Property Use | DI6: Contaminant | DJ6: Agricultural or Other | DL6: Residential/ Parkland/Institutional/ | DN6: Industrial/Commercial/ Community Property Use | DQ6: Contaminant | DT6: Residential/ Parkland/Institutional/ | DV6: Industrial/Commercial/ Community Property Use | DY6: Contaminant | EB6: Residential/ Parkland/Institutional/ | ED6: Industrial/Commercial/ Community Property Use | EK6: Contaminant | EL6: Agricultural or Other | EN6: Residential/ Parkland/Institutional/ | EP6: Industrial/Commercial/ Community | ES6: Contaminant | ET6: Agricultural or Other | EV6: Residential/ Parkland/Institutional/ | EX6: Industrial/Commercial/ Community | FA6: Contaminant | FD6: Residential/ Parkland/Institutional/ | FF6: Industrial/Commercial/ Community | FI6: Contaminant | FL6: Residential/ Parkland/Institutional/ | FN6: Industrial/Commercial/ Community
B7: Property Use | D7: Property Use | F7: Property Use | J7: Property Use | L7: Property Use | N7: Property Use | T7: Property Use | V7: Property Use | AB7: Property Use | AD7: Property Use | AH7: Surface Soil | AJ7: Subsurface Soil | AL7: Surface Soil | AN7: Subsurface Soil | AR7: Surface Soil | AT7: Subsurface Soil | AV7: Surface Soil | AX7: Subsurface Soil | BB7: Surface Soil | BD7: Subsurface Soil | BF7: Surface Soil | BH7: Subsurface Soil | BL7: Surface Soil | BN7: Subsurface Soil | BP7: Surface Soil | BR7: Subsurface Soil | BV7: Property Use | BX7: Property Use | BZ7: Property Use | CD7: Property Use | CF7: Property Use | CH7: Property Use | CN7: Property Use | CP7: Property Use | CV7: Property Use | CX7: Property Use | DB7: Property Use | DD7: Property Use | DF7: Property Use | DJ7: Property Use | DL7: Property Use | DN7: Property Use | DT7: Property Use | DV7: Property Use | EB7: Property Use | ED7: Property Use | EL7: Property Use | EN7: Property Use | EP7: Property Use | ET7: Property Use | EV7: Property Use | EX7: Property Use | FD7: Property Use | FF7: Property Use | FL7: Property Use | FN7: Property Use
... 7 more rows

Sheet BRAT Primary Tables_Ceiling Val (hidden)
A1: BRAT Primary Tables:_Ceiling Values
A2: TABLE 1: Ceiling Values for Excess Soil Reuse | F2: TABLE 2: Ceiling Values for Full Depth Excess Soil in A Potable Ground Water Condition | N2: TABLE 2: Ceiling Values for Full Depth Excess Soil in A Potable Ground Water Condition | V2: TABLE 3:Ceiling Values for Full Depth Excess Soil in a Non-Potable Ground Water Condition | AE2: TABLE 3: Ceiling Values for Full Depth Excess Soil in a Non-Potable Ground Water Condition | AM2: TABLE 4: Ceiling Values for Stratified Excess Soil in A Potable Ground Water Condition | AW2: TABLE 4: Ceiling Values for Stratified Excess Soil in A Potable Ground Water Condition | BG2: TABLE 5: Ceiling Values for Stratified Excess Soil in a Non-Potable Ground Water Condition | BQ2: TABLE 5. Ceiling Values for Stratified Excess Soil in a Non-Potable Ground Water Condition | CA2: TABLE 6: Ceiling Values for for Full Depth and Shallow Soils in A Potable Ground Water Condition | CI2: TABLE 6: Ceiling Values for Full Depth and Shallow Soils in A Potable Ground Water Condition | CQ2: TABLE 7: Ceiling Values for Full Depth and Shallow Soils in A Non-Potable Ground Water Condition | CY2: TABLE 7: Ceiling Values for Full Depth and Shallow Soils in A Non-Potable Ground Water Condition | DH2: TABLE 8: Ceiling Values for Full Depth Excess Soil for Use within 30 m of A Water Body in A Potable Ground Water Condition | DQ2: TABLE 8: Ceiling Values for Full Depth Excess Soil for Use within 30 m of A Water Body in A Potable Ground Water Condition | DY2: TABLE 9: Ceiling Values for Full Depth Excess Soil for Use within 30 m of A Water Body in A Non-Potable Ground Water Condition | EG2: TABLE 9 - Ceiling Values for for Full Depth Excess Soil for Use within 30 m of a Water Body in a Non-potable Ground Water Condition | ES2: TABLE 10: Ceiling Values for Full Depth and Shallow Soils within 30 m of a Water Body in a Potable Ground Water Condition | FA2: TABLE 10: Ceiling Values for Full Depth and Shallow Soils within 30 m of a Water Body in a Potable Ground Water Condition | FI2: TABLE 11: Reuse Ceiling Values for Full Depth and Shallow Soils within 30 m of a Water Body in a Non-potable Ground Water Condition | FQ2: TABLE 11: Ceiling Soil Values for Full Depth and Shallow Soils within 30 M of a Water Body in a Non-potable Ground Water Condition
F3: ='BRAT Output'!$G$25 ->  | N3: ='BRAT Output'!$G$25 ->  | V3: ='BRAT Output'!$G$25 ->  | AE3: ='BRAT Output'!$G$25 ->  | AM3: ='BRAT Output'!$G$25 ->  | AW3: ='BRAT Output'!$G$25 ->  | BG3: ='BRAT Output'!$G$25 ->  | BQ3: ='BRAT Output'!$G$25 ->  | CA3: ='BRAT Output'!$G$25 ->  | CI3: ='BRAT Output'!$G$25 ->  | CQ3: ='BRAT Output'!$G$25 ->  | CY3: ='BRAT Output'!$G$25 ->  | DH3: ='BRAT Output'!$G$25 ->  | DQ3: ='BRAT Output'!$G$25 ->  | DY3: ='BRAT Output'!$G$25 ->  | EG3: ='BRAT Output'!$G$25 ->  | ES3: ='BRAT Output'!$G$25 ->  | FA3: ='BRAT Output'!$G$25 ->  | FI3: ='BRAT Output'!$G$25 ->  | FQ3: ='BRAT Output'!$G$25 -> 
A4: Table 1 | B4: Ceiling Values | D4: Sediment | F4: Table 2a_CV | I4: Ceiling Values | N4: Table 2b_CV | Q4: Ceiling Values | V4: Table 3a_CV | Z4: Ceiling Values | AE4: Table3b_CV | AI4: Ceiling Values | AM4: Table 4a_CV | AQ4: Ceiling Values | AW4: Table 4b_CV | BA4: Ceiling Values | BG4: Table 5a_CV | BJ4: Soil Standards | BK4: Ceiling Values | BQ4: Table 5b_CV | BU4: Ceiling Values | CA4: Table 6a_CV | CD4: Ceiling Values | CI4: Table 6b_CV | CL4: Ceiling Values | CQ4: Table7a_CV | CU4: Ceiling Values | CY4: Table7b_CV | DC4: Ceiling Values | DH4: Table 8a_CV | DK4: Ceiling Values | DQ4: Table 8b_CV | DT4: Ceiling Values | DY4: Table 9a_CV | EC4: Ceiling Values | EG4: Table 9b_CV | EK4: Ceiling Values | EO4: All Soil Rounded to | ES4: Table 10a_CV | EV4: Ceiling Values | FA4: Table 10b_CV | FD4: Ceiling Values | FI4: Table 11a_CV | FM4: Ceiling Values | FQ4: Table 11b_CV | FU4: Ceiling Values
B5: µg/g | D5: µg/g | F5: Coarse Textured Soils | I5: µg/g | N5: Medium and Fine Soils | Q5: µg/g | V5: Coarse Textured Soils | Z5: µg/g | AE5: Medium and Fine Soils | AI5: µg/g | AM5: Coarse Textured Soils | AQ5: µg/g | AW5: Medium and Fine Soils | BA5: µg/g | BG5: Coarse Textured Soils | BJ5: µg/g | BK5: µg/g | BQ5: Medium and Fine Soils | BU5: µg/g | CA5: Coarse Textured Soils | CD5: µg/g | CI5: Medium and Fine Soils | CL5: µg/g | CQ5: Coarse Textured Soils | CU5: µg/g | CY5: Medium and Fine Soils | DC5: µg/g | DH5: Coarse Textured Soils | DK5: µg/g | DQ5: Medium and Fine Soils | DT5: µg/g | DY5: Coarse Textured Soils | EC5: µg/g | EG5: Medium and Fine Soils | EK5: µg/g | EO5: 6 | EP5: Significant Digits | ES5: Coarse Textured Soils | EV5: µg/g | FA5: Medium and Fine Soils | FD5: µg/g | FI5: Coarse Textured Soils | FM5: µg/g | FQ5: Medium and Fine Soils | FU5: µg/g
A6: Contaminant | B6: Agricultural or Other | C6: Residential/ Parkland/Institutional/ Industrial/Commercial/ Community Property Use | D6: All | F6: Contaminant | G6: Agricultural or Other | I6: Residential/ Parkland/Institutional | K6: Industrial/ Commercial/Community | N6: Contaminant | O6: Agricultural or Other | Q6: Residential/ Parkland/Institutional | S6: Industrial/ Commercial/Community | V6: Contaminant | Y6: Residential/ Parkland/Institutional | AA6: Industrial/ Commercial/Community | AE6: Contaminant | AH6: Residential/ Parkland/Institutional | AJ6: Industrial/ Commercial/Community | AM6: Contaminant | AN6: Residential/ Parkland/Institutional Property Use | AR6: Industrial/ Commercial/Community Property Use | AW6: Contaminant | AX6: Residential/ Parkland/Institutional Property Use | BB6: Industrial/ Commercial/Community Property Use | BG6: Contaminant | BH6: Residential/ Parkland/Institutional Property Use | BL6: Industrial/ Commercial/Community Property Use | BQ6: Contaminant | BR6: Residential/ Parkland/Institutional Property Use | BV6: Industrial/ Commercial/Community Property Use | CA6: Contaminant | CB6: Agricultural or Other | CD6: Residential/ Parkland/Institutional | CF6: Industrial/ Commercial/Community | CI6: Contaminant | CJ6: Agricultural or Other | CL6: Residential/ Parkland/Institutional | CN6: Industrial/ Commercial/Community | CQ6: Contaminant | CT6: Residential/ Parkland/Institutional | CV6: Industrial/ Commercial/Community | CY6: Contaminant | DB6: Residential/ Parkland/Institutional | DD6: Industrial/ Commercial/Community | DH6: Contaminant | DI6: Agricultural or Other | DK6: Residential/ Parkland/Institutional/ | DM6: Industrial/Commercial/ Community Property Use | DQ6: Contaminant | DR6: Agricultural or Other | DT6: Residential/ Parkland/Institutional/ | DV6: Industrial/Commercial/ Community Property Use | DY6: Contaminant | EB6: Residential/ Parkland/Institutional/ | ED6: Industrial/Commercial/ Community Property Use | EG6: Contaminant | EJ6: Residential/ Parkland/Institutional/ | EL6: Industrial/Commercial/ Community Property Use | ES6: Contaminant | ET6: Agricultural or Other | EV6: Residential/ Parkland/Institutional/ | EX6: Industrial/Commercial/ Community | FA6: Contaminant | FB6: Agricultural or Other | FD6: Residential/ Parkland/Institutional/ | FF6: Industrial/Commercial/ Community | FI6: Contaminant | FL6: Residential/ Parkland/Institutional/ | FN6: Industrial/Commercial/ Community | FQ6: Contaminant | FT6: Residential/ Parkland/Institutional/ | FV6: Industrial/Commercial/ Community
B7: Property Use | D7: Property Use | G7: Property Use | I7: Property Use | K7: Property Use | O7: Property Use | Q7: Property Use | S7: Property Use | Y7: Property Use | AA7: Property Use | AH7: Property Use | AJ7: Property Use | AN7: Surface Soil | AP7: Subsurface Soil | AR7: Surface Soil | AT7: Subsurface Soil | AX7: Surface Soil | AZ7: Subsurface Soil | BB7: Surface Soil | BD7: Subsurface Soil | BH7: Surface Soil | BJ7: Subsurface Soil | BL7: Surface Soil | BN7: Subsurface Soil | BR7: Surface Soil | BT7: Subsurface Soil | BV7: Surface Soil | BX7: Subsurface Soil | CB7: Property Use | CD7: Property Use | CF7: Property Use | CJ7: Property Use | CL7: Property Use | CN7: Property Use | CT7: Property Use | CV7: Property Use | DB7: Property Use | DD7: Property Use | DI7: Property Use | DK7: Property Use | DM7: Property Use | DR7: Property Use | DT7: Property Use | DV7: Property Use | EB7: Property Use | ED7: Property Use | EJ7: Property Use | EL7: Property Use | ET7: Property Use | EV7: Property Use | EX7: Property Use | FB7: Property Use | FD7: Property Use | FF7: Property Use | FL7: Property Use | FN7: Property Use | FT7: Property Use | FV7: Property Use
... 8 more rows

Sheet BRAT Table of Drivers - Soil_CV (hidden)
A1: Soil Components for Table 2/2.1 - Full Depth, Potable Water Scenario | T1: Soil Components for Table 2/2.1 - Full Depth, Potable Water Scenario | AM1: Soil Components for Table 2/2.1 - Full Depth, Potable Water Scenario | BH1: Soil Components for Table 2/2.1 - Full Depth, Potable Water Scenario | CA1: Soil Components for Table 2/2.1 - Full Depth, Potable Water Scenario | CT1: Soil Components for Table 2/2.1 - Full Depth, Potable Water Scenario | DO1: Soil Components for Table 3/3.1 - Full Depth, Non-potable Water Scenario | EF1: Soil Components for Table 3/3.1 - Full Depth, Non-potable Water Scenario | EY1: Soil Components for Table 3/3.1 - Full Depth, Non-potable Water Scenario | FP1: Soil Components for Table 3/3.1 - Full Depth, Non-potable Water Scenario | GI1: Soil Components for Table 4/4.1 - Sub-surface, Potable Water Scenario | GY1: Soil Components for Table 4/4.1 - Sub-surface, Potable Water Scenario | HP1: Soil Components for Table 4/4.1 - Sub-surface, Potable Water Scenario | IF1: Soil Components for Table 4/4.1 - Sub-surface, Potable Water Scenario | IW1: Soil Components for Table 5/5.1 - Sub-surface, Non-potable Water Scenario | JK1: Soil Components for Table 5/5.1 - Sub-surface, Non-potable Water Scenario | JZ1: Soil Components for Table 5/5.1 - Sub-surface, Non-potable Water Scenario | KN1: Soil Components for Table 5/5.1 - Sub-surface, Non-potable Water Scenario | LD1: Soil Components for Table 6/6.1 - Full Depth, Shallow Soils, Potable Water Scenario | LW1: Soil Components for Table 6/6.1 - Full Depth, Shallow Soils, Potable Water Scenario | MP1: Soil Components for Table 6/6.1 - Full Depth, Shallow Soils, Potable Water Scenario | NK1: Soil Components for Table 6/6.1 - Full Depth, Shallow Soils, Potable Water Scenario | OD1: Soil Components for Table 6/6.1 - Full Depth, Shallow Soils, Potable Water Scenario | OW1: Soil Components for Table 6/6.1 - Full Depth, Shallow Soils, Potable Water Scenario | PR1: Soil Components for Table 7/7.1 - Full Depth, Shallow Soils, Non-potable Water Scenario | QI1: Soil Components for Table 7/7.1 - Full Depth, Shallow Soils, Non-potable Water Scenario | RB1: Soil Components for Table 7/7.1- Full Depth, Shallow Soils, Non-potable Water Scenario | RS1: Soil Components for Table 7/7.1 - Full Depth, Shallow Soils, Non-potable Water Scenario | SM1: Soil Components for Table 8/8.1 - Within 30 M of a Water Body and Potable Water Scenario | TG1: Soil Components for Table 8/8.1 - Within 30 M of a Water Body and Potable Water Scenario | UA1: Soil Components for Table 8/8.1 - Within 30 M of a Water Body and Potable Water Scenario | UW1: Soil Components for Table 8/8.1 - Within 30 M of a Water Body and Potable Water Scenario | VQ1: Soil Components for Table 8/8.1 - Within 30 M of a Water Body and Potable Water Scenario | WK1: Soil Components for Table 8/9.1 - Within 30 M of a Water Body and Potable Water Scenario | XG1: Soil Components for Table 9/9.1 - Within 30 M of a Water Body and Non-potable Water Scenario | XY1: Soil Components for Table 9/9.1 - Within 30 M of a Water Body and Non-potable Water Scenario | YS1: Soil Components for Table 9/9.1 - Within 30 M of a Water Body and Non-potable Water Scenario | ZK1: Soil Components for Table 9/9.1 - Within 30 M of a Water Body and Non-potable Water Scenario | AAF1: Soil Components for Full Depth, Potable Water Scenario | AAU1: Soil Components for Full Depth, Potable Water Scenario
A2: Coarse Textured Soil | C2: Agricultural Land Use (ug/g) | T2: Coarse Textured Soil | V2: Residential /Parkland Land Use (ug/g) | AM2: Coarse Textured Soil | AO2: Industrial/Commercial Land Use (ug/g) | BH2: Fine - Medium Textured Soil | BJ2: Agricultural Land Use (ug/g) | CA2: Fine - Medium Textured Soil | CC2: Residential /Parkland Land Use (ug/g) | CT2: Fine - Medium Textured Soil | CV2: Industrial/Commercial Land Use (ug/g) | DO2: Coarse Textured Soil | DQ2: Residential /Parkland Land Use (ug/g) | EF2: Coarse Textured Soil | EH2: Industrial/Commercial Land Use (ug/g) | EY2: Fine - Medium Textured Soil | FA2: Residential /Parkland Land Use (ug/g) | FP2: Fine - Medium Textured Soil | FR2: Industrial/Commercial Land Use (ug/g) | GI2: Coarse Textured Soil | GK2: Residential /Parkland Land Use (ug/g) | GY2: Coarse Textured Soil | HA2: Industrial/Commercial Land Use (ug/g) | HP2: Medium - Fine Textured Soil | HR2: Residential /Parkland Land Use (ug/g) | IF2: Medium - Fine Textured Soil | IH2: Industrial/Commercial Land Use (ug/g) | IW2: Coarse Textured Soil | IY2: Residential /Parkland Land Use (ug/g) | JK2: Coarse Textured Soil | JM2: Industrial/Commercial Land Use (ug/g) | JZ2: Medium - Fine Textured Soil | KB2: Residential /Parkland Land Use (ug/g) | KN2: Medium - Fine Textured Soil | KP2: Industrial/Commercial Land Use (ug/g) | LD2: Coarse Textured Soil | LF2: Agricultural Land Use (ug/g) | LW2: Coarse Textured Soil | LY2: Residential /Parkland Land Use (ug/g) | MP2: Coarse Textured Soil | MR2: Industrial/Commercial Land Use (ug/g) | NK2: Fine - Medium Textured Soil | NM2: Agricultural Land Use (ug/g) | OD2: Fine - Medium Textured Soil | OF2: Residential /Parkland Land Use (ug/g) | OW2: Fine - Medium Textured Soil | OY2: Industrial/Commercial Land Use (ug/g) | PR2: Coarse Textured Soil | PT2: Residential /Parkland Land Use (ug/g) | QI2: Coarse Textured Soil | QK2: Industrial/Commercial Land Use (ug/g) | RB2: Fine - Medium Textured Soil | RD2: Residential /Parkland Land Use (ug/g) | RS2: Fine - Medium Textured Soil | RU2: Industrial/Commercial Land Use (ug/g) | SM2: Coarse Textured Soil | SO2: Agricultural and Other Land Use (ug/g) | TG2: Coarse Textured Soil | TH2: Res/Park/Inst Land Uses (ug/g) | UA2: Coarse Textured Soil | UB2: Com/Ind/Comm Land Uses (ug/g) | UW2: F/M Textured Soil | UY2: Agricultural and Other Land Use (ug/g) | VQ2: F/M Textured Soil | VR2: Res/Park/Inst Land Uses (ug/g) | WK2: F/M Textured Soil | WL2: Com/Ind/Comm Land Uses (ug/g) | XG2: Coarse Textured Soil | XH2: Res/Park/Inst Land Uses (ug/g) | XY2: Coarse Textured Soil | XZ2: Com/Ind/Comm Land Uses (ug/g) | YS2: F/M Textured Soil | YT2: Res/Park/Inst Land Uses (ug/g) | ZK2: F/M Textured Soil | ZL2: Com/Ind/Comm Land Uses (ug/g) | AAF2: Lowest | AAG2: Agricultural Land Use (ug/g) | AAU2: Lowest | AAV2: RPI and ICC Land Use (ug/g)
AAF3: NEED TO BE FIXED LATER
A4: Rounded to | B4: 2 | C4: significant digits | F4: Leachate Multiplier: | H4: 1000
B5: MOE | C5: Mass. | D5: Ont. Soil | E5: Plants & | F5: Mammals | G5: Soil Contact | H5: Soil Leaching | M5: Indoor Air | N5: Indoor Air | O5: Outdoor | P5: Free Phase | Q5: Soil Odour | R5: Leaching | U5: MOE | V5: Mass. | W5: Ont. Soil | X5: Plants & | Y5: Mammals | Z5: Soil Contact | AA5: Soil Leaching | AF5: Indoor Air | AG5: Indoor Air | AH5: Outdoor | AI5: Free Phase | AJ5: Soil Odour | AK5: Leaching | AN5: MOE | AO5: Mass. | AP5: Ont. Soil | AQ5: Plants & | AR5: Mammals | AS5: Soil Contact | AT5: Soil Contact | AU5: Soil Leaching | BB5: Indoor Air | BC5: Indoor Air | BD5: Outdoor | BE5: Free Phase | BF5: Leaching | BI5: MOE | BJ5: Mass. | BK5: Ont. Soil | BL5: Plants & | BM5: Mammals | BN5: Soil Contact | BO5: Soil Leaching | BT5: Indoor Air | BU5: Indoor Air | BV5: Outdoor | BW5: Free Phase | BX5: Soil Odour | BY5: Leaching | CB5: MOE | CC5: Mass. | CD5: Ont. Soil | CE5: Plants & | CF5: Mammals | CG5: Soil Contact | CH5: Soil Leaching | CM5: Indoor Air | CN5: Indoor Air | CO5: Outdoor | CP5: Free Phase | CQ5: Soil Odour | CR5: Leaching | CU5: MOE | CV5: Mass. | CW5: Ont. Soil | CX5: Plants & | CY5: Mammals | CZ5: Soil Contact | DA5: Soil Contact | DB5: Soil Leaching | DI5: Indoor Air | DJ5: Indoor Air | DK5: Outdoor | DL5: Free Phase | DM5: Leaching | DP5: MOE | DQ5: Mass. | DR5: Ont. Soil | DS5: Plants & | DT5: Mammals | DU5: Soil Contact | DV5: Soil Leaching | DY5: Indoor Air | DZ5: Indoor Air | EA5: Outdoor | EB5: Free Phase | EC5: Soil Odour | ED5: Leaching | EG5: MOE | EH5: Mass. | EI5: Ont. Soil | EJ5: Plants & | EK5: Mammals | EL5: Soil Contact | EM5: Soil Contact | EN5: Soil Leaching | ES5: Indoor Air | ET5: Indoor Air | EU5: Outdoor | EV5: Free Phase | EW5: Leaching | EZ5: MOE | FA5: Mass. | FB5: Ont. Soil | FC5: Plants & | FD5: Mammals | FE5: Soil Contact | FF5: Soil Leaching | FI5: Indoor Air | FJ5: Indoor Air | FK5: Outdoor | FL5: Free Phase | FM5: Soil Odour | FN5: Leaching | FQ5: MOE | FR5: Mass. | FS5: Ont. Soil | FT5: Plants & | FU5: Mammals | FV5: Soil Contact | FW5: Soil Contact | FX5: Soil Leaching | GC5: Indoor Air | GD5: Indoor Air | GE5: Outdoor | GF5: Free Phase | GG5: Leaching | GJ5: MOE | GK5: Mass. | GL5: Ont. Soil | GM5: Soil Contact | GN5: Soil Contact | GO5: Soil Leaching | GT5: Indoor Air | GU5: Free Phase | GV5: Indoor Air | GW5: Leaching | GZ5: MOE | HA5: Mass. | HB5: Ont. Soil | HC5: Soil Contact | HD5: Soil Leaching | HK5: Indoor Air | HL5: Free Phase | HM5: Indoor Air | HN5: Leaching | HQ5: MOE | HR5: Mass. | HS5: Ont. Soil | HT5: Soil Contact | HU5: Soil Contact | HV5: Soil Leaching | IA5: Indoor Air | IB5: Free Phase | IC5: Indoor Air | ID5: Leaching | IG5: MOE | IH5: Mass. | II5: Ont. Soil | IJ5: Soil Contact | IK5: Soil Leaching | IR5: Indoor Air | IS5: Free Phase | IT5: Indoor Air | IU5: Leaching | IX5: MOE | IY5: Mass. | IZ5: Ont. Soil | JA5: Soil Contact | JB5: Soil Contact | JC5: Soil Leaching | JF5: Indoor Air | JG5: Free Phase | JH5: Indoor Air | JI5: Leaching | JL5: MOE | JM5: Mass. | JN5: Ont. Soil | JO5: Soil Contact | JP5: Soil Leaching | JU5: Indoor Air | JV5: Free Phase | JW5: Indoor Air | JX5: Leaching | KA5: MOE | KB5: Mass. | KC5: Ont. Soil | KD5: Soil Contact | KE5: Soil Contact | KF5: Soil Leaching | KI5: Indoor Air | KJ5: Free Phase | KK5: Indoor Air | KL5: Leaching | KO5: MOE | KP5: Mass. | KQ5: Ont. Soil | KR5: Soil Contact | KS5: Soil Leaching | KX5: Indoor Air | KY5: Free Phase | KZ5: Indoor Air | LA5: Leaching | LE5: MOE | LF5: Mass. | LG5: Ont. Soil | LH5: Plants & | LI5: Mammals | LJ5: Soil Contact | LK5: Soil Leaching | LP5: Indoor Air | LQ5: Indoor Air | LR5: Outdoor | LS5: Free Phase | LT5: Soil Odour | LU5: Leaching | LX5: MOE | LY5: Mass. | LZ5: Ont. Soil | MA5: Plants & | MB5: Mammals | MC5: Soil Contact | MD5: Soil Leaching | MI5: Indoor Air | MJ5: Indoor Air | MK5: Outdoor | ML5: Free Phase | MM5: Soil Odour | MN5: Leaching | MQ5: MOE | MR5: Mass. | MS5: Ont. Soil | MT5: Plants & | MU5: Mammals | MV5: Soil Contact | MW5: Soil Contact | MX5: Soil Leaching | NE5: Indoor Air | NF5: Indoor Air | NG5: Outdoor | NH5: Free Phase | NI5: Leaching | NL5: MOE | NM5: Mass. | NN5: Ont. Soil | NO5: Plants & | NP5: Mammals | NQ5: Soil Contact | NR5: Soil Leaching | NW5: Indoor Air | NX5: Indoor Air | NY5: Outdoor | NZ5: Free Phase | OA5: Soil Odour | OB5: Leaching | OE5: MOE | OF5: Mass. | OG5: Ont. Soil | OH5: Plants & | OI5: Mammals | OJ5: Soil Contact | OK5: Soil Leaching | OP5: Indoor Air | OQ5: Indoor Air | OR5: Outdoor | OS5: Free Phase | OT5: Soil Odour | OU5: Leaching | OX5: MOE | OY5: Mass. | OZ5: Ont. Soil | PA5: Plants & | PB5: Mammals | PC5: Soil Contact | PD5: Soil Contact | PE5: Soil Leaching | PL5: Indoor Air | PM5: Indoor Air | PN5: Outdoor | PO5: Free Phase | PP5: Leaching | PS5: MOE | PT5: Mass. | PU5: Ont. Soil | PV5: Plants & | PW5: Mammals | PX5: Soil Contact | PY5: Soil Leaching | QB5: Indoor Air | QC5: Indoor Air | QD5: Outdoor | QE5: Free Phase | QF5: Soil Odour | QG5: Leaching | QJ5: MOE | QK5: Mass. | QL5: Ont. Soil | QM5: Plants & | QN5: Mammals | QO5: Soil Contact | QP5: Soil Contact | QQ5: Soil Leaching | QV5: Indoor Air | QW5: Indoor Air | QX5: Outdoor | QY5: Free Phase | QZ5: Leaching | RC5: MOE | RD5: Mass. | RE5: Ont. Soil | RF5: Plants & | RG5: Mammals | RH5: Soil Contact | RI5: Soil Leaching | RL5: Indoor Air | RM5: Indoor Air | RN5: Outdoor | RO5: Free Phase | RP5: Soil Odour | RQ5: Leaching | RT5: MOE | RU5: Mass. | RV5: Ont. Soil | RW5: Plants & | RX5: Mammals | RY5: Soil Contact | RZ5: Soil Contact | SA5: Soil Leaching | SF5: Indoor Air | SG5: Indoor Air | SH5: Outdoor | SI5: Free Phase | SJ5: Leaching | SN5: MOE | SO5: Mass. | SP5: Ont. Soil | SQ5: Sediment | SR5: Plants & | SS5: Mammals | ST5: Soil Contact | SU5: Soil Leaching | SZ5: Indoor Air | TA5: Indoor Air | TB5: Outdoor | TC5: Free Phase | TD5: Soil Odour | TE5: Leaching | TH5: MOE | TI5: Mass. | TJ5: Ont. Soil | TK5: Sediment | TL5: Plants & | TM5: Mammals | TN5: Soil Contact | TO5: Soil Leaching | TT5: Indoor Air | TU5: Indoor Air | TV5: Outdoor | TW5: Free Phase | TX5: Soil Odour | TY5: Leaching | UB5: MOE | UC5: Mass. | UD5: Ont. Soil | UE5: Sediment | UF5: Plants & | UG5: Mammals | UH5: Soil Contact | UI5: Soil Contact | UJ5: Soil Leaching | UQ5: Indoor Air | UR5: Indoor Air | US5: Outdoor | UT5: Free Phase | UU5: Leaching | UX5: MOE | UY5: Mass. | UZ5: Ont. Soil | VA5: Sediment | VB5: Plants & | VC5: Mammals | VD5: Soil Contact | VE5: Soil Leaching | VJ5: Indoor Air | VK5: Indoor Air | VL5: Outdoor | VM5: Free Phase | VN5: Soil Odour | VO5: Leaching | VR5: MOE | VS5: Mass. | VT5: Ont. Soil | VU5: Sediment | VV5: Plants & | VW5: Mammals | VX5: Soil Contact | VY5: Soil Leaching | WD5: Indoor Air | WE5: Indoor Air | WF5: Outdoor | WG5: Free Phase | WH5: Soil Odour | WI5: Leaching | WL5: MOE | WM5: Mass. | WN5: Ont. Soil | WO5: Sediment | WP5: Plants & | WQ5: Mammals | WR5: Soil Contact | WS5: Soil Contact | WT5: Soil Leaching | XA5: Indoor Air | XB5: Indoor Air | XC5: Outdoor | XD5: Free Phase | XE5: Leaching | XH5: MOE | XI5: Mass. | XJ5: Ont. Soil | XK5: Sediment | XL5: Plants & | XM5: Mammals | XN5: Soil Contact | XO5: Soil Leaching | XR5: Indoor Air | XS5: Indoor Air | XT5: Outdoor | XU5: Free Phase | XV5: Soil Odour | XW5: Leaching | XZ5: MOE | YA5: Mass. | YB5: Ont. Soil | YC5: Sediment | YD5: Plants & | YE5: Mammals | YF5: Soil Contact | YG5: Soil Contact | YH5: Soil Leaching | YM5: Indoor Air | YN5: Indoor Air | YO5: Outdoor | YP5: Free Phase | YQ5: Leaching | YT5: MOE | YU5: Mass. | YV5: Ont. Soil | YW5: Sediment | YX5: Plants & | YY5: Mammals | YZ5: Soil Contact | ZA5: Soil Leaching | ZD5: Indoor Air | ZE5: Indoor Air | ZF5: Outdoor | ZG5: Free Phase | ZH5: Soil Odour | ZI5: Leaching | ZL5: MOE | ZM5: Mass. | ZN5: Ont. Soil | ZO5: Sediment | ZP5: Plants & | ZQ5: Mammals | ZR5: Soil Contact | ZS5: Soil Contact | ZT5: Soil Leaching | ZY5: Indoor Air | ZZ5: Indoor Air | AAA5: Outdoor | AAB5: Free Phase | AAC5: Leaching | AAG5: Plants & | AAH5: Mammals | AAI5: Soil Contact | AAJ5: Soil Leaching | AAO5: Indoor Air | AAP5: Indoor Air | AAQ5: Outdoor | AAR5: Free Phase | AAS5: Soil Odour | AAV5: Plants & | AAW5: Mammals | AAX5: Soil Contact | AAY5: Soil Contact | AAZ5: Soil Contact | ABA5: Soil Leaching | ABF5: Indoor Air | ABG5: Indoor Air | ABH5: Outdoor Air | ABI5: Free Phase | ABJ5: Soil Odour
A6: Chemical Parameter | B6: Soil RL | C6: PQL | D6: Bkgrd | E6: Soil Org. | F6: & Birds | G6: S1 Risk | H6: S-GW1 | I6: S-GW1 (Odour)# | J6: S-GW2 | K6: S-GW2 (Odour) | L6: S-GW3 | M6: S-IA | N6: Odour | O6: Air | P6: Threshold | Q6: S-Nose | R6: Required | T6: Chemical Parameter | U6: Soil RL | V6: PQL | W6: Bkgrd | X6: Soil Org. | Y6: & Birds | Z6: S1 Risk | AA6: S-GW1 | AB6: S-GW1 (Odour)# | AC6: S-GW2 | AD6: S-GW2 (Odour) | AE6: S-GW3 | AF6: S-IA | AG6: Odour | AH6: Air | AI6: Threshold | AJ6: S-Nose | AK6: Required | AM6: Chemical Parameter | AN6: Soil RL | AO6: PQL | AP6: Bkgrd | AQ6: Soil Org. | AR6: & Birds | AS6: S2 Risk | AT6: S3 Risk | AU6: S-GW1 | AV6: S-GW1 (Odour)# | AW6: S-GW2-RPI | AX6: S-GW2 (RPI Odour) | AY6: S-GW2-ICC | AZ6: S-GW2 (ICC Odour) | BA6: S-GW3 | BB6: S-IA | BC6: Odour | BD6: Air | BE6: Threshold | BF6: Required | BH6: Chemical Parameter | BI6: Soil RL | BJ6: PQL | BK6: Bkgrd | BL6: Soil Org. | BM6: & Birds | BN6: S1 Risk | BO6: S-GW1 | BP6: S-GW1 (Odour)# | BQ6: S-GW2 | BR6: S-GW2 (Odour) | BS6: S-GW3 | BT6: S-IA | BU6: Odour | BV6: Air | BW6: Threshold | BX6: S-Nose | BY6: Required | CA6: Chemical Parameter | CB6: Soil RL | CC6: PQL | CD6: Bkgrd | CE6: Soil Org. | CF6: & Birds | CG6: S1 Risk | CH6: S-GW1 | CI6: S-GW1 (Odour)# | CJ6: S-GW2 | CK6: S-GW2 (Odour) | CL6: S-GW3 | CM6: S-IA | CN6: Odour | CO6: Air | CP6: Threshold | CQ6: S-Nose | CR6: Required | CT6: Chemical Parameter | CU6: Soil RL | CV6: PQL | CW6: Bkgrd | CX6: Soil Org. | CY6: & Birds | CZ6: S2 Risk | DA6: S3 Risk | DB6: S-GW1 | DC6: S-GW1 (Odour)# | DD6: S-GW2-RPI | DE6: S-GW2 (RPI Odour) | DF6: S-GW2-ICC | DG6: S-GW1 (ICC Odour) | DH6: S-GW3 | DI6: S-IA | DJ6: Odour | DK6: Air | DL6: Threshold | DM6: Required | DO6: Chemical Parameter | DP6: Soil RL | DQ6: PQL | DR6: Bkgrd | DS6: Soil Org. | DT6: & Birds | DU6: S1 Risk | DV6: S-GW2 | DW6: S-GW2 (Odour) | DX6: S-GW3 | DY6: S-IA | DZ6: Odour | EA6: Air | EB6: Threshold | EC6: S-Nose | ED6: Required | EF6: Chemical Parameter | EG6: Soil RL | EH6: PQL | EI6: Bkgrd | EJ6: Soil Org. | EK6: & Birds | EL6: S2 Risk | EM6: S3 Risk | EN6: S-GW2-RPI | EO6: S-GW2 (RPI Odour) | EP6: S-GW2-ICC | EQ6: S-GW2 (ICC Odour) | ER6: S-GW3 | ES6: S-IA | ET6: Odour | EU6: Air | EV6: Threshold | EW6: Required | EY6: Chemical Parameter | EZ6: Soil RL | FA6: PQL | FB6: Bkgrd | FC6: Soil Org. | FD6: & Birds | FE6: S1 Risk | FF6: S-GW2 | FG6: S-GW2 (Odour) | FH6: S-GW3 | FI6: S-IA | FJ6: Odour | FK6: Air | FL6: Threshold | FM6: S-Nose | FN6: Required | FP6: Chemical Parameter | FQ6: Soil RL | FR6: PQL | FS6: Bkgrd | FT6: Soil Org. | FU6: & Birds | FV6: S2 Risk | FW6: S3 Risk | FX6: S-GW2-RPI | FY6: S-GW2 (RPI Odour) | FZ6: S-GW2-ICC | GA6: S-GW2 (ICC Odour) | GB6: S-GW3 | GC6: S-IA | GD6: Odour | GE6: Air | GF6: Threshold | GG6: Required | GI6: Chemical Parameter | GJ6: Soil RL | GK6: PQL | GL6: Bkgrd | GM6: S2 Risk | GN6: S3 Risk | GO6: S-GW1 | GP6: S-GW1 (Odour)# | GQ6: S-GW2 | GR6: S-GW2 (Odour) | GS6: S-GW3 | GT6: S-IA | GU6: Threshold | GV6: Odour | GW6: Required | GY6: Chemical Parameter | GZ6: Soil RL | HA6: PQL | HB6: Bkgrd | HC6: S3 Risk | HD6: S-GW1 | HE6: S-GW1 (Odour)# | HF6: S-GW2-RPI | HG6: S-GW1 (RPI Odour) | HH6: S-GW2-ICC | HI6: S-GW1 (ICC Odour) | HJ6: S-GW3 | HK6: S-IA | HL6: Threshold | HM6: Odour | HN6: Required | HP6: Chemical Parameter | HQ6: Soil RL | HR6: PQL | HS6: Bkgrd | HT6: S2 Risk | HU6: S3 Risk | HV6: S-GW1 | HW6: S-GW1 (Odour)# | HX6: S-GW2 | HY6: S-GW2 (Odour) | HZ6: S-GW3 | IA6: S-IA | IB6: Threshold | IC6: Odour | ID6: Required | IF6: Chemical Parameter | IG6: Soil RL | IH6: PQL | II6: Bkgrd | IJ6: S3 Risk | IK6: S-GW1 | IL6: S-GW1 (Odour)# | IM6: S-GW2-RPI | IN6: S-GW2 (RPI Odour) | IO6: S-GW2-ICC | IP6: S-GW2 (ICC Odour) | IQ6: S-GW3 | IR6: S-IA | IS6: Threshold | IT6: Odour | IU6: Required | IW6: Chemical Parameter | IX6: Soil RL | IY6: PQL | IZ6: Bkgrd | JA6: S2 Risk | JB6: S3 Risk | JC6: S-GW2 | JD6: S-GW2 (Odour) | JE6: S-GW3 | JF6: S-IA | JG6: Threshold | JH6: Odour | JI6: Required | JK6: Chemical Parameter | JL6: Soil RL | JM6: PQL | JN6: Bkgrd | JO6: S3 Risk | JP6: S-GW2-RPI | JQ6: S-GW2 (RPI Odour) | JR6: S-GW2-ICC | JS6: S-GW2 (ICC Odour) | JT6: S-GW3 | JU6: S-IA | JV6: Threshold | JW6: Odour | JX6: Required | JZ6: Chemical Parameter | KA6: Soil RL | KB6: PQL | KC6: Bkgrd | KD6: S2 Risk | KE6: S3 Risk | KF6: S-GW2 | KG6: S-GW2 (Odour) | KH6: S-GW3 | KI6: S-IA | KJ6: Threshold | KK6: Odour | KL6: Required | KN6: Chemical Parameter | KO6: Soil RL | KP6: PQL | KQ6: Bkgrd | KR6: S3 Risk | KS6: S-GW2-ICC | KT6: S-GW2 (ICC Odour) | KU6: S-GW2-RPI | KV6: S-GW2 (RPI Odour) | KW6: S-GW3 | KX6: S-IA | KY6: Threshold | KZ6: Odour | LA6: Required | LD6: Chemical Parameter | LE6: Soil RL | LF6: PQL | LG6: Bkgrd | LH6: Soil Org. | LI6: & Birds | LJ6: S1 Risk | LK6: S-GW1 | LL6: S-GW1 (Odour)# | LM6: S-GW2 | LN6: S-GW2 (Odour) | LO6: S-GW3 | LP6: S-IA | LQ6: Odour | LR6: Air | LS6: Threshold | LT6: S-Nose | LU6: Required | LW6: Chemical Parameter | LX6: Soil RL | LY6: PQL | LZ6: Bkgrd | MA6: Soil Org. | MB6: & Birds | MC6: S1 Risk | MD6: S-GW1 | ME6: S-GW1 (Odour)# | MF6: S-GW2 | MG6: S-GW2 (Odour) | MH6: S-GW3 | MI6: S-IA | MJ6: Odour | MK6: Air | ML6: Threshold | MM6: S-Nose | MN6: Required | MP6: Chemical Parameter | MQ6: Soil RL | MR6: PQL | MS6: Bkgrd | MT6: Soil Org. | MU6: & Birds | MV6: S2 Risk | MW6: S3 Risk | MX6: S-GW1 | MY6: S-GW1 (Odour)# | MZ6: S-GW2-RPI | NA6: S-GW2 (RPI Odour) | NB6: S-GW2-ICC | NC6: S-GW2 (ICC Odour) | ND6: S-GW3 | NE6: S-IA | NF6: Odour | NG6: Air | NH6: Threshold | NI6: Required | NK6: Chemical Parameter | NL6: Soil RL | NM6: PQL | NN6: Bkgrd | NO6: Soil Org. | NP6: & Birds | NQ6: S1 Risk | NR6: S-GW1 | NS6: S-GW1 (Odour)# | NT6: S-GW2 | NU6: S-GW2 (Odour) | NV6: S-GW3 | NW6: S-IA | NX6: Odour | NY6: Air | NZ6: Threshold | OA6: S-Nose | OB6: Required | OD6: Chemical Parameter | OE6: Soil RL | OF6: PQL | OG6: Bkgrd | OH6: Soil Org. | OI6: & Birds | OJ6: S1 Risk | OK6: S-GW1 | OL6: S-GW1 (Odour)# | OM6: S-GW2 | ON6: S-GW2 (Odour) | OO6: S-GW3 | OP6: S-IA | OQ6: Odour | OR6: Air | OS6: Threshold | OT6: S-Nose | OU6: Required | OW6: Chemical Parameter | OX6: Soil RL | OY6: PQL | OZ6: Bkgrd | PA6: Soil Org. | PB6: & Birds | PC6: S2 Risk | PD6: S3 Risk | PE6: S-GW1 | PF6: S-GW1 (Odour)# | PG6: S-GW2-RPI | PH6: S-GW2 (RPI Odour) | PI6: S-GW2-ICC | PJ6: S-GW2 (ICC Odour) | PK6: S-GW3 | PL6: S-IA | PM6: Odour | PN6: Air | PO6: Threshold | PP6: Required | PR6: Chemical Parameter | PS6: Soil RL | PT6: PQL | PU6: Bkgrd | PV6: Soil Org. | PW6: & Birds | PX6: S1 Risk | PY6: S-GW2 | PZ6: S-GW2 (Odour) | QA6: S-GW3 | QB6: S-IA | QC6: Odour | QD6: Air | QE6: Threshold | QF6: S-Nose | QG6: Required | QI6: Chemical Parameter | QJ6: Soil RL | QK6: PQL | QL6: Bkgrd | QM6: Soil Org. | QN6: & Birds | QO6: S2 Risk | QP6: S3 Risk | QQ6: S-GW2-RPI | QR6: S-GW2 (RPI Odour) | QS6: S-GW2-ICC | QT6: S-GW2 (ICC Odour) | QU6: S-GW3 | QV6: S-IA | QW6: Odour | QX6: Air | QY6: Threshold | QZ6: Required | RB6: Chemical Parameter | RC6: Soil RL | RD6: PQL | RE6: Bkgrd | RF6: Soil Org. | RG6: & Birds | RH6: S1 Risk | RI6: S-GW2 | RJ6: S-GW2 (Odour) | RK6: S-GW3 | RL6: S-IA | RM6: Odour | RN6: Air | RO6: Threshold | RP6: S-Nose | RQ6: Required | RS6: Chemical Parameter | RT6: Soil RL | RU6: PQL | RV6: Bkgrd | RW6: Soil Org. | RX6: & Birds | RY6: S2 Risk | RZ6: S3 Risk | SA6: S-GW2-RPI | SB6: S-GW2 (RPI Odour) | SC6: S-GW2-ICC | SD6: S-GW2 (ICC Odour) | SE6: S-GW3 | SF6: S-IA | SG6: Odour | SH6: Air | SI6: Threshold | SJ6: Required | SM6: Chemical Parameter | SN6: Soil RL | SO6: PQL | SP6: Bkgrd | SQ6: Quality | SR6: Soil Org. | SS6: & Birds | ST6: S1 Risk | SU6: S-GW1 | SV6: S-GW1 (Odour)# | SW6: S-GW2 | SX6: S-GW2 (Odour) | SY6: S-GW3 | SZ6: S-IA | TA6: Odour | TB6: Air | TC6: Threshold | TD6: S-Nose | TE6: Required | TG6: Chemical Parameter | TH6: Soil RL | TI6: PQL | TJ6: Bkgrd | TK6: Quality | TL6: Soil Org. | TM6: & Birds | TN6: S1 Risk | TO6: S-GW1 | TP6: S-GW1 (Odour)# | TQ6: S-GW2 | TR6: S-GW2 (Odour) | TS6: S-GW3 | TT6: S-IA | TU6: Odour | TV6: Air | TW6: Threshold | TX6: S-Nose | TY6: Required | UA6: Chemical Parameter | UB6: Soil RL | UC6: PQL | UD6: Bkgrd | UE6: Quality | UF6: Soil Org. | UG6: & Birds | UH6: S2 Risk | UI6: S3 Risk | UJ6: S-GW1 | UK6: S-GW1 (Odour)# | UL6: S-GW2-RPI | UM6: S-GW2 (RPI Odour) | UN6: S-GW2-ICC | UO6: S-GW2 (ICC Odour) | UP6: S-GW3 | UQ6: S-IA | UR6: Odour | US6: Air | UT6: Threshold | UU6: Required | UW6: Chemical Parameter | UX6: Soil RL | UY6: PQL | UZ6: Bkgrd | VA6: Quality | VB6: Soil Org. | VC6: & Birds | VD6: S1 Risk | VE6: S-GW1 | VF6: S-GW1 (Odour)# | VG6: S-GW2 | VH6: S-GW2 (Odour) | VI6: S-GW3 | VJ6: S-IA | VK6: Odour | VL6: Air | VM6: Threshold | VN6: S-Nose | VO6: Required | VQ6: Chemical Parameter | VR6: Soil RL | VS6: PQL | VT6: Bkgrd | VU6: Quality | VV6: Soil Org. | VW6: & Birds | VX6: S1 Risk | VY6: S-GW1 | VZ6: S-GW1 (Odour)# | WA6: S-GW2 | WB6: S-GW2 (Odour) | WC6: S-GW3 | WD6: S-IA | WE6: Odour | WF6: Air | WG6: Threshold | WH6: S-Nose | WI6: Required | WK6: Chemical Parameter | WL6: Soil RL | WM6: PQL | WN6: Bkgrd | WO6: Quality | WP6: Soil Org. | WQ6: & Birds | WR6: S2 Risk | WS6: S3 Risk | WT6: S-GW1 | WU6: S-GW1 (Odour)# | WV6: S-GW2-RPI | WW6: S-GW2 (RPI Odour) | WX6: S-GW2-ICC | WY6: S-GW2 (ICC Odour) | WZ6: S-GW3 | XA6: S-IA | XB6: Odour | XC6: Air | XD6: Threshold | XE6: Required | XG6: Chemical Parameter | XH6: Soil RL | XI6: PQL | XJ6: Bkgrd | XK6: Quality | XL6: Soil Org. | XM6: & Birds | XN6: S1 Risk | XO6: S-GW2 | XP6: S-GW2 (Odour) | XQ6: S-GW3 | XR6: S-IA | XS6: Odour | XT6: Air | XU6: Threshold | XV6: S-Nose | XW6: Required | XY6: Chemical Parameter | XZ6: Soil RL | YA6: PQL | YB6: Bkgrd | YC6: Quality | YD6: Soil Org. | YE6: & Birds | YF6: S2 Risk | YG6: S3 Risk | YH6: S-GW2-RPI | YI6: S-GW2 (RPI Odour) | YJ6: S-GW2-ICC | YK6: S-GW2 (ICC Odour) | YL6: S-GW3 | YM6: S-IA | YN6: Odour | YO6: Air | YP6: Threshold | YQ6: Required | YS6: Chemical Parameter | YT6: Soil RL | YU6: PQL | YV6: Bkgrd | YW6: Quality | YX6: Soil Org. | YY6: & Birds | YZ6: S1 Risk | ZA6: S-GW2 | ZB6: S-GW2 (Odour) | ZC6: S-GW3 | ZD6: S-IA | ZE6: Odour | ZF6: Air | ZG6: Threshold | ZH6: S-Nose | ZI6: Required | ZK6: Chemical Parameter | ZL6: Soil RL | ZM6: PQL | ZN6: Bkgrd | ZO6: Quality | ZP6: Soil Org. | ZQ6: & Birds | ZR6: S2 Risk | ZS6: S3 Risk | ZT6: S-GW2-RPI | ZU6: S-GW2 (RPI Odour) | ZV6: S-GW2-ICC | ZW6: S-GW2 (ICC Odour) | ZX6: S-GW3 | ZY6: S-IA | ZZ6: Odour | AAA6: Air | AAB6: Threshold | AAC6: Required | AAF6: Chemical Parameter | AAG6: Soil Org. | AAH6: & Birds | AAI6: S1 Risk | AAJ6: S-GW1 | AAK6: S-GW1 (Odour)# | AAL6: S-GW2 | AAM6: S-GW2 (Odour) | AAN6: S-GW3 | AAO6: S-IA | AAP6: Odour | AAQ6: Air | AAR6: Threshold | AAS6: S-Nose | AAU6: Chemical Parameter | AAV6: Soil Org. | AAW6: & Birds | AAX6: S1 Risk | AAY6: S2 Risk | AAZ6: S3 Risk | ABA6: S-GW1 | ABB6: S-GW1 (Odour)# | ABC6: S-GW2 | ABD6: S-GW2 (Odour) | ABE6: S-GW3 | ABF6: S-IA | ABG6: Odour | ABI6: Threshold | ABJ6: S-Nose
... 8 more rows
